Workbook

Sheet LDC Info
AA3: Algoma Power Inc.
AA4: Atikokan Hydro Inc.
AA5: Attawapiskat Power Corporation
AA6: Bluewater Power Distribution Corp.
AA7: Brant County Power
AA8: Brantford Power Inc.
AA9: Burlington Hydro Inc.
AA10: Cambridge and North Dumfries Hydro
AA11: Canadian Niagara Power Inc. – Eastern Ontario Power/Fort Erie/Port Colborne
AA12: Centre Wellington Hydro Ltd.
N13: Version 1.1 | AA13: Chapleau Public Utilities Corporation
D14: Utility Name | E14: Kitchener-Wilmot Hydro Inc. | AA14: COLLUS Power Corp.
AA15: Cooperative Hydro Embrun Inc.
D16: Service Territory | AA16: E.L.K. Energy Inc.
AA17: Enersource Hydro Mississauga Inc.
D18: Assigned EB Number | E18: EB-2013-0147 | AA18: Entegrus Powerlines Inc.
AA19: ENWIN Utilities Ltd.
D20: Name of Contact and Title | E20: Margaret Nanninga, Vice-President Finance | AA20: Erie Thames Powerlines Corp.
AA21: Espanola Regional Hydro Distribution Corporation
D22: Phone Number | E22: 519-749-6177 | AA22: Essex Powerlines Corporation
AA23: Festival Hydro Inc.
D24: Email Address | E24: mnanninga@kwhydro.on.ca | AA24: Fort Albany Power Corporation
AA25: Fort Frances Power Corporation
D26: Bridge Year | E26: 2013 | AA26: Greater Sudbury Hydro Inc.
AA27: Grimsby Power Inc.
D28: Test Year | E28: 2013 | AA28: Guelph Hydro Electric Systems Inc.
AA29: Haldimand County Hydro Inc.
D30: Last Rebasing Year | E30: 2010 | AA30: Guelph Hydro Electric Systems Inc.
AA31: Halton Hills Hydro Inc.
B32: Notes | AA32: Hearst Power Distribution Co. Ltd.
AA33: Horizon Utilities Corporation
C34: Pale green cells represent input cells. | AA34: Hydro 2000 Inc.
AA35: Hydro Hawkesbury Inc.
C36: Pale blue cells represent drop-down lists. The applicant should select the appropriate item from the drop-down list. | AA36: Hydro One Brampton Networks Inc.
AA37: Hydro One Networks Inc.
C38: White cells contain fixed values, automatically generated values or formulae. | AA38: Hydro One Remote Communities Inc.
AA39: Hydro Ottawa Limited
AA40: Innisfil Hydro Dist. Systems Limited
AA41: Kashechewan Power Corporation
AA42: Kenora Hydro Electric Corporation Ltd.
AA43: Kingston Hydro Corporation
AA44: Kitchener-Wilmot Hydro Inc.
AA45: Lakefront Utilities Inc.
AA46: Lakeland Power Distribution Ltd.
AA47: London Hydro Inc.
AA48: Midland Power Utility Corporation
AA49: Milton Hydro Distribution Inc.
AA50: Newmarket – Tay Power Distribution Ltd.
AA51: Niagara Peninsula Energy Inc.
AA52: Niagara-on-the-Lake Hydro Inc.
AA53: Norfolk Power Distribution Ltd.
AA54: North Bay Hydro Distribution Limited
AA55: Northern Ontario Wires Inc.
AA56: Oakville Hydro Distribution Inc.
AA57: Orangeville Hydro Limited
AA58: Orillia Power Distribution Corp.
AA59: Oshawa PUC Networks Inc.
AA60: Ottawa River Power Corporation
AA61: Parry Sound Power Corporation
AA62: Peterborough Distribution Inc.
AA63: PowerStream Inc.
AA64: PUC Distribution Inc.
AA65: Renfrew Hydro Inc.
AA66: Rideau St. Lawrence Distribution Inc.
AA67: St. Thomas Energy Inc.
AA68: Sioux Lookout Hydro Inc.
AA69: Thunder Bay Hydro Electricity Distribution
AA70: Tillsonburg Hydro Inc.
AA71: Toronto Hydro-Electric System Limited
AA72: Veridian Connections Inc.
AA73: Wasaga Distribution Inc.
AA74: Waterloo North Hydro Inc.
AA75: Welland Hydro Electric System Corp.
AA76: Wellington North Power Inc.
AA77: West Coast Huron Energy Inc.
AA78: Westario Power Inc.
AA79: Whitby Hydro Electric Corporation
AA80: Woodstock Hydro Services Inc.

Sheet Index
A15: 1 | B15: LDC Information Sheet | E15: 19 | F15: Appendix 2-H OM&A Detailed Analysis
A16: 2 | B16: Index | E16: 20 | F16: Appendix 2-I OM&A Summary Analysis
A17: 3 | B17: Appendix 2-A Capital Projects | E17: 21 | F17: Appendix 2-J OM&A Cost Drivers
A18: 4 | B18: Appendix 2-B Fixed Asset Continuity | E18: 22 | F18: Appendix 2-K Employee Costs
A19: 5 | B19: Appendix 2-CA CGAAP Depreciation Expense 2011 | E19: 23 | F19: Appendix 2-L OM&A per Cust FTEE
A20: 6 | B20: Appendix 2-CB MIFRS Depreciation Expense 2011 | E20: 24 | F20: Appendix 2-M Regulatory Costs
A21: 7 | B21: Appendix 2-CC MIFRS Depreciation Expense 2012 | E21: 25 | F21: Appendix 2-N Corp Cost Allocation
A22: 8 | B22: Appendix 2-CD MIFRS Depreciation Expense 2013 | E22: 26 | F22: Appendix 2-OA Capital Structure and Cost of Capital
A23: 9 | B23: Appendix 2-CE CGAAP Depreciation Expense 2011 | E23: 27 | F23: Appendix 2-OB Debt Instruments
A24: 10 | B24: Appendix 2-CF CGAAP Depreciation Expense 2012 | E24: 28 | F24: Appendix 2-P Cost Allocation
A25: 11 | B25: Appendix 2-CG MIFRS Depreciation Expense 2012 | E25: 29 | F25: Appendix 2-Q Cost of Service Embedded Distributor
A26: 12 | B26: Appendix 2-CH MIFRS Depreciation Expense 2013 | E26: 30 | F26: Appendix 2-R Loss Factors
A27: 13 | B27: Appendix 2-CI Alternative Accounting Standards Depreciation Expense | E27: 31 | F27: Appendix 2-S Stranded Meters
A28: 14 | B28: Appendix 2-D Overhead | E28: 32 | F28: Appendix 2-T 1592 Tax Variance
A29: 15 | B29: Appendix 2-EA PP&E Deferral Account - 2012 IFRS Adopters | E29: 33 | F29: Appendix 2-U IFRS Transition Costs
A30: 16 | B30: Appendix 2-EB PP&E Deferral Account - 2013 IFRS Adopters | E30: 34 | F30: Appendix 2-V Rev Reconciliation
A31: 17 | B31: Appendix 2-F Other Operating Revenue | E31: 35 | F31: Appendix 2-W Bill Impacts
A32: 18 | B32: Appendix 2-G Detailed OM&A Expenses | E32: 36 | F32: Appendix 2-X CoS Flowchart

Sheet App.2-CA_CGAAP_DepExp_2012COL (hidden)
K1: File Number: | L1: ='LDC Info'!$E$18 -> EB-2013-0147
K2: Exhibit: | L2: 4
K3: Tab:
K4: Schedule:
K5: Page:
K7: Date:
A9: Appendix 2-CA
A10: Depreciation and Amortization Expense
A11: Assumes the applicant adopted IFRS for financial reporting purposes January 1, 2013
C12: Year | D12: 2012 | E12: CGAAP
A14: Account | B14: Description | C14: Opening Regulatory Gross PP&E as at Jan 1, 2012 | D14: Less Fully Depreciated | E14: Net for Depreciation | F14: Additions | G14: Total for Depreciation | H14: Years | I14: Depreciation Rate | J14: Depreciation Expense | K14: 2012 Depreciation Expense per Appendix 2-B Fixed Assets, Column K (l) | L14: Variance 2
C15: (a) | D15: (b) | E15: (c) | F15: (d) | G15: (e) = (c) + ½ x (d) 1 | H15: (f) | I15: (g) = 1 / (f) | J15: (h) = (e) / (f) | L15: (m) = (h) - (l) | M15: 1/2 Year Deprec
A16: 1611 | B16: Computer Software (Formally known as Account 1925) | C16: 3266775 | D16: =2470199+6616.65 -> 2476815.65 | E16: =C16-D16 -> 789959.35 | F16: =+#REF! ->  | G16: =E16+0.5*F16 ->  | H16: 5 | I16: =IF(H16=0,0,1/H16) -> 0.2 | J16: =IF(H16=0,0,G16/H16) ->  | K16: =-#REF! ->  | L16: =IF(ISERROR(+J16-K16), 0, +J16-K16) -> 0 | M16: =F16/H16*0.5 ->  | N16: =L16+M16 -> 
A17: 1611 | B17: Computer Software (Formally known as Account 1925) - Smart Meters | E17: =C17-D17 -> 0 | F17: =+#REF! ->  | G17: =E17+0.5*F17 ->  | H17: 3 | I17: 0.3333333333 | J17: =IF(H17=0,0,G17/H17) ->  | K17: =-#REF! ->  | L17: =IF(ISERROR(+J17-K17), 0, +J17-K17) -> 0 | M17: =F17/H17*0.5 ->  | N17: =L17+M17 ->  | O17: Additions during the year were from Regulatory accounts. Most are transferred in.
A18: 1612 | B18: Land Rights (Formally known as Account 1906) | C18: 265449 | D18: 199174 | E18: =C18-D18 -> 66275 | F18: 0 | G18: =E18+0.5*F18 -> 66275 | H18: 25 | I18: 0.04 | J18: 2651 | K18: =-#REF! ->  | L18: =IF(ISERROR(+J18-K18), 0, +J18-K18) -> 0 | M18: 0 | N18: 0 | O18: Changed years. Is this correct? (assets fully depreciated?)
A19: 1805 | B19: Land | C19: 2339958 | E19: 2339958 | F19: 0 | G19: 2339958 | H19: 0 | I19: 0 | J19: 0 | K19: 0 | L19: 0 | N19: 0
A20: 1808 | B20: Buildings | C20: =9268665-C21 -> 7461078.7 | E20: 7461078.7 | F20: -20178 | G20: 7450989.7 | H20: 50 | I20: 0.02 | J20: 149019.794 | K20: =-#REF!-K21 ->  | L20: 0 | M20: -201.78 | N20: -201.78
A21: 1808 | B21: Buildings | C21: =110211+31314.3+94138+15528+135517+459713+57293+94760+269175+539937 -> 1807586.3 | E21: 1807586.3 | G21: 1807586.3 | H21: 60 | I21: 0.01666666667 | J21: 30126.43833 | K21: =1900+522+1827+2258+7661+983+1664+4584+8998 -> 30397 | L21: -270.5616667 | M21: 0 | N21: -270.5616667
A22: 1810 | B22: Leasehold Improvements | E22: 0 | F22: 0 | G22: 0 | H22: 0 | I22: 0 | J22: 0 | L22: 0 | N22: 0
A23: 1815 | B23: Transformer Station Equipment >50 kV | C23: 59878130 | D23: =1424846.22-54981.59 -> 1369864.63 | E23: 58508265.37 | F23: 93639 | G23: 58555084.87 | H23: 40 | I23: 0.025 | J23: 1463877.122 | K23: =-#REF! ->  | L23: 0 | M23: 1170.4875 | N23: 1170.4875 | O23: 2012 deprec error
A24: 1820 | B24: Distribution Station Equipment <50 kV | C24: 2853105 | D24: 527835.24 | E24: 2325269.76 | F24: 0 | G24: 2325269.76 | H24: 30 | I24: 0.03333333333 | J24: 77508.992 | K24: =-#REF! ->  | L24: 0 | M24: 0 | N24: 0
A25: 1825 | B25: Storage Battery Equipment | E25: 0 | F25: 0 | G25: 0 | H25: 0 | I25: 0 | J25: 0 | L25: 0 | N25: 0
A26: 1830 | B26: Poles, Towers & Fixtures | C26: 29644768 | E26: 29644768 | F26: 2894738 | G26: 31092137 | H26: 25 | I26: 0.04 | J26: 1243685.48 | K26: =-#REF! ->  | L26: 0 | M26: 57894.76 | N26: 57894.76
A27: 1835 | B27: Overhead Conductors & Devices | C27: 32204259 | E27: 32204259 | F27: 2259990 | G27: 33334254 | H27: 25 | I27: 0.04 | J27: 1333370.16 | K27: =-#REF! ->  | L27: 0 | M27: 45199.8 | N27: 45199.8
A28: 1840 | B28: Underground Conduit | C28: =22040741-1232070.21 -> 20808670.79 | E28: 20808670.79 | F28: 1910830 | G28: 21764085.79 | H28: 25 | I28: 0.04 | J28: 870563.4316 | K28: =-#REF!-35220 ->  | L28: 0 | M28: 38216.6 | N28: 38216.6
A29: 1840 | B29: Underground Conduit | C29: 1232070.21 | E29: 1232070.21 | G29: 1232070.21 | H29: 35 | I29: 0.02857142857 | J29: 35202.006 | K29: 35220.11 | L29: -18.104 | M29: 0 | N29: -18.104
A30: 1845 | B30: Underground Conductors & Devices | C30: =37324957-3058251.48 -> 34266705.52 | E30: 34266705.52 | F30: 2430148 | G30: 35481779.52 | H30: 25 | I30: 0.04 | J30: =IF(H30=0,0,G30/H30) -> 1419271.181 | K30: =1555093-87423.55 -> 1467669.45 | L30: -48398.2692 | M30: 48602.96 | N30: 204.6908
A31: 1845 | B31: Underground Conductors & Devices | C31: 3058251.48 | E31: 3058251.48 | G31: 3058251.48 | H31: 35 | I31: 0.02857142857 | J31: =IF(H31=0,0,G31/H31) -> 87378.61371 | K31: 87423.55 | L31: -44.93628571 | M31: 0 | N31: -44.93628571
A32: 1850 | B32: Line Transformers | C32: =49922477-2180161.15 -> 47742315.85 | E32: 47742315.85 | F32: 3398190 | G32: 49441410.85 | H32: 25 | I32: 0.04 | J32: 1977656.434 | K32: =2045477-72672 -> 1972805 | L32: 4851.434 | M32: 67963.8 | N32: 72815.234 | O32: transfers
A33: 1850 | B33: Line Transformers | C33: 2180161.15 | E33: 2180161.15 | G33: 2180161.15 | H33: 30 | I33: 0.03333333333 | J33: 72672.03833 | K33: 72672.04 | L33: -0.001666666663 | M33: 0 | N33: -0.001666666663
A34: 1855 | B34: Services (Overhead & Underground) | C34: =41475703-1885469.85 -> 39590233.15 | E34: 39590233.15 | F34: 2762234 | G34: 40971350.15 | H34: 25 | I34: 0.04 | J34: 1638854.006 | K34: =1748284-53898.24 -> 1694385.76 | L34: -55531.754 | M34: 55244.68 | N34: -287.074
A35: 1855 | B35: Services (Overhead & Underground) | C35: 1885468.85 | E35: 1885468.85 | G35: 1885468.85 | H35: 35 | I35: 0.02857142857 | J35: 53870.53857 | K35: 53898.24 | L35: -27.70142857 | M35: 0 | N35: -27.70142857
A36: 1860 | B36: Meters | C36: =11503383-706 -> 11502677 | D36: 9578658 | E36: 1924019 | F36: =+#REF! ->  | H36: 25 | I36: 0.04 | K36: =-+#REF!-K37 ->  | L36: 0
A37: 1860 | B37: Meters | C37: 706 | E37: 706 | G37: 706 | H37: 35 | I37: 0.02857142857 | J37: 20.17142857 | K37: 20 | L37: 0.1714285714 | M37: 0 | N37: 0.1714285714
A38: 1860 | B38: Meters (Smart Meters) | E38: 0 | F38: =+#REF! ->  | H38: 15 | I38: 0.06666666667 | K38: =-+#REF! ->  | L38: 0 | O38: smart meters
A39: 1905 | B39: Land | C39: 1395300 | E39: 1395300 | F39: 0 | G39: 1395300 | H39: 0 | I39: 0 | J39: 0 | L39: 0 | N39: 0
A40: 1908 | B40: Buildings & Fixtures | C40: =10244953-290243-6077383 -> 3877327 | E40: 3877327 | F40: 31703 | G40: 3893178.5 | H40: 50 | I40: 0.02 | J40: 77863.57 | K40: =184308-4837-101290 -> 78181 | L40: -317.43 | M40: 317.03 | N40: -0.4
A41: 1908 | B41: Buildings & Fixtures | C41: =290243+6077383 -> 6367626 | E41: 6367626 | G41: 6367626 | H41: 60 | I41: 0.01666666667 | J41: 106127.1 | K41: =4837+101290 -> 106127 | L41: 0.1 | M41: 0 | N41: 0.1
A42: 1910 | B42: Leasehold Improvements | E42: 0 | F42: 0 | G42: 0 | H42: 50 | I42: 0.02 | J42: 0 | L42: 0 | M42: 0 | N42: 0
A43: 1915 | B43: Office Furniture & Equipment (10 years) | C43: 1112310 | D43: 527725 | E43: 584585 | F43: 34301 | G43: 601735.5 | H43: 10 | I43: 0.1 | J43: 60173.55 | K43: 65354 | L43: -5180.45 | M43: 1715.05 | N43: -3465.4
A44: 1915 | B44: Office Furniture & Equipment (5 years) | E44: 0 | F44: 0 | G44: 0 | H44: 5 | I44: 0.2 | J44: 0 | K44: 0 | L44: 0 | M44: 0 | N44: 0
A45: 1920 | B45: Computer Equipment - Hardware | C45: 2420464 | D45: 1813602.59 | E45: 606861.41 | F45: 227721 | G45: 720721.91 | H45: 5 | I45: 0.2 | J45: 144144.382 | K45: 151267 | L45: -7122.618 | M45: 22772.1 | N45: 15649.482
A46: 1920 | B46: Computer Equip.-Hardware - Smart Meters | E46: 0 | F46: 221261 | G46: 110630.5 | H46: 5 | I46: 0.2 | J46: 22126.1 | K46: 77441 | L46: -55314.9 | M46: 22126.1 | N46: -33188.8 | O46: smart meters
A47: 1920 | B47: Computer Equip.-Hardware(Post Mar. 19/07) | E47: 0 | G47: 0 | H47: 5 | I47: 0.2 | J47: 0 | K47: 0 | L47: 0 | M47: 0 | N47: 0
A48: 1930 | B48: Transportation Equipment < 3 Tons | C48: 1059248.37 | D48: 402788.6 | E48: =C48-D48 -> 656459.77 | F48: 52112.56 | G48: =E48+0.5*F48 -> 682516.05 | H48: 5 | I48: 0.2 | J48: 136503.21 | K48: =747189-693664-10070 -> 43455 | L48: 93048.21 | M48: 5211.256 | N48: 98259.466
A49: 1930 | B49: Transportation Equipment > 3 Tons | C49: 6846246.52 | D49: 1672923.82 | E49: =C49-D49 -> 5173322.7 | F49: 375989 | G49: =E49+0.5*F49 -> 5361317.2 | H49: 8 | I49: 0.125 | J49: 670164.65 | K49: 693664 | L49: -23499.35 | M49: 23499.3125 | N49: -0.03750000009
A50: 1930 | B50: Transportation Equipment - Trailers | C50: 249385.85 | D50: 168828.67 | E50: =C50-D50 -> 80557.18 | F50: 0 | G50: =E50+0.5*F50 -> 80557.18 | H50: 8 | I50: 0.125 | J50: 10069.6475 | K50: 10070 | L50: -0.3525 | M50: 0 | N50: -0.3525
A51: 1935 | B51: Stores Equipment | C51: 64072 | D51: 36629.72 | E51: 27442.28 | F51: 0 | G51: 27442.28 | H51: 10 | I51: 0.1 | J51: 2744.228 | K51: 3512 | L51: -767.772 | M51: 0 | N51: -767.772
A52: 1940 | B52: Tools, Shop & Garage Equipment | C52: 772798 | D52: 230418.71 | E52: 542379.29 | F52: 70533 | G52: 577645.79 | H52: 10 | I52: 0.1 | J52: 57764.579 | K52: =60503-373 -> 60130 | L52: -2365.421 | M52: 3526.65 | N52: 1161.229
A53: 1940 | B53: Tools - Smart Meters | E53: 0 | F53: 3728 | G53: 1864 | H53: 10 | I53: 0.1 | J53: 186.4 | K53: 372.8 | L53: -186.4 | M53: 186.4 | N53: 0 | O53: smart meters
A54: 1945 | B54: Measurement & Testing Equipment | C54: 866733 | D54: 614023.28 | E54: 252709.72 | F54: 96435 | G54: 300927.22 | H54: 10 | I54: 0.1 | J54: 30092.722 | K54: 32783 | L54: -2690.278 | M54: 4821.75 | N54: 2131.472
A55: 1950 | B55: Power Operated Equipment | C55: 783695 | D55: 304873.23 | E55: 478821.77 | F55: 54068 | G55: 505855.77 | H55: 10 | I55: 0.1 | J55: 50585.577 | K55: 57705 | L55: -7119.423 | M55: 2703.4 | N55: -4416.023
A56: 1955 | B56: Communications Equipment | C56: 173729 | D56: 74214.9 | E56: 99514.1 | F56: 0 | G56: 99514.1 | H56: 10 | I56: 0.1 | J56: 9951.41 | K56: 16819 | L56: -6867.59 | M56: 0 | N56: -6867.59
A57: 1955 | B57: Communication Equipment (Smart Meters) | E57: 0 | F57: 696107 | G57: 348053.5 | H57: 10 | I57: 0.1 | J57: 34805.35 | K57: 254934 | L57: -220128.65 | M57: 34805.35 | N57: -185323.3 | O57: smart meters
A58: 1960 | B58: Miscellaneous Equipment | C58: 98856 | D58: 24382.97 | E58: 74473.03 | F58: 0 | G58: 74473.03 | H58: 5 | I58: 0.2 | J58: 14894.606 | K58: 14930 | L58: -35.394 | M58: 0 | N58: -35.394
A59: 1975 | B59: Load Management Controls Utility Premises | E59: 0 | F59: 0 | G59: 0 | H59: 10 | I59: 0.1 | J59: 0 | K59: 0 | L59: 0 | M59: 0 | N59: 0
A60: 1980 | B60: System Supervisor Equipment | C60: 1507244 | D60: 5771 | E60: 1501473 | F60: 0 | G60: 1501473 | H60: 25 | I60: 0.04 | J60: 60058.92 | K60: 60058.91 | L60: 0.009999999995 | M60: =F60/H60*0.5 -> 0 | N60: 0.009999999995
A61: 1980 | B61: System Supervisor Equipment | C61: 59236 | E61: 59236 | F61: 0 | G61: 59236 | H61: 15 | I61: 0.06666666667 | J61: 3949.066667 | K61: 3946.81 | L61: 2.256666667 | M61: =F61/H61*0.5 -> 0 | N61: 2.256666667
A62: 1985 | B62: Miscellaneous Fixed Assets | E62: 0 | F62: 0 | G62: 0 | H62: 5 | I62: 0.2 | J62: 0 | L62: 0 | M62: 0 | N62: 0
A63: 1995 | B63: Contributions & Grants | C63: -44537160 | E63: -44537160 | F63: -4668971 | G63: -46871645.5 | H63: 25 | I63: 0.04 | J63: -1874865.82 | K63: -1968390 | L63: =IF(ISERROR(+J63-K63), 0, +J63-K63) -> 93524.18 | M63: -93379.42 | N63: 144.76 | O63: Rounding?
A64: etc. | E64: 0 | G64: 0 | I64: 0 | J64: 0 | L64: 0
E65: 0 | G65: 0 | J65: 0 | L65: 0
B66: Total | C66: =SUM(C16:C65) -> 285105479.7 | D66: =SUM(D16:D65) -> 20028530.01 | E66: =SUM(E16:E65) -> 265076949.7 | F66: =SUM(F16:F65) ->  | G66: =SUM(G16:G65) ->  | J66: =SUM(J16:J65) ->  | K66: =SUM(K16:K65) ->  | L66: =SUM(L16:L65) -> -244460.9947 | M66: =SUM(M16:M65) -> 
A68: Notes: | M68: =M66/K66 -> 
A70: 1 | B70: Board policy of the "half-year" rule - the applicant must ensure that additions in the year attract a half-year depreciation expense in the first year. Deviations from this standard practice must be supported in the application.
A71: 2 | B71: The applicant must provide an explanation of material variances in evidence
A73: General | B73: Applicants must provide a breakdown of depreciation and amortization expense in the above format for all relevant accounts. Asset Retirement Obligations (AROs), depreciation and accretion expense should be disclosed separately consistent with the Notes of historical Audited Financial Statements.
A78: Explanation | G78: Applying the half year rule in the Test year | L78: =+L63+L20+L23+L26+L27+L28+L30+L34+L40-M32-M36-L32 -> 
G79: Result of the smart meter decision(i.e. taking depreciation as ordered) | L79: =+L57+L53+L46+L38+L17 -> -275629.95
G80: Identifiable Assets - Depreciation taken when asset comes into service | L80: =+L56+L55+L54+L52+L51+L49+L48+L45+L43+L16 -> 37435.308
G81: Amortization on Stranded meters | L81: -502795.26
G82: Transformer adjustment | L82: 72814
G83: Rounding errors | L83: 639.29
L84: =SUM(L78:L83) -> 
L85: =+L66-L84 -> 

Sheet App.2-V_Rev_Reconciliation
O1: File Number: | P1: ='LDC Info'!$E$18 -> EB-2013-0147
O2: Exhibit: | P2: 8
O3: Tab:
O4: Schedule:
O5: Page:
O7: Date: | P7: 2014-04-01
A9: Appendix 2-V
A10: Revenue Reconciliation
A12: Rate Class | B12: Customers/ Connections | C12: Number of Customers/Connections | F12: Test Year Consumption | H12: Proposed Rates | K12: Revenues at Proposed Rates | M12: Class Specific Revenue Requirement | N12: Transformer Allowance Credit | O12: Total | P12: Difference
C13: Start of Test Year | D13: End of Test Year | E13: Average | F13: kWh | G13: kW | H13: Monthly Service Charge | I13: Volumetric
I14: kWh | J14: kW
A16: Residential | B16: Customers | E16: 82577 | F16: 651728155 | H16: 10.5 | I16: 0.0162 | K16: =H16*E16*12+I16*F16+J16*G16 -> 20962698.11 | M16: 20970768 | O16: =SUM(M16:N16) -> 20970768 | P16: =O16-K16 -> 8069.889
A17: GS < 50 kW | B17: Customers | E17: 7830 | F17: 241683206 | H17: 25.76 | I17: 0.0124 | K17: 5417281.354 | M17: 5423987 | O17: 5423987 | P17: 6705.6456
A18: GS > 50 to 4,999 kW | B18: Customers | E18: 945 | F18: 845285977 | G18: 2236471 | H18: 170 | J18: 4.42 | K18: 11813001.82 | M18: 11181144 | N18: 631891 | O18: 11813035 | P18: 33.18
A19: Large Use | B19: Customers | E19: 1 | G19: 63002 | H19: 15948.21 | J19: 1.46 | K19: 283361.44 | M19: 245621 | N19: 37801 | O19: 283422 | P19: 60.56
A20: Streetlighting | B20: Connections | E20: 24613 | G20: 45145 | H20: 0.7 | J20: 4.6513 | K20: 416732.1385 | M20: 415846 | O20: 415846 | P20: -886.1385
A21: Unmetered Scattered Load | B21: Connections | E21: 890 | F21: 3417188 | H21: 6.89 | I21: 0.0134 | K21: 119375.5192 | M21: 119375 | O21: 119375 | P21: -0.5192
A22: Embedded Distributor Class | B22: Customers | E22: 1 | G22: 44674 | H22: 0 | J22: 2.1976 | K22: 98175.5824 | M22: 98174 | O22: 98174 | P22: -1.5824
E23: =IF(SUM(C23:D23)=0,0,AVERAGE(C23:D23)) -> 0 | K23: 0 | O23: 0 | P23: 0
E24: 0 | K24: 0 | O24: 0 | P24: 0
E25: 0 | K25: 0 | O25: 0 | P25: 0
E26: 0 | K26: 0 | O26: 0 | P26: 0
A28: Total | K28: =SUM(K16:K26) -> 39110625.97 | M28: =SUM(M16:M26) -> 38454915 | N28: =SUM(N16:N26) -> 669692 | O28: =M28+N28 -> 39124607 | P28: =O28-K28 -> 13981.0345
A30: Note
A32: 1 The class specific revenue requirements in column N must be the amounts used in the final rate design process. The total of column N should equate to the proposed base revenue requirement

Sheet App.2-W_Impacts-Res
N1: File Number: | O1: ='LDC Info'!$E$18 -> EB-2013-0147 | T1: 1
N2: Exhibit: | O2: 8
N3: Tab:
N4: Schedule:
N5: Page:
N7: Date:
B9: Appendix B
B10: Appendix 2-W
B11: Bill Impacts
B14: Customer Class: | D14: Residential
D16: Consumption | F16: 100 | G16: kWh
F18: Current Board-Approved | J18: Proposed | N18: Impact
D19: Charge Unit | F19: Rate | G19: Volume | H19: Charge | J19: Rate | K19: Volume | L19: Charge | N19: $ Change | O19: % Change
F20: ($) | H20: ($) | J20: ($) | L20: ($)
B21: Monthly Service Charge | D21: Monthly | F21: 9.76 | G21: 1 | H21: =G21*F21 -> 9.76 | J21: =+'App.2-V_Rev_Reconciliation'!H16 -> 10.5 | K21: 1 | L21: =K21*J21 -> 10.5 | N21: =L21-H21 -> 0.74 | O21: =IF((H21)=0,"",(N21/H21)) -> 0.07581967213
B22: Smart Meter Disposition Rate Rider | D22: Monthly | F22: 0.13 | G22: 1 | H22: =G22*F22 -> 0.13 | J22: 0 | K22: 1 | L22: =K22*J22 -> 0 | N22: =L22-H22 -> -0.13 | O22: =IF((H22)=0,"",(N22/H22)) -> -1
B23: Smart Meter Incremental Revenue Rate Rider | D23: Monthly | F23: 1.62 | G23: 1 | H23: 1.62 | J23: 0 | K23: 1 | L23: =K23*J23 -> 0 | N23: =L23-H23 -> -1.62 | O23: =IF((H23)=0,"",(N23/H23)) -> -1
B24: Stranded Meter Rate Rider | D24: Monthly | F24: 0 | G24: 1 | H24: 0 | J24: 3.09 | K24: 1 | L24: 3.09 | N24: 3.09
B25: Foregone Revenue Rate Rider | D25: Monthly | F25: 0 | G25: 1 | H25: 0 | J25: -0.81 | K25: 1 | L25: =K25*J25 -> -0.81 | N25: =L25-H25 -> -0.81
B26: Distribution Volumetric Rate | D26: per kWh | F26: 0.0173 | G26: =$F$16 -> 100 | H26: 1.73 | J26: =+'App.2-V_Rev_Reconciliation'!I16 -> 0.0162 | K26: =$F$16 -> 100 | L26: 1.62 | N26: -0.11 | O26: -0.06358381503
B27: LRAM & SSM Rate Rider | D27: per kWh | F27: 0.0003 | G27: =$F$16 -> 100 | H27: 0.03 | J27: 0 | K27: =$F$16 -> 100 | L27: 0 | N27: -0.03 | O27: -1
B28: Tax Change Rate Rider | D28: per kWh | F28: -0.0004 | G28: =$F$16 -> 100 | H28: -0.04 | J28: 0 | K28: 100 | L28: 0 | N28: 0.04 | O28: -1
B29: Lost CWIP | D29: per kWh | F29: 0 | G29: =$F$16 -> 100 | H29: =G29*F29 -> 0 | J29: 0.001 | K29: =$F$16 -> 100 | L29: =K29*J29 -> 0.1 | N29: =L29-H29 -> 0.1 | O29: =IF((H29)=0,"",(N29/H29)) -> 
B30: 1576 Rate Rider | D30: per kWh | F30: 0 | G30: 100 | H30: 0 | J30: -0.0065 | K30: 100 | L30: -0.65 | N30: -0.65
B31: Sub-Total A | H31: =SUM(H21:H30) -> 13.23 | L31: =SUM(L21:L30) -> 13.85 | N31: 0.62 | O31: 0.04686318972
B32: Deferral/Variance Account Disposition Rate Rider | D32: per kWh | F32: 0 | G32: =$F$16 -> 100 | H32: =G32*F32 -> 0 | J32: -0.0005 | K32: =$F$16 -> 100 | L32: =K32*J32 -> -0.05 | N32: =L32-H32 -> -0.05
B33: Global Adjustment Rate Rider | D33: per kWh | F33: 0 | G33: 100 | H33: =G33*F33 -> 0 | J33: 0.0003 | K33: 100 | L33: =K33*J33 -> 0.03 | N33: =L33-H33 -> 0.03
B34: Low Voltage Service Charge | G34: 100 | H34: =G34*F34 -> 0 | K34: 100 | L34: =K34*J34 -> 0 | N34: =L34-H34 -> 0
B35: Smart Meter Entity Charge | D35: Monthly | F35: 0.79 | G35: 1 | H35: =G35*F35 -> 0.79 | J35: 0.79 | K35: 1 | L35: =K35*J35 -> 0.79 | N35: =L35-H35 -> 0 | O35: 0
B36: Sub-Total B - Distribution (includes Sub-Total A) | H36: =SUM(H32:H34)+H31 -> 13.23 | L36: =SUM(L32:L34)+L31 -> 13.83 | N36: =L36-H36 -> 0.6 | O36: =IF((H36)=0,"",(N36/H36)) -> 0.04535147392
B37: RTSR - Network | D37: per kWh | F37: 0.0067 | G37: =F16*(1+F63) -> 103.2 | H37: =G37*F37 -> 0.69144 | J37: 0.0072 | K37: =F16*(1+J63) -> 103.51 | L37: =K37*J37 -> 0.745272 | N37: 0.053832 | O37: 0.07785491149
B38: RTSR - Line and Transformation Connection | D38: per kWh | F38: 0.0014 | G38: =G37 -> 103.2 | H38: =G38*F38 -> 0.14448 | J38: 0.0014 | K38: =K37 -> 103.51 | L38: =K38*J38 -> 0.144914 | N38: 0.000434 | O38: 0.003003875969
B39: Sub-Total C - Delivery (including Sub-Total B) | H39: =SUM(H36:H38) -> 14.06592 | L39: =SUM(L36:L38) -> 14.720186 | N39: 0.654266 | O39: 0.04651426995
B40: Wholesale Market Service Charge (WMSC) | D40: per kWh | F40: 0.0044 | G40: =G38 -> 103.2 | H40: =G40*F40 -> 0.45408 | J40: 0.0044 | K40: =K38 -> 103.51 | L40: =K40*J40 -> 0.455444 | N40: 0.001364 | O40: 0.003003875969
B41: Rural and Remote Rate Protection (RRRP) | D41: per kWh | F41: 0.0012 | G41: =G38 -> 103.2 | H41: 0.12384 | J41: 0.0013 | K41: =K38 -> 103.51 | L41: 0.134563 | N41: 0.010723 | O41: 0.0865875323
B42: Standard Supply Service Charge | D42: Monthly | F42: 0.25 | G42: 1 | H42: 0.25 | J42: 0.25 | K42: 1 | L42: 0.25 | N42: 0 | O42: 0
B43: Debt Retirement Charge (DRC) | D43: per kWh | F43: 0.007 | G43: =+F16 -> 100 | H43: 0.7 | J43: 0.007 | K43: =+F16 -> 100 | L43: 0.7 | N43: 0 | O43: 0
B44: Energy - RPP - Tier 1 | D44: per kWh | F44: 0.078 | G44: =IF($T$1=1,IF($F$16>=600,600,IF($F$16<600,$F$16*(1+$F$63),$F$16-600)),IF($T$1=2,IF($F$16>=1000,1000,IF($F$16<1000,$F$16*(1+$F$63),$F$16-1000)))) -> 103.2 | H44: =G44*F44 -> 8.0496 | J44: 0.086 | K44: =IF($T$1=1,IF($F$16>=600,600,IF($F$16<600,$F$16*(1+$J$63),$F$16-600)),IF($T$1=2,IF($F$16>=1000,1000,IF($F$16<1000,$F$16*(1+$J$63),$F$16-1000)))) -> 103.51 | L44: =K44*J44 -> 8.90186 | N44: 0.85226 | O44: 0.1058760684
B45: Energy - RPP - Tier 2 | D45: per kWh | F45: 0.091 | G45: =IF($T$1=1,IF($F$16>=600,$F$16*(1+$F$63)-600,IF($F$16<600,0,)), IF($T$1=2,IF($F$16>=1000,$F$16*(1+$F$63)-1000,IF($F$16<1000,0)))) -> 0 | H45: =G45*F45 -> 0 | J45: 0.101 | K45: =IF($T$1=1,IF($F$16>=600,$F$16*(1+$J$63)-600,IF($F$16<600,0,)), IF($T$1=2,IF($F$16>=1000,$F$16*(1+$J$63)-1000,IF($F$16<1000,0)))) -> 0 | L45: =K45*J45 -> 0 | N45: 0
B46: TOU - Off Peak | D46: per kWh | F46: 0.067 | G46: =0.64*$F$16*(1+$F$63) -> 66.048 | H46: 4.425216 | J46: 0.075 | K46: =0.64*$F$16*(1+$J$63) -> 66.2464 | L46: 4.96848 | N46: 0.543264 | O46: 0.1227655328
B47: TOU - Mid Peak | D47: per kWh | F47: 0.104 | G47: =0.18*$F$16*(1+$F$63) -> 18.576 | H47: 1.931904 | J47: 0.112 | K47: =0.18*$F$16*(1+$J$63) -> 18.6318 | L47: 2.0867616 | N47: 0.1548576 | O47: 0.08015802027
B48: TOU - On Peak | D48: per kWh | F48: 0.124 | G48: =0.18*$F$16*(1+$F$63) -> 18.576 | H48: 2.303424 | J48: 0.135 | K48: =0.18*$F$16*(1+$J$63) -> 18.6318 | L48: 2.515293 | N48: 0.211869 | O48: 0.09198002626
B50: Total Bill on RPP (before Taxes) | H50: =SUM(H39:H45) -> 23.64344 | L50: =SUM(L39:L45) -> 25.162053 | N50: 1.518613 | O50: 0.06422978213
B51: HST | F51: 0.13 | H51: =H50*F51 -> 3.0736472 | J51: 0.13 | L51: =L50*J51 -> 3.27106689 | N51: =L51-H51 -> 0.19741969 | O51: =IF((H51)=0,"",(N51/H51)) -> 0.06422978213
B52: Total Bill (including HST) | H52: =H50+H51 -> 26.7170872 | L52: =L50+L51 -> 28.43311989 | N52: =L52-H52 -> 1.71603269 | O52: =IF((H52)=0,"",(N52/H52)) -> 0.06422978213
B53: Ontario Clean Energy Benefit 1 | H53: =ROUND(-H52*10%,2) -> -2.67 | L53: =ROUND(-L52*10%,2) -> -2.84 | N53: =L53-H53 -> -0.17 | O53: =IF((H53)=0,"",(N53/H53)) -> 0.06367041199
B54: Total Bill on RPP (including OCEB) | H54: =SUM(H52:H53) -> 24.0470872 | L54: =SUM(L52:L53) -> 25.59311989 | N54: 1.54603269 | O54: 0.0642918902
B56: Total Bill on TOU (before Taxes) | H56: =SUM(H39:H43,H46:H48) -> 24.254384 | L56: =SUM(L39:L43,L46:L48) -> 25.8307276 | N56: =L56-H56 -> 1.5763436 | O56: =IF((H56)=0,"",(N56/H56)) -> 0.06499211029
B57: HST | F57: 0.13 | H57: =H56*F57 -> 3.15306992 | J57: 0.13 | L57: =L56*J57 -> 3.357994588 | N57: 0.204924668 | O57: 0.06499211029
B58: Total Bill (including HST) | H58: =H56+H57 -> 27.40745392 | L58: =L56+L57 -> 29.18872219 | N58: 1.781268268 | O58: 0.06499211029
B59: Ontario Clean Energy Benefit 1 | H59: =ROUND(-H58*10%,2) -> -2.74 | L59: =ROUND(-L58*10%,2) -> -2.92 | N59: -0.18 | O59: 0.06569343066
B60: Total Bill on TOU (including OCEB) | H60: =H58+H59 -> 24.66745392 | L60: =L58+L59 -> 26.26872219 | N60: 1.601268268 | O60: 0.06491420935
B63: Loss Factor (%) | F63: 0.032 | J63: 0.0351
A65: 1 Applicable to eligible customers only. Refer to the Ontario Clean Energy Benefit Act, 2010.
B67: Customer Class: | D67: Residential
D69: Consumption | F69: 250 | G69: kWh
F71: Current Board-Approved | J71: Proposed | N71: Impact
D72: Charge Unit | F72: Rate | G72: Volume | H72: Charge | J72: Rate | K72: Volume | L72: Charge | N72: $ Change | O72: % Change
F73: ($) | H73: ($) | J73: ($) | L73: ($)
B74: =B21 -> Monthly Service Charge | D74: Monthly | F74: =F21 -> 9.76 | G74: 1 | H74: =G74*F74 -> 9.76 | J74: =J21 -> 10.5 | K74: 1 | L74: =K74*J74 -> 10.5 | N74: =L74-H74 -> 0.74 | O74: =IF((H74)=0,"",(N74/H74)) -> 0.07581967213
B75: =B22 -> Smart Meter Disposition Rate Rider | D75: Monthly | F75: 0.13 | G75: 1 | H75: =G75*F75 -> 0.13 | J75: 0 | K75: 1 | L75: =K75*J75 -> 0 | N75: =L75-H75 -> -0.13 | O75: =IF((H75)=0,"",(N75/H75)) -> -1
B76: =B23 -> Smart Meter Incremental Revenue Rate Rider | D76: Monthly | F76: 1.62 | G76: 1 | H76: 1.62 | J76: 0 | K76: 1 | L76: =K76*J76 -> 0 | N76: =L76-H76 -> -1.62 | O76: =IF((H76)=0,"",(N76/H76)) -> -1
B77: =B24 -> Stranded Meter Rate Rider | D77: =D24 -> Monthly | F77: 0 | G77: 1 | H77: 0 | J77: 3.09 | K77: 1 | L77: 3.09 | N77: 3.09
B78: =B25 -> Foregone Revenue Rate Rider | D78: =D25 -> Monthly | F78: 0 | G78: 1 | H78: =G78*F78 -> 0 | J78: -0.81 | K78: 1 | L78: =K78*J78 -> -0.81 | N78: =L78-H78 -> -0.81 | O78: =IF((H78)=0,"",(N78/H78)) -> 
B79: Distribution Volumetric Rate | D79: per kWh | F79: 0.0173 | G79: =$F69 -> 250 | H79: 4.325 | J79: 0.0162 | K79: =$F69 -> 250 | L79: 4.05 | N79: -0.275 | O79: -0.06358381503
B80: LRAM & SSM Rate Rider | D80: per kWh | F80: 0.0003 | G80: =$F69 -> 250 | H80: 0.075 | J80: 0 | K80: =$F69 -> 250 | L80: 0 | N80: -0.075 | O80: -1
B81: Tax Change Rate Rider | D81: per kWh | F81: -0.0004 | G81: =$F69 -> 250 | H81: -0.1 | J81: 0 | K81: =$F69 -> 250 | L81: 0 | N81: 0.1 | O81: -1
B82: =B29 -> Lost CWIP | D82: =D29 -> per kWh | F82: 0 | G82: =$F69 -> 250 | H82: =G82*F82 -> 0 | J82: 0.001 | K82: =$F69 -> 250 | L82: =K82*J82 -> 0.25 | N82: =L82-H82 -> 0.25 | O82: =IF((H82)=0,"",(N82/H82)) -> 
B83: =+$B$30 -> 1576 Rate Rider | D83: =+$D$30 -> per kWh | F83: 0 | G83: =$F69 -> 250 | H83: 0 | J83: -0.0065 | K83: =$F69 -> 250 | L83: -1.625 | N83: -1.625
B84: Sub-Total A | H84: =SUM(H74:H83) -> 15.81 | L84: =SUM(L74:L83) -> 15.455 | N84: -0.355 | O84: -0.02245414295
B85: =B32 -> Deferral/Variance Account Disposition Rate Rider | D85: =D32 -> per kWh | F85: =F32 -> 0 | G85: =$F69 -> 250 | H85: =G85*F85 -> 0 | J85: =J32 -> -0.0005 | K85: =$F69 -> 250 | L85: =K85*J85 -> -0.125 | N85: =L85-H85 -> -0.125 | O85: =IF((H85)=0,"",(N85/H85)) -> 
B86: =B33 -> Global Adjustment Rate Rider | D86: =D33 -> per kWh | F86: =F33 -> 0 | G86: =$F69 -> 250 | H86: =G86*F86 -> 0 | J86: =J33 -> 0.0003 | K86: =$F69 -> 250 | L86: =K86*J86 -> 0.075 | N86: =L86-H86 -> 0.075 | O86: =IF((H86)=0,"",(N86/H86)) -> 
B87: Low Voltage Service Charge | F87: =F34 -> 0 | G87: =$F69 -> 250 | H87: =G87*F87 -> 0 | J87: =J34 -> 0 | K87: =$F69 -> 250 | L87: =K87*J87 -> 0 | N87: =L87-H87 -> 0 | O87: =IF((H87)=0,"",(N87/H87)) -> 
B88: Smart Meter Entity Charge | D88: Monthly | F88: =F35 -> 0.79 | G88: 1 | H88: =G88*F88 -> 0.79 | J88: =J35 -> 0.79 | K88: 1 | L88: =K88*J88 -> 0.79 | N88: =L88-H88 -> 0
B89: Sub-Total B - Distribution (includes Sub-Total A) | H89: =SUM(H85:H87)+H84 -> 15.81 | L89: =SUM(L85:L87)+L84 -> 15.405 | N89: =L89-H89 -> -0.405 | O89: =IF((H89)=0,"",(N89/H89)) -> -0.02561669829
B90: RTSR - Network | D90: per kWh | F90: =F37 -> 0.0067 | G90: =F69*(1+F116) -> 258 | H90: =G90*F90 -> 1.7286 | J90: =J37 -> 0.0072 | K90: =F69*(1+J116) -> 258.775 | L90: =K90*J90 -> 1.86318 | N90: 0.13458 | O90: 0.07785491149
B91: RTSR - Line and Transformation Connection | D91: per kWh | F91: =F38 -> 0.0014 | G91: =G90 -> 258 | H91: =G91*F91 -> 0.3612 | J91: =J38 -> 0.0014 | K91: =K90 -> 258.775 | L91: =K91*J91 -> 0.362285 | N91: 0.001085 | O91: 0.003003875969
B92: Sub-Total C - Delivery (including Sub-Total B) | H92: =SUM(H89:H91) -> 17.8998 | L92: =SUM(L89:L91) -> 17.630465 | N92: -0.269335 | O92: -0.01504681617
B93: Wholesale Market Service Charge (WMSC) | D93: per kWh | F93: =F40 -> 0.0044 | G93: =G91 -> 258 | H93: =G93*F93 -> 1.1352 | J93: =J40 -> 0.0044 | K93: =K91 -> 258.775 | L93: =K93*J93 -> 1.13861 | N93: 0.00341 | O93: 0.003003875969
B94: Rural and Remote Rate Protection (RRRP) | D94: per kWh | F94: 0.0012 | G94: =G91 -> 258 | H94: 0.3096 | J94: 0.0013 | K94: =K91 -> 258.775 | L94: 0.3364075 | N94: 0.0268075 | O94: 0.0865875323
B95: Standard Supply Service Charge | D95: Monthly | F95: 0.25 | G95: 1 | H95: 0.25 | J95: 0.25 | K95: 1 | L95: 0.25 | N95: 0 | O95: 0
B96: Debt Retirement Charge (DRC) | D96: per kWh | F96: 0.007 | G96: =+F69 -> 250 | H96: 1.75 | J96: 0.007 | K96: =+F69 -> 250 | L96: 1.75 | N96: 0 | O96: 0
B97: Energy - RPP - Tier 1 | D97: per kWh | F97: 0.078 | G97: =IF($T$1=1,IF($F69>=600,600,IF($F69<600,$F69*(1+$F116),$F69-600)),IF($T$1=2,IF($F69>=1000,1000,IF($F69<1000,$F69*(1+$F116),$F69-1000)))) -> 258 | H97: =G97*F97 -> 20.124 | J97: 0.086 | K97: =IF($T$1=1,IF($F69>=600,600,IF($F69<600,$F69*(1+$J116),$F69-600)),IF($T$1=2,IF($F69>=1000,1000,IF($F69<1000,$F69*(1+$J116),$F69-1000)))) -> 258.775 | L97: =K97*J97 -> 22.25465 | N97: 2.13065 | O97: 0.1058760684
B98: Energy - RPP - Tier 2 | D98: per kWh | F98: 0.091 | G98: =IF($T$1=1,IF($F69>=600,$F69*(1+$F116)-600,IF($F69<600,0,)), IF($T$1=2,IF($F69>=1000,$F69*(1+$F116)-1000,IF($F69<1000,0)))) -> 0 | H98: =G98*F98 -> 0 | J98: 0.101 | K98: =IF($T$1=1,IF($F69>=600,$F69*(1+$J116)-600,IF($F69<600,0,)), IF($T$1=2,IF($F69>=1000,$F69*(1+$J116)-1000,IF($F69<1000,0)))) -> 0 | L98: =K98*J98 -> 0 | N98: 0
B99: TOU - Off Peak | D99: per kWh | F99: 0.067 | G99: =0.64*$F69*(1+$F116) -> 165.12 | H99: =G99*F99 -> 11.06304 | J99: 0.075 | K99: =0.64*$F69*(1+$J116) -> 165.616 | L99: =K99*J99 -> 12.4212 | N99: 1.35816 | O99: 0.1227655328
B100: TOU - Mid Peak | D100: per kWh | F100: 0.104 | G100: =0.18*$F69*(1+$F116) -> 46.44 | H100: 4.82976 | J100: 0.112 | K100: =0.18*$F69*(1+$J116) -> 46.5795 | L100: 5.216904 | N100: 0.387144 | O100: 0.08015802027
B101: TOU - On Peak | D101: per kWh | F101: 0.124 | G101: =0.18*$F69*(1+$F116) -> 46.44 | H101: 5.75856 | J101: 0.135 | K101: =0.18*$F69*(1+$J116) -> 46.5795 | L101: 6.2882325 | N101: 0.5296725 | O101: 0.09198002626
B103: Total Bill on RPP (before Taxes) | H103: =SUM(H92:H98) -> 41.4686 | L103: =SUM(L92:L98) -> 43.3601325 | N103: =L103-H103 -> 1.8915325 | O103: =IF((H103)=0,"",(N103/H103)) -> 0.04561360885
B104: HST | F104: 0.13 | H104: =H103*F104 -> 5.390918 | J104: 0.13 | L104: =L103*J104 -> 5.636817225 | N104: 0.245899225 | O104: 0.04561360885
B105: Total Bill (including HST) | H105: =H103+H104 -> 46.859518 | L105: =L103+L104 -> 48.99694972 | N105: 2.137431725 | O105: 0.04561360885
B106: Ontario Clean Energy Benefit 1 | H106: =ROUND(-H105*10%,2) -> -4.69 | L106: =ROUND(-L105*10%,2) -> -4.9 | N106: -0.21 | O106: 0.0447761194
B107: Total Bill on RPP (including OCEB) | H107: =SUM(H105:H106) -> 42.169518 | L107: =SUM(L105:L106) -> 44.09694972 | N107: 1.927431725 | O107: 0.04570675256
B109: Total Bill on TOU (before Taxes) | H109: =SUM(H92:H96,H99:H101) -> 42.99596 | L109: =SUM(L92:L96,L99:L101) -> 45.031819 | N109: =L109-H109 -> 2.035859 | O109: =IF((H109)=0,"",(N109/H109)) -> 0.04735000684
B110: HST | F110: 0.13 | H110: =H109*F110 -> 5.5894748 | J110: 0.13 | L110: =L109*J110 -> 5.85413647 | N110: 0.26466167 | O110: 0.04735000684
B111: Total Bill (including HST) | H111: =H109+H110 -> 48.5854348 | L111: =L109+L110 -> 50.88595547 | N111: 2.30052067 | O111: 0.04735000684
B112: Ontario Clean Energy Benefit 1 | H112: =ROUND(-H111*10%,2) -> -4.86 | L112: =ROUND(-L111*10%,2) -> -5.09 | N112: -0.23 | O112: 0.04732510288
B113: Total Bill on TOU (including OCEB) | H113: =H111+H112 -> 43.7254348 | L113: =L111+L112 -> 45.79595547 | N113: 2.07052067 | O113: 0.04735277487
B116: Loss Factor (%) | F116: =$F$63 -> 0.032 | J116: =+J63 -> 0.0351
A118: 1 Applicable to eligible customers only. Refer to the Ontario Clean Energy Benefit Act, 2010.
B120: Customer Class: | D120: Residential
D122: Consumption | F122: 500 | G122: kWh
F124: Current Board-Approved | J124: Proposed | N124: Impact
D125: Charge Unit | F125: Rate | G125: Volume | H125: Charge | J125: Rate | K125: Volume | L125: Charge | N125: $ Change | O125: % Change
F126: ($) | H126: ($) | J126: ($) | L126: ($)
B127: =B21 -> Monthly Service Charge | D127: Monthly | F127: =F21 -> 9.76 | G127: 1 | H127: =G127*F127 -> 9.76 | J127: =J21 -> 10.5 | K127: 1 | L127: =K127*J127 -> 10.5 | N127: =L127-H127 -> 0.74 | O127: =IF((H127)=0,"",(N127/H127)) -> 0.07581967213
B128: =B22 -> Smart Meter Disposition Rate Rider | D128: Monthly | F128: 0.13 | G128: 1 | H128: =G128*F128 -> 0.13 | J128: 0 | K128: 1 | L128: =K128*J128 -> 0 | N128: =L128-H128 -> -0.13 | O128: =IF((H128)=0,"",(N128/H128)) -> -1
B129: =B23 -> Smart Meter Incremental Revenue Rate Rider | D129: Monthly | F129: 1.62 | G129: 1 | H129: 1.62 | J129: 0 | K129: 1 | L129: =K129*J129 -> 0 | N129: =L129-H129 -> -1.62 | O129: =IF((H129)=0,"",(N129/H129)) -> -1
B130: =B24 -> Stranded Meter Rate Rider | D130: =D24 -> Monthly | F130: 0 | G130: 1 | H130: 0 | J130: 3.09 | K130: 1 | L130: 3.09 | N130: 3.09
B131: =B25 -> Foregone Revenue Rate Rider | D131: =D25 -> Monthly | F131: 0 | G131: 1 | H131: =G131*F131 -> 0 | J131: -0.81 | K131: 1 | L131: =K131*J131 -> -0.81 | N131: =L131-H131 -> -0.81 | O131: =IF((H131)=0,"",(N131/H131)) -> 
B132: Distribution Volumetric Rate | D132: per kWh | F132: 0.0173 | G132: =$F122 -> 500 | H132: 8.65 | J132: 0.0162 | K132: =$F122 -> 500 | L132: 8.1 | N132: -0.55 | O132: -0.06358381503
B133: LRAM & SSM Rate Rider | D133: per kWh | F133: 0.0003 | G133: =$F122 -> 500 | H133: 0.15 | J133: 0 | K133: =$F122 -> 500 | L133: 0 | N133: -0.15 | O133: -1
B134: Tax Change Rate Rider | D134: per kWh | F134: -0.0004 | G134: =$F122 -> 500 | H134: -0.2 | J134: 0 | K134: =$F122 -> 500 | L134: 0 | N134: 0.2 | O134: -1
B135: =B29 -> Lost CWIP | D135: =D29 -> per kWh | F135: 0 | G135: =$F122 -> 500 | H135: =G135*F135 -> 0 | J135: 0.001 | K135: =$F122 -> 500 | L135: =K135*J135 -> 0.5 | N135: =L135-H135 -> 0.5 | O135: =IF((H135)=0,"",(N135/H135)) -> 
B136: =+$B$30 -> 1576 Rate Rider | D136: =+$D$30 -> per kWh | F136: 0 | G136: =$F122 -> 500 | H136: 0 | J136: -0.0065 | K136: =$F122 -> 500 | L136: -3.25 | N136: -3.25
B137: Sub-Total A | H137: =SUM(H127:H136) -> 20.11 | L137: =SUM(L127:L136) -> 18.13 | N137: -1.98 | O137: -0.09845847837
B138: =B32 -> Deferral/Variance Account Disposition Rate Rider | D138: =D32 -> per kWh | F138: =F32 -> 0 | G138: =$F122 -> 500 | H138: =G138*F138 -> 0 | J138: =J32 -> -0.0005 | K138: =$F122 -> 500 | L138: =K138*J138 -> -0.25 | N138: =L138-H138 -> -0.25 | O138: =IF((H138)=0,"",(N138/H138)) -> 
B139: =B33 -> Global Adjustment Rate Rider | D139: =D33 -> per kWh | F139: =F33 -> 0 | G139: =$F122 -> 500 | H139: =G139*F139 -> 0 | J139: =J33 -> 0.0003 | K139: =$F122 -> 500 | L139: =K139*J139 -> 0.15 | N139: =L139-H139 -> 0.15 | O139: =IF((H139)=0,"",(N139/H139)) -> 
B140: Low Voltage Service Charge | F140: =F34 -> 0 | G140: =$F122 -> 500 | H140: =G140*F140 -> 0 | J140: =J34 -> 0 | K140: =$F122 -> 500 | L140: =K140*J140 -> 0 | N140: =L140-H140 -> 0 | O140: =IF((H140)=0,"",(N140/H140)) -> 
B141: Smart Meter Entity Charge | D141: Monthly | F141: =F35 -> 0.79 | G141: 1 | H141: =G141*F141 -> 0.79 | J141: =J35 -> 0.79 | K141: 1 | L141: =K141*J141 -> 0.79 | N141: =L141-H141 -> 0
B142: Sub-Total B - Distribution (includes Sub-Total A) | H142: =SUM(H138:H140)+H137 -> 20.11 | L142: =SUM(L138:L140)+L137 -> 18.03 | N142: =L142-H142 -> -2.08 | O142: =IF((H142)=0,"",(N142/H142)) -> -0.1034311288
B143: RTSR - Network | D143: per kWh | F143: =F37 -> 0.0067 | G143: =F122*(1+F169) -> 516 | H143: =G143*F143 -> 3.4572 | J143: =J37 -> 0.0072 | K143: =F122*(1+J169) -> 517.55 | L143: =K143*J143 -> 3.72636 | N143: 0.26916 | O143: 0.07785491149
B144: RTSR - Line and Transformation Connection | D144: per kWh | F144: =F38 -> 0.0014 | G144: =G143 -> 516 | H144: =G144*F144 -> 0.7224 | J144: =J38 -> 0.0014 | K144: =K143 -> 517.55 | L144: =K144*J144 -> 0.72457 | N144: 0.00217 | O144: 0.003003875969
B145: Sub-Total C - Delivery (including Sub-Total B) | H145: =SUM(H142:H144) -> 24.2896 | L145: =SUM(L142:L144) -> 22.48093 | N145: -1.80867 | O145: -0.07446273302
B146: Wholesale Market Service Charge (WMSC) | D146: per kWh | F146: =F40 -> 0.0044 | G146: =G144 -> 516 | H146: =G146*F146 -> 2.2704 | J146: =J40 -> 0.0044 | K146: =K144 -> 517.55 | L146: =K146*J146 -> 2.27722 | N146: 0.00682 | O146: 0.003003875969
B147: Rural and Remote Rate Protection (RRRP) | D147: per kWh | F147: 0.0012 | G147: =G144 -> 516 | H147: 0.6192 | J147: 0.0013 | K147: =K144 -> 517.55 | L147: 0.672815 | N147: 0.053615 | O147: 0.0865875323
B148: Standard Supply Service Charge | D148: Monthly | F148: 0.25 | G148: 1 | H148: 0.25 | J148: 0.25 | K148: 1 | L148: 0.25 | N148: 0 | O148: 0
B149: Debt Retirement Charge (DRC) | D149: per kWh | F149: 0.007 | G149: =+F122 -> 500 | H149: 3.5 | J149: 0.007 | K149: =+F122 -> 500 | L149: 3.5 | N149: 0 | O149: 0
B150: Energy - RPP - Tier 1 | D150: per kWh | F150: 0.078 | G150: =IF($T$1=1,IF($F122>=600,600,IF($F122<600,$F122*(1+$F169),$F122-600)),IF($T$1=2,IF($F122>=1000,1000,IF($F122<1000,$F122*(1+$F169),$F122-1000)))) -> 516 | H150: =G150*F150 -> 40.248 | J150: 0.086 | K150: =IF($T$1=1,IF($F122>=600,600,IF($F122<600,$F122*(1+$J169),$F122-600)),IF($T$1=2,IF($F122>=1000,1000,IF($F122<1000,$F122*(1+$J169),$F122-1000)))) -> 517.55 | L150: =K150*J150 -> 44.5093 | N150: 4.2613 | O150: 0.1058760684
B151: Energy - RPP - Tier 2 | D151: per kWh | F151: 0.091 | G151: =IF($T$1=1,IF($F122>=600,$F122*(1+$F169)-600,IF($F122<600,0,)), IF($T$1=2,IF($F122>=1000,$F122*(1+$F169)-1000,IF($F122<1000,0)))) -> 0 | H151: =G151*F151 -> 0 | J151: 0.101 | K151: =IF($T$1=1,IF($F122>=600,$F122*(1+$J169)-600,IF($F122<600,0,)), IF($T$1=2,IF($F122>=1000,$F122*(1+$J169)-1000,IF($F122<1000,0)))) -> 0 | L151: =K151*J151 -> 0 | N151: 0
B152: TOU - Off Peak | D152: per kWh | F152: 0.067 | G152: =0.64*$F122*(1+$F169) -> 330.24 | H152: =G152*F152 -> 22.12608 | J152: 0.075 | K152: =0.64*$F122*(1+$J169) -> 331.232 | L152: =K152*J152 -> 24.8424 | N152: 2.71632 | O152: 0.1227655328
B153: TOU - Mid Peak | D153: per kWh | F153: 0.104 | G153: =0.18*$F122*(1+$F169) -> 92.88 | H153: 9.65952 | J153: 0.112 | K153: =0.18*$F122*(1+$J169) -> 93.159 | L153: 10.433808 | N153: 0.774288 | O153: 0.08015802027
B154: TOU - On Peak | D154: per kWh | F154: 0.124 | G154: =0.18*$F122*(1+$F169) -> 92.88 | H154: 11.51712 | J154: 0.135 | K154: =0.18*$F122*(1+$J169) -> 93.159 | L154: 12.576465 | N154: 1.059345 | O154: 0.09198002626
B156: Total Bill on RPP (before Taxes) | H156: =SUM(H145:H151) -> 71.1772 | L156: =SUM(L145:L151) -> 73.690265 | N156: =L156-H156 -> 2.513065 | O156: =IF((H156)=0,"",(N156/H156)) -> 0.03530716297
B157: HST | F157: 0.13 | H157: =H156*F157 -> 9.253036 | J157: 0.13 | L157: =L156*J157 -> 9.57973445 | N157: 0.32669845 | O157: 0.03530716297
B158: Total Bill (including HST) | H158: =H156+H157 -> 80.430236 | L158: =L156+L157 -> 83.26999945 | N158: 2.83976345 | O158: 0.03530716297
B159: Ontario Clean Energy Benefit 1 | H159: =ROUND(-H158*10%,2) -> -8.04 | L159: =ROUND(-L158*10%,2) -> -8.33 | N159: -0.29 | O159: 0.03606965174
B160: Total Bill on RPP (including OCEB) | H160: =SUM(H158:H159) -> 72.390236 | L160: =SUM(L158:L159) -> 74.93999945 | N160: 2.54976345 | O160: 0.03522247738
B162: Total Bill on TOU (before Taxes) | H162: =SUM(H145:H149,H152:H154) -> 74.23192 | L162: =SUM(L145:L149,L152:L154) -> 77.033638 | N162: =L162-H162 -> 2.801718 | O162: =IF((H162)=0,"",(N162/H162)) -> 0.03774276618
B163: HST | F163: 0.13 | H163: =H162*F163 -> 9.6501496 | J163: 0.13 | L163: =L162*J163 -> 10.01437294 | N163: 0.36422334 | O163: 0.03774276618
B164: Total Bill (including HST) | H164: =H162+H163 -> 83.8820696 | L164: =L162+L163 -> 87.04801094 | N164: 3.16594134 | O164: 0.03774276618
B165: Ontario Clean Energy Benefit 1 | H165: =ROUND(-H164*10%,2) -> -8.39 | L165: =ROUND(-L164*10%,2) -> -8.7 | N165: -0.31 | O165: 0.03694874851
B166: Total Bill on TOU (including OCEB) | H166: =H164+H165 -> 75.4920696 | L166: =L164+L165 -> 78.34801094 | N166: 2.85594134 | O166: 0.03783101133
B169: Loss Factor (%) | F169: =$F$63 -> 0.032 | J169: =+J116 -> 0.0351
A171: 1 Applicable to eligible customers only. Refer to the Ontario Clean Energy Benefit Act, 2010.
B173: Customer Class: | D173: Residential
D175: Consumption | F175: 800 | G175: kWh
F177: Current Board-Approved | J177: Proposed | N177: Impact
D178: Charge Unit | F178: Rate | G178: Volume | H178: Charge | J178: Rate | K178: Volume | L178: Charge | N178: $ Change | O178: % Change
F179: ($) | H179: ($) | J179: ($) | L179: ($)
B180: =B21 -> Monthly Service Charge | D180: Monthly | F180: =F21 -> 9.76 | G180: 1 | H180: =G180*F180 -> 9.76 | J180: =J21 -> 10.5 | K180: 1 | L180: =K180*J180 -> 10.5 | N180: =L180-H180 -> 0.74 | O180: =IF((H180)=0,"",(N180/H180)) -> 0.07581967213
B181: =B22 -> Smart Meter Disposition Rate Rider | D181: Monthly | F181: 0.13 | G181: 1 | H181: =G181*F181 -> 0.13 | J181: 0 | K181: 1 | L181: =K181*J181 -> 0 | N181: =L181-H181 -> -0.13 | O181: =IF((H181)=0,"",(N181/H181)) -> -1
B182: =B23 -> Smart Meter Incremental Revenue Rate Rider | D182: Monthly | F182: 1.62 | G182: 1 | H182: 1.62 | J182: 0 | K182: 1 | L182: =K182*J182 -> 0 | N182: =L182-H182 -> -1.62 | O182: =IF((H182)=0,"",(N182/H182)) -> -1
B183: =B24 -> Stranded Meter Rate Rider | D183: =D24 -> Monthly | F183: 0 | G183: 1 | H183: 0 | J183: 3.09 | K183: 1 | L183: 3.09 | N183: 3.09
B184: =B25 -> Foregone Revenue Rate Rider | D184: =D25 -> Monthly | F184: 0 | G184: 1 | H184: =G184*F184 -> 0 | J184: -0.81 | K184: 1 | L184: =K184*J184 -> -0.81 | N184: =L184-H184 -> -0.81 | O184: =IF((H184)=0,"",(N184/H184)) -> 
B185: Distribution Volumetric Rate | D185: per kWh | F185: 0.0173 | G185: =$F175 -> 800 | H185: 13.84 | J185: 0.0162 | K185: =$F175 -> 800 | L185: 12.96 | N185: -0.88 | O185: -0.06358381503
B186: LRAM & SSM Rate Rider | D186: per kWh | F186: 0.0003 | G186: =$F175 -> 800 | H186: 0.24 | J186: 0 | K186: =$F175 -> 800 | L186: 0 | N186: -0.24 | O186: -1
B187: Tax Change Rate Rider | D187: per kWh | F187: -0.0004 | G187: =$F175 -> 800 | H187: -0.32 | J187: 0 | K187: =$F175 -> 800 | L187: 0 | N187: 0.32 | O187: -1
B188: =B29 -> Lost CWIP | D188: =D29 -> per kWh | F188: 0 | G188: =$F175 -> 800 | H188: =G188*F188 -> 0 | J188: 0.001 | K188: =$F175 -> 800 | L188: =K188*J188 -> 0.8 | N188: =L188-H188 -> 0.8 | O188: =IF((H188)=0,"",(N188/H188)) -> 
B189: =+$B$30 -> 1576 Rate Rider | D189: =+$D$30 -> per kWh | F189: 0 | G189: =$F175 -> 800 | H189: 0 | J189: -0.0065 | K189: =$F175 -> 800 | L189: -5.2 | N189: -5.2
B190: Sub-Total A | H190: =SUM(H180:H189) -> 25.27 | L190: =SUM(L180:L189) -> 21.34 | N190: -3.93 | O190: -0.1555203799
B191: =B32 -> Deferral/Variance Account Disposition Rate Rider | D191: =D32 -> per kWh | F191: =F32 -> 0 | G191: =$F175 -> 800 | H191: =G191*F191 -> 0 | J191: =J32 -> -0.0005 | K191: =$F175 -> 800 | L191: =K191*J191 -> -0.4 | N191: =L191-H191 -> -0.4 | O191: =IF((H191)=0,"",(N191/H191)) -> 
B192: =B33 -> Global Adjustment Rate Rider | D192: =D33 -> per kWh | F192: =F33 -> 0 | G192: =$F175 -> 800 | H192: =G192*F192 -> 0 | J192: =J33 -> 0.0003 | K192: =$F175 -> 800 | L192: =K192*J192 -> 0.24 | N192: =L192-H192 -> 0.24 | O192: =IF((H192)=0,"",(N192/H192)) -> 
B193: Low Voltage Service Charge | F193: =F34 -> 0 | G193: =$F175 -> 800 | H193: =G193*F193 -> 0 | J193: =J34 -> 0 | K193: =$F175 -> 800 | L193: =K193*J193 -> 0 | N193: =L193-H193 -> 0 | O193: =IF((H193)=0,"",(N193/H193)) -> 
B194: Smart Meter Entity Charge | D194: Monthly | F194: =F35 -> 0.79 | G194: 1 | H194: =G194*F194 -> 0.79 | J194: =J35 -> 0.79 | K194: 1 | L194: =K194*J194 -> 0.79 | N194: =L194-H194 -> 0
B195: Sub-Total B - Distribution (includes Sub-Total A) | H195: =SUM(H191:H193)+H190 -> 25.27 | L195: =SUM(L191:L193)+L190 -> 21.18 | N195: =L195-H195 -> -4.09 | O195: =IF((H195)=0,"",(N195/H195)) -> -0.1618519984
B196: RTSR - Network | D196: per kWh | F196: =F37 -> 0.0067 | G196: =F175*(1+F222) -> 825.6 | H196: =G196*F196 -> 5.53152 | J196: =J37 -> 0.0072 | K196: =F175*(1+J222) -> 828.08 | L196: =K196*J196 -> 5.962176 | N196: 0.430656 | O196: 0.07785491149
B197: RTSR - Line and Transformation Connection | D197: per kWh | F197: =F38 -> 0.0014 | G197: =G196 -> 825.6 | H197: =G197*F197 -> 1.15584 | J197: =J38 -> 0.0014 | K197: =K196 -> 828.08 | L197: =K197*J197 -> 1.159312 | N197: 0.003472 | O197: 0.003003875969
B198: Sub-Total C - Delivery (including Sub-Total B) | H198: =SUM(H195:H197) -> 31.95736 | L198: =SUM(L195:L197) -> 28.301488 | N198: -3.655872 | O198: -0.1143984359
B199: Wholesale Market Service Charge (WMSC) | D199: per kWh | F199: =F40 -> 0.0044 | G199: =G197 -> 825.6 | H199: =G199*F199 -> 3.63264 | J199: =J40 -> 0.0044 | K199: =K197 -> 828.08 | L199: =K199*J199 -> 3.643552 | N199: 0.010912 | O199: 0.003003875969
B200: Rural and Remote Rate Protection (RRRP) | D200: per kWh | F200: 0.0012 | G200: =G197 -> 825.6 | H200: 0.99072 | J200: 0.0013 | K200: =K197 -> 828.08 | L200: 1.076504 | N200: 0.085784 | O200: 0.0865875323
B201: Standard Supply Service Charge | D201: Monthly | F201: 0.25 | G201: 1 | H201: 0.25 | J201: 0.25 | K201: 1 | L201: 0.25 | N201: 0 | O201: 0
B202: Debt Retirement Charge (DRC) | D202: per kWh | F202: 0.007 | G202: =+F175 -> 800 | H202: 5.6 | J202: 0.007 | K202: =+F175 -> 800 | L202: 5.6 | N202: 0 | O202: 0
B203: Energy - RPP - Tier 1 | D203: per kWh | F203: 0.078 | G203: =IF($T$1=1,IF($F175>=600,600,IF($F175<600,$F175*(1+$F222),$F175-600)),IF($T$1=2,IF($F175>=1000,1000,IF($F175<1000,$F175*(1+$F222),$F175-1000)))) -> 600 | H203: =G203*F203 -> 46.8 | J203: 0.086 | K203: =IF($T$1=1,IF($F175>=600,600,IF($F175<600,$F175*(1+$J222),$F175-600)),IF($T$1=2,IF($F175>=1000,1000,IF($F175<1000,$F175*(1+$J222),$F175-1000)))) -> 600 | L203: =K203*J203 -> 51.6 | N203: 4.8 | O203: 0.1025641026
B204: Energy - RPP - Tier 2 | D204: per kWh | F204: 0.091 | G204: =IF($T$1=1,IF($F175>=600,$F175*(1+$F222)-600,IF($F175<600,0,)), IF($T$1=2,IF($F175>=1000,$F175*(1+$F222)-1000,IF($F175<1000,0)))) -> 225.6 | H204: =G204*F204 -> 20.5296 | J204: 0.101 | K204: =IF($T$1=1,IF($F175>=600,$F175*(1+$J222)-600,IF($F175<600,0,)), IF($T$1=2,IF($F175>=1000,$F175*(1+$J222)-1000,IF($F175<1000,0)))) -> 228.08 | L204: =K204*J204 -> 23.03608 | N204: 2.50648 | O204: 0.1220910295
B205: TOU - Off Peak | D205: per kWh | F205: 0.067 | G205: =0.64*$F175*(1+$F222) -> 528.384 | H205: =G205*F205 -> 35.401728 | J205: 0.075 | K205: =0.64*$F175*(1+$J222) -> 529.9712 | L205: =K205*J205 -> 39.74784 | N205: 4.346112 | O205: 0.1227655328
B206: TOU - Mid Peak | D206: per kWh | F206: 0.104 | G206: =0.18*$F175*(1+$F222) -> 148.608 | H206: 15.455232 | J206: 0.112 | K206: =0.18*$F175*(1+$J222) -> 149.0544 | L206: 16.6940928 | N206: 1.2388608 | O206: 0.08015802027
B207: TOU - On Peak | D207: per kWh | F207: 0.124 | G207: =0.18*$F175*(1+$F222) -> 148.608 | H207: 18.427392 | J207: 0.135 | K207: =0.18*$F175*(1+$J222) -> 149.0544 | L207: 20.122344 | N207: 1.694952 | O207: 0.09198002626
B209: Total Bill on RPP (before Taxes) | H209: =SUM(H198:H204) -> 109.76032 | L209: =SUM(L198:L204) -> 113.507624 | N209: =L209-H209 -> 3.747304 | O209: =IF((H209)=0,"",(N209/H209)) -> 0.03414078968
B210: HST | F210: 0.13 | H210: =H209*F210 -> 14.2688416 | J210: 0.13 | L210: =L209*J210 -> 14.75599112 | N210: 0.48714952 | O210: 0.03414078968
B211: Total Bill (including HST) | H211: =H209+H210 -> 124.0291616 | L211: =L209+L210 -> 128.2636151 | N211: 4.23445352 | O211: 0.03414078968
B212: Ontario Clean Energy Benefit 1 | H212: =ROUND(-H211*10%,2) -> -12.4 | L212: =ROUND(-L211*10%,2) -> -12.83 | N212: -0.43 | O212: 0.03467741935
B213: Total Bill on RPP (including OCEB) | H213: =SUM(H211:H212) -> 111.6291616 | L213: =SUM(L211:L212) -> 115.4336151 | N213: 3.80445352 | O213: 0.03408117973
B215: Total Bill on TOU (before Taxes) | H215: =SUM(H198:H202,H205:H207) -> 111.715072 | L215: =SUM(L198:L202,L205:L207) -> 115.4358208 | N215: =L215-H215 -> 3.7207488 | O215: =IF((H215)=0,"",(N215/H215)) -> 0.03330570113
B216: HST | F216: 0.13 | H216: =H215*F216 -> 14.52295936 | J216: 0.13 | L216: =L215*J216 -> 15.0066567 | N216: 0.483697344 | O216: 0.03330570113
B217: Total Bill (including HST) | H217: =H215+H216 -> 126.2380314 | L217: =L215+L216 -> 130.4424775 | N217: 4.204446144 | O217: 0.03330570113
B218: Ontario Clean Energy Benefit 1 | H218: =ROUND(-H217*10%,2) -> -12.62 | L218: =ROUND(-L217*10%,2) -> -13.04 | N218: -0.42 | O218: 0.03328050713
B219: Total Bill on TOU (including OCEB) | H219: =H217+H218 -> 113.6180314 | L219: =L217+L218 -> 117.4024775 | N219: 3.784446144 | O219: 0.03330849953
B222: Loss Factor (%) | F222: =+F169 -> 0.032 | J222: =+J169 -> 0.0351
A224: 1 Applicable to eligible customers only. Refer to the Ontario Clean Energy Benefit Act, 2010.
B226: Customer Class: | D226: Residential
D228: Consumption | F228: 1000 | G228: kWh
F230: Current Board-Approved | J230: Proposed | N230: Impact
D231: Charge Unit | F231: Rate | G231: Volume | H231: Charge | J231: Rate | K231: Volume | L231: Charge | N231: $ Change | O231: % Change
F232: ($) | H232: ($) | J232: ($) | L232: ($)
B233: =B21 -> Monthly Service Charge | D233: Monthly | F233: =F21 -> 9.76 | G233: 1 | H233: =G233*F233 -> 9.76 | J233: =J21 -> 10.5 | K233: 1 | L233: =K233*J233 -> 10.5 | N233: =L233-H233 -> 0.74 | O233: =IF((H233)=0,"",(N233/H233)) -> 0.07581967213
B234: =B22 -> Smart Meter Disposition Rate Rider | D234: Monthly | F234: 0.13 | G234: 1 | H234: =G234*F234 -> 0.13 | J234: 0 | K234: 1 | L234: =K234*J234 -> 0 | N234: =L234-H234 -> -0.13 | O234: =IF((H234)=0,"",(N234/H234)) -> -1
B235: =B23 -> Smart Meter Incremental Revenue Rate Rider | D235: Monthly | F235: 1.62 | G235: 1 | H235: 1.62 | J235: 0 | K235: 1 | L235: =K235*J235 -> 0 | N235: =L235-H235 -> -1.62 | O235: =IF((H235)=0,"",(N235/H235)) -> -1
B236: =B24 -> Stranded Meter Rate Rider | D236: =D24 -> Monthly | F236: 0 | G236: 1 | H236: 0 | J236: 3.09 | K236: 1 | L236: 3.09 | N236: 3.09
B237: =B25 -> Foregone Revenue Rate Rider | D237: =D25 -> Monthly | F237: 0 | G237: 1 | H237: =G237*F237 -> 0 | J237: -0.81 | K237: 1 | L237: =K237*J237 -> -0.81 | N237: =L237-H237 -> -0.81 | O237: =IF((H237)=0,"",(N237/H237)) -> 
B238: Distribution Volumetric Rate | D238: per kWh | F238: 0.0173 | G238: =$F228 -> 1000 | H238: 17.3 | J238: 0.0162 | K238: =$F228 -> 1000 | L238: 16.2 | N238: -1.1 | O238: -0.06358381503
... 133 more rows

Sheet App.2-W_Impacts-GS Less
N1: File Number: | O1: ='LDC Info'!$E$18 -> EB-2013-0147 | T1: 1
N2: Exhibit: | O2: 8
N3: Tab:
N4: Schedule:
N5: Page:
N7: Date:
B10: Appendix 2-W
B11: Bill Impacts
B14: Customer Class: | D14: GS<50kW
D16: Consumption | F16: 1000 | G16: kWh
F18: Current Board-Approved | J18: Proposed | N18: Impact
D19: Charge Unit | F19: Rate | G19: Volume | H19: Charge | J19: Rate | K19: Volume | L19: Charge | N19: $ Change | O19: % Change
F20: ($) | H20: ($) | J20: ($) | L20: ($)
B21: Monthly Service Charge | D21: Monthly | F21: 25.71 | G21: 1 | H21: =G21*F21 -> 25.71 | J21: =+'App.2-V_Rev_Reconciliation'!H17 -> 25.76 | K21: 1 | L21: =K21*J21 -> 25.76 | N21: =L21-H21 -> 0.05 | O21: =IF((H21)=0,"",(N21/H21)) -> 0.001944768573
B22: Smart Meter Disposition Rate Rider | D22: Monthly | F22: 8.42 | G22: 1 | H22: =G22*F22 -> 8.42 | J22: 0 | K22: 1 | L22: =K22*J22 -> 0 | N22: =L22-H22 -> -8.42 | O22: =IF((H22)=0,"",(N22/H22)) -> -1
B23: Smart Meter Incremental Revenue Rate Rider | D23: Monthly | F23: 5.55 | G23: 1 | H23: 5.55 | J23: 0 | K23: 1 | L23: =K23*J23 -> 0 | N23: =L23-H23 -> -5.55 | O23: =IF((H23)=0,"",(N23/H23)) -> -1
B24: Stranded Meter Rate Rider | D24: Monthly | F24: 0 | G24: 1 | H24: 0 | J24: 12.63 | K24: 1 | L24: 12.63 | N24: 12.63
B25: Foregone Revenue Rate Rider | D25: Monthly | F25: 0 | G25: 1 | H25: =G25*F25 -> 0 | J25: -2.75 | K25: 1 | L25: =K25*J25 -> -2.75 | N25: =L25-H25 -> -2.75 | O25: =IF((H25)=0,"",(N25/H25)) -> 
B26: Distribution Volumetric Rate | D26: per kWh | F26: 0.0124 | G26: =$F16 -> 1000 | H26: =G26*F26 -> 12.4 | J26: =+'App.2-V_Rev_Reconciliation'!I17 -> 0.0124 | K26: =$F16 -> 1000 | L26: =K26*J26 -> 12.4 | N26: =L26-H26 -> 0 | O26: =IF((H26)=0,"",(N26/H26)) -> 0
B27: LRAM & SSM Rate Rider | D27: per kWh | F27: 0.0001 | G27: =$F16 -> 1000 | H27: 0.1 | J27: 0 | K27: =$F16 -> 1000 | L27: 0 | N27: -0.1 | O27: -1
B28: Tax Change Rate Rider | D28: per kWh | F28: -0.0003 | G28: =$F16 -> 1000 | H28: -0.3 | J28: 0 | K28: =$F16 -> 1000 | L28: 0 | N28: 0.3 | O28: -1
B29: Lost CWIP | D29: per kWh | G29: =$F16 -> 1000 | H29: =G29*F29 -> 0 | J29: 0.0006 | K29: =$F16 -> 1000 | L29: =K29*J29 -> 0.6 | N29: =L29-H29 -> 0.6 | O29: =IF((H29)=0,"",(N29/H29)) -> 
B30: 1576 Rate Rider | D30: per kWh | F30: 0 | G30: =$F16 -> 1000 | H30: 0 | J30: -0.0043 | K30: =$F16 -> 1000 | L30: -4.3 | N30: -4.3
B31: Sub-Total A | H31: =SUM(H21:H30) -> 51.88 | L31: =SUM(L21:L30) -> 44.34 | N31: -7.54 | O31: -0.1453353894
B32: Deferral/Variance Account Disposition Rate Rider | D32: per kWh | F32: 0 | G32: =$F16 -> 1000 | H32: =G32*F32 -> 0 | J32: 0.0001 | K32: =$F16 -> 1000 | L32: =K32*J32 -> 0.1 | N32: =L32-H32 -> 0.1 | O32: =IF((H32)=0,"",(N32/H32)) -> 
B33: Global Adjustment Rate Rider | D33: per kWh | F33: 0 | G33: =$F16 -> 1000 | H33: =G33*F33 -> 0 | J33: 0.0008 | K33: =$F16 -> 1000 | L33: =K33*J33 -> 0.8 | N33: =L33-H33 -> 0.8 | O33: =IF((H33)=0,"",(N33/H33)) -> 
B34: Low Voltage Service Charge | G34: =$F16 -> 1000 | H34: =G34*F34 -> 0 | K34: =$F16 -> 1000 | L34: =K34*J34 -> 0 | N34: =L34-H34 -> 0 | O34: =IF((H34)=0,"",(N34/H34)) -> 
B35: Smart Meter Entity Charge | D35: Monthly | F35: 0.79 | G35: 1 | H35: =G35*F35 -> 0.79 | J35: 0.79 | K35: 1 | L35: =K35*J35 -> 0.79 | N35: =L35-H35 -> 0
B36: Sub-Total B - Distribution (includes Sub-Total A) | H36: =SUM(H32:H34)+H31 -> 51.88 | L36: =SUM(L32:L34)+L31 -> 45.24 | N36: =L36-H36 -> -6.64 | O36: =IF((H36)=0,"",(N36/H36)) -> -0.1279876638
B37: RTSR - Network | D37: per kWh | F37: 0.0058 | G37: =F16*(1+F63) -> 1032 | H37: =G37*F37 -> 5.9856 | J37: 0.0062 | K37: =F16*(1+J63) -> 1035.1 | L37: =K37*J37 -> 6.41762 | N37: 0.43202 | O37: 0.07217655707
B38: RTSR - Line and Transformation Connection | D38: per kWh | F38: 0.0013 | G38: =G37 -> 1032 | H38: =G38*F38 -> 1.3416 | J38: 0.0013 | K38: =K37 -> 1035.1 | L38: =K38*J38 -> 1.34563 | N38: 0.00403 | O38: 0.003003875969
B39: Sub-Total C - Delivery (including Sub-Total B) | H39: =SUM(H36:H38) -> 59.2072 | L39: =SUM(L36:L38) -> 53.00325 | N39: -6.20395 | O39: -0.1047837087
B40: Wholesale Market Service Charge (WMSC) | D40: per kWh | F40: 0.0044 | G40: =G38 -> 1032 | H40: =G40*F40 -> 4.5408 | J40: 0.0044 | K40: =K38 -> 1035.1 | L40: =K40*J40 -> 4.55444 | N40: 0.01364 | O40: 0.003003875969
B41: Rural and Remote Rate Protection (RRRP) | D41: per kWh | F41: 0.0012 | G41: =G38 -> 1032 | H41: 1.2384 | J41: 0.0013 | K41: =K38 -> 1035.1 | L41: 1.34563 | N41: 0.10723 | O41: 0.0865875323
B42: Standard Supply Service Charge | D42: Monthly | F42: 0.25 | G42: 1 | H42: 0.25 | J42: 0.25 | K42: 1 | L42: 0.25 | N42: 0 | O42: 0
B43: Debt Retirement Charge (DRC) | D43: per kWh | F43: 0.007 | G43: =+F16 -> 1000 | H43: 7 | J43: 0.007 | K43: =K41 -> 1035.1 | L43: 7.2457 | N43: 0.2457 | O43: 0.0351
B44: Energy - RPP - Tier 1 | D44: per kWh | F44: ='App.2-W_Impacts-Res'!F44 -> 0.078 | G44: =IF($T$1=1,IF($F16>=600,600,IF($F16<600,$F16*(1+$F63),$F16-600)),IF($T$1=2,IF($F16>=1000,1000,IF($F16<1000,$F16*(1+$F63),$F16-1000)))) -> 600 | H44: =G44*F44 -> 46.8 | J44: ='App.2-W_Impacts-Res'!J44 -> 0.086 | K44: =IF($T$1=1,IF($F16>=600,600,IF($F16<600,$F16*(1+$J63),$F16-600)),IF($T$1=2,IF($F16>=1000,1000,IF($F16<1000,$F16*(1+$J63),$F16-1000)))) -> 600 | L44: =K44*J44 -> 51.6 | N44: 4.8 | O44: 0.1025641026
B45: Energy - RPP - Tier 2 | D45: per kWh | F45: ='App.2-W_Impacts-Res'!F45 -> 0.091 | G45: =IF($T$1=1,IF($F16>=600,$F16*(1+$F63)-600,IF($F16<600,0,)), IF($T$1=2,IF($F16>=1000,$F16*(1+$F63)-1000,IF($F16<1000,0)))) -> 432 | H45: =G45*F45 -> 39.312 | J45: ='App.2-W_Impacts-Res'!J45 -> 0.101 | K45: =IF($T$1=1,IF($F16>=600,$F16*(1+$J63)-600,IF($F16<600,0,)), IF($T$1=2,IF($F16>=1000,$F16*(1+$J63)-1000,IF($F16<1000,0)))) -> 435.1 | L45: =K45*J45 -> 43.9451 | N45: 4.6331 | O45: 0.1178545991
B46: TOU - Off Peak | D46: per kWh | F46: ='App.2-W_Impacts-Res'!F46 -> 0.067 | G46: =0.64*$F16*(1+$F63) -> 660.48 | H46: =G46*F46 -> 44.25216 | J46: ='App.2-W_Impacts-Res'!J46 -> 0.075 | K46: =0.64*$F16*(1+$J63) -> 662.464 | L46: =K46*J46 -> 49.6848 | N46: 5.43264 | O46: 0.1227655328
B47: TOU - Mid Peak | D47: per kWh | F47: ='App.2-W_Impacts-Res'!F47 -> 0.104 | G47: =0.18*$F16*(1+$F63) -> 185.76 | H47: 19.31904 | J47: ='App.2-W_Impacts-Res'!J47 -> 0.112 | K47: =0.18*$F16*(1+$J63) -> 186.318 | L47: 20.867616 | N47: 1.548576 | O47: 0.08015802027
B48: TOU - On Peak | D48: per kWh | F48: ='App.2-W_Impacts-Res'!F48 -> 0.124 | G48: =0.18*$F16*(1+$F63) -> 185.76 | H48: 23.03424 | J48: ='App.2-W_Impacts-Res'!J48 -> 0.135 | K48: =0.18*$F16*(1+$J63) -> 186.318 | L48: 25.15293 | N48: 2.11869 | O48: 0.09198002626
B50: Total Bill on RPP (before Taxes) | H50: =SUM(H39:H45) -> 158.3484 | L50: =SUM(L39:L45) -> 161.94412 | N50: =L50-H50 -> 3.59572 | O50: =IF((H50)=0,"",(N50/H50)) -> 0.02270764971
B51: HST | F51: 0.13 | H51: =H50*F51 -> 20.585292 | J51: 0.13 | L51: =L50*J51 -> 21.0527356 | N51: 0.4674436 | O51: 0.02270764971
B52: Total Bill (including HST) | H52: =H50+H51 -> 178.933692 | L52: =L50+L51 -> 182.9968556 | N52: 4.0631636 | O52: 0.02270764971
B53: Ontario Clean Energy Benefit 1 | H53: =ROUND(-H52*10%,2) -> -17.89 | L53: =ROUND(-L52*10%,2) -> -18.3 | N53: -0.41 | O53: 0.02291783119
B54: Total Bill on RPP (including OCEB) | H54: =SUM(H52:H53) -> 161.043692 | L54: =SUM(L52:L53) -> 164.6968556 | N54: 3.6531636 | O54: 0.0226843011
B56: Total Bill on TOU (before Taxes) | H56: =SUM(H39:H43,H46:H48) -> 158.84184 | L56: =SUM(L39:L43,L46:L48) -> 162.104366 | N56: =L56-H56 -> 3.262526 | O56: =IF((H56)=0,"",(N56/H56)) -> 0.0205394624
B57: HST | F57: 0.13 | H57: =H56*F57 -> 20.6494392 | J57: 0.13 | L57: =L56*J57 -> 21.07356758 | N57: 0.42412838 | O57: 0.0205394624
B58: Total Bill (including HST) | H58: =H56+H57 -> 179.4912792 | L58: =L56+L57 -> 183.1779336 | N58: 3.68665438 | O58: 0.0205394624
B59: Ontario Clean Energy Benefit 1 | H59: =ROUND(-H58*10%,2) -> -17.95 | L59: =ROUND(-L58*10%,2) -> -18.32 | N59: -0.37 | O59: 0.02061281337
B60: Total Bill on TOU (including OCEB) | H60: =H58+H59 -> 161.5412792 | L60: =L58+L59 -> 164.8579336 | N60: 3.31665438 | O60: 0.02053131185
B63: Loss Factor (%) | F63: ='App.2-W_Impacts-Res'!$F$63 -> 0.032 | J63: ='App.2-W_Impacts-Res'!$J$63 -> 0.0351
A65: 1 Applicable to eligible customers only. Refer to the Ontario Clean Energy Benefit Act, 2010.
B67: Customer Class: | D67: GS<50kW
D69: Consumption | F69: 2000 | G69: kWh
F71: Current Board-Approved | J71: Proposed | N71: Impact
D72: Charge Unit | F72: Rate | G72: Volume | H72: Charge | J72: Rate | K72: Volume | L72: Charge | N72: $ Change | O72: % Change
F73: ($) | H73: ($) | J73: ($) | L73: ($)
B74: =B21 -> Monthly Service Charge | D74: =D21 -> Monthly | F74: =F21 -> 25.71 | G74: 1 | H74: =G74*F74 -> 25.71 | J74: =J21 -> 25.76 | K74: 1 | L74: =K74*J74 -> 25.76 | N74: =L74-H74 -> 0.05 | O74: =IF((H74)=0,"",(N74/H74)) -> 0.001944768573
B75: Smart Meter Disposition Rate Rider | D75: Monthly | F75: 8.42 | G75: 1 | H75: =G75*F75 -> 8.42 | J75: 0 | K75: 1 | L75: =K75*J75 -> 0 | N75: =L75-H75 -> -8.42 | O75: =IF((H75)=0,"",(N75/H75)) -> -1
B76: Smart Meter Incremental Revenue Rate Rider | D76: Monthly | F76: 5.55 | G76: 1 | H76: 5.55 | J76: 0 | K76: 1 | L76: =K76*J76 -> 0 | N76: =L76-H76 -> -5.55 | O76: =IF((H76)=0,"",(N76/H76)) -> -1
B77: Stranded Meter Rate Rider | C77: =C24 -> 0 | D77: Monthly | F77: 0 | G77: 1 | H77: 0 | J77: 12.63 | K77: 1 | L77: 12.63 | N77: 12.63
B78: Foregone Revenue Rate Rider | C78: =C25 -> 0 | D78: Monthly | F78: 0 | G78: 1 | H78: =G78*F78 -> 0 | J78: -2.75 | K78: 1 | L78: =K78*J78 -> -2.75 | N78: =L78-H78 -> -2.75 | O78: =IF((H78)=0,"",(N78/H78)) -> 
B79: Distribution Volumetric Rate | D79: per kWh | F79: 0.0124 | G79: =$F69 -> 2000 | H79: =G79*F79 -> 24.8 | J79: 0.0124 | K79: =$F69 -> 2000 | L79: =K79*J79 -> 24.8 | N79: =L79-H79 -> 0 | O79: =IF((H79)=0,"",(N79/H79)) -> 0
B80: LRAM & SSM Rate Rider | D80: per kWh | F80: 0.0001 | G80: =$F69 -> 2000 | H80: 0.2 | J80: 0 | K80: =$F69 -> 2000 | L80: 0 | N80: -0.2 | O80: -1
B81: Tax Change Rate Rider | D81: per kWh | F81: -0.0003 | G81: =$F69 -> 2000 | H81: -0.6 | J81: 0 | K81: =$F69 -> 2000 | L81: 0 | N81: 0.6 | O81: -1
B82: Lost CWIP | C82: =C29 -> 0 | D82: per kWh | F82: 0 | G82: =$F69 -> 2000 | H82: =G82*F82 -> 0 | J82: 0.0006 | K82: =$F69 -> 2000 | L82: =K82*J82 -> 1.2 | N82: =L82-H82 -> 1.2 | O82: =IF((H82)=0,"",(N82/H82)) -> 
B83: 1576 Rate Rider | D83: per kWh | F83: 0 | G83: =$F69 -> 2000 | H83: 0 | J83: -0.0043 | K83: =$F69 -> 2000 | L83: -8.6 | N83: -8.6
B84: Sub-Total A | H84: =SUM(H74:H83) -> 64.08 | L84: =SUM(L74:L83) -> 53.04 | N84: -11.04 | O84: -0.1722846442
B85: =B32 -> Deferral/Variance Account Disposition Rate Rider | C85: 0 | D85: per kWh | F85: =F32 -> 0 | G85: =$F69 -> 2000 | H85: =G85*F85 -> 0 | J85: =J32 -> 0.0001 | K85: =$F69 -> 2000 | L85: =K85*J85 -> 0.2 | N85: =L85-H85 -> 0.2 | O85: =IF((H85)=0,"",(N85/H85)) -> 
B86: Global Adjustment Rate Rider | C86: 0 | D86: per kWh | F86: =F33 -> 0 | G86: =$F69 -> 2000 | H86: =G86*F86 -> 0 | J86: =J33 -> 0.0008 | K86: =$F69 -> 2000 | L86: =K86*J86 -> 1.6 | N86: =L86-H86 -> 1.6 | O86: =IF((H86)=0,"",(N86/H86)) -> 
B87: =B34 -> Low Voltage Service Charge | D87: =D34 -> 0 | F87: =F34 -> 0 | G87: =$F69 -> 2000 | H87: =G87*F87 -> 0 | J87: =J34 -> 0 | K87: =$F69 -> 2000 | L87: =K87*J87 -> 0 | N87: =L87-H87 -> 0 | O87: =IF((H87)=0,"",(N87/H87)) -> 
B88: =B35 -> Smart Meter Entity Charge | D88: =D35 -> Monthly | F88: =F35 -> 0.79 | G88: 1 | H88: =G88*F88 -> 0.79 | J88: =J35 -> 0.79 | K88: 1 | L88: =K88*J88 -> 0.79 | N88: =L88-H88 -> 0
B89: Sub-Total B - Distribution (includes Sub-Total A) | H89: =SUM(H85:H87)+H84 -> 64.08 | L89: =SUM(L85:L87)+L84 -> 54.84 | N89: =L89-H89 -> -9.24 | O89: =IF((H89)=0,"",(N89/H89)) -> -0.1441947566
B90: RTSR - Network | D90: per kWh | F90: =F37 -> 0.0058 | G90: =F69*(1+F116) -> 2064 | H90: =G90*F90 -> 11.9712 | J90: =J37 -> 0.0062 | K90: =F69*(1+J116) -> 2070.2 | L90: =K90*J90 -> 12.83524 | N90: 0.86404 | O90: 0.07217655707
B91: RTSR - Line and Transformation Connection | D91: per kWh | F91: =F38 -> 0.0013 | G91: =G90 -> 2064 | H91: =G91*F91 -> 2.6832 | J91: =J38 -> 0.0013 | K91: =K90 -> 2070.2 | L91: =K91*J91 -> 2.69126 | N91: 0.00806 | O91: 0.003003875969
B92: Sub-Total C - Delivery (including Sub-Total B) | H92: =SUM(H89:H91) -> 78.7344 | L92: =SUM(L89:L91) -> 70.3665 | N92: -8.3679 | O92: -0.1062801012
B93: Wholesale Market Service Charge (WMSC) | D93: per kWh | F93: =F40 -> 0.0044 | G93: =G91 -> 2064 | H93: =G93*F93 -> 9.0816 | J93: =J40 -> 0.0044 | K93: =K91 -> 2070.2 | L93: =K93*J93 -> 9.10888 | N93: 0.02728 | O93: 0.003003875969
B94: Rural and Remote Rate Protection (RRRP) | D94: per kWh | F94: 0.0012 | G94: =G91 -> 2064 | H94: 2.4768 | J94: 0.0013 | K94: =K91 -> 2070.2 | L94: 2.69126 | N94: 0.21446 | O94: 0.0865875323
B95: Standard Supply Service Charge | D95: Monthly | F95: 0.25 | G95: 1 | H95: 0.25 | J95: 0.25 | K95: 1 | L95: 0.25 | N95: 0 | O95: 0
B96: Debt Retirement Charge (DRC) | D96: per kWh | F96: 0.007 | G96: =+F69 -> 2000 | H96: 14 | J96: 0.007 | K96: =K94 -> 2070.2 | L96: 14.4914 | N96: 0.4914 | O96: 0.0351
B97: Energy - RPP - Tier 1 | D97: per kWh | F97: 0.078 | G97: =IF($T$1=1,IF($F69>=600,600,IF($F69<600,$F69*(1+$F116),$F69-600)),IF($T$1=2,IF($F69>=1000,1000,IF($F69<1000,$F69*(1+$F116),$F69-1000)))) -> 600 | H97: =G97*F97 -> 46.8 | J97: 0.086 | K97: =IF($T$1=1,IF($F69>=600,600,IF($F69<600,$F69*(1+$J116),$F69-600)),IF($T$1=2,IF($F69>=1000,1000,IF($F69<1000,$F69*(1+$J116),$F69-1000)))) -> 600 | L97: =K97*J97 -> 51.6 | N97: 4.8 | O97: 0.1025641026
B98: Energy - RPP - Tier 2 | D98: per kWh | F98: 0.091 | G98: =IF($T$1=1,IF($F69>=600,$F69*(1+$F116)-600,IF($F69<600,0,)), IF($T$1=2,IF($F69>=1000,$F69*(1+$F116)-1000,IF($F69<1000,0)))) -> 1464 | H98: =G98*F98 -> 133.224 | J98: 0.101 | K98: =IF($T$1=1,IF($F69>=600,$F69*(1+$J116)-600,IF($F69<600,0,)), IF($T$1=2,IF($F69>=1000,$F69*(1+$J116)-1000,IF($F69<1000,0)))) -> 1470.2 | L98: =K98*J98 -> 148.4902 | N98: 15.2662 | O98: 0.1145904642
B99: TOU - Off Peak | D99: per kWh | F99: 0.067 | G99: =0.64*$F69*(1+$F116) -> 1320.96 | H99: =G99*F99 -> 88.50432 | J99: 0.075 | K99: =0.64*$F69*(1+$J116) -> 1324.928 | L99: =K99*J99 -> 99.3696 | N99: 10.86528 | O99: 0.1227655328
B100: TOU - Mid Peak | D100: per kWh | F100: 0.104 | G100: =0.18*$F69*(1+$F116) -> 371.52 | H100: 38.63808 | J100: 0.112 | K100: =0.18*$F69*(1+$J116) -> 372.636 | L100: 41.735232 | N100: 3.097152 | O100: 0.08015802027
B101: TOU - On Peak | D101: per kWh | F101: 0.124 | G101: =0.18*$F69*(1+$F116) -> 371.52 | H101: 46.06848 | J101: 0.135 | K101: =0.18*$F69*(1+$J116) -> 372.636 | L101: 50.30586 | N101: 4.23738 | O101: 0.09198002626
B103: Total Bill on RPP (before Taxes) | H103: =SUM(H92:H98) -> 284.5668 | L103: =SUM(L92:L98) -> 296.99824 | N103: =L103-H103 -> 12.43144 | O103: =IF((H103)=0,"",(N103/H103)) -> 0.04368548966
B104: HST | F104: 0.13 | H104: =H103*F104 -> 36.993684 | J104: 0.13 | L104: =L103*J104 -> 38.6097712 | N104: 1.6160872 | O104: 0.04368548966
B105: Total Bill (including HST) | H105: =H103+H104 -> 321.560484 | L105: =L103+L104 -> 335.6080112 | N105: 14.0475272 | O105: 0.04368548966
B106: Ontario Clean Energy Benefit 1 | H106: =ROUND(-H105*10%,2) -> -32.16 | L106: =ROUND(-L105*10%,2) -> -33.56 | N106: -1.4 | O106: 0.04353233831
B107: Total Bill on RPP (including OCEB) | H107: =SUM(H105:H106) -> 289.400484 | L107: =SUM(L105:L106) -> 302.0480112 | N107: 12.6475272 | O107: 0.0437025088
B109: Total Bill on TOU (before Taxes) | H109: =SUM(H92:H96,H99:H101) -> 277.75368 | L109: =SUM(L92:L96,L99:L101) -> 288.318732 | N109: =L109-H109 -> 10.565052 | O109: =IF((H109)=0,"",(N109/H109)) -> 0.03803748703
B110: HST | F110: 0.13 | H110: =H109*F110 -> 36.1079784 | J110: 0.13 | L110: =L109*J110 -> 37.48143516 | N110: 1.37345676 | O110: 0.03803748703
B111: Total Bill (including HST) | H111: =H109+H110 -> 313.8616584 | L111: =L109+L110 -> 325.8001672 | N111: 11.93850876 | O111: 0.03803748703
B112: Ontario Clean Energy Benefit 1 | H112: =ROUND(-H111*10%,2) -> -31.39 | L112: =ROUND(-L111*10%,2) -> -32.58 | N112: -1.19 | O112: 0.03791016247
B113: Total Bill on TOU (including OCEB) | H113: =H111+H112 -> 282.4716584 | L113: =L111+L112 -> 293.2201672 | N113: 10.74850876 | O113: 0.03805163612
B116: Loss Factor (%) | F116: =+F63 -> 0.032 | J116: =+J63 -> 0.0351
A118: 1 Applicable to eligible customers only. Refer to the Ontario Clean Energy Benefit Act, 2010.
B120: Customer Class: | D120: GS<50kW
D122: Consumption | F122: 5000 | G122: kWh
F124: Current Board-Approved | J124: Proposed | N124: Impact
D125: Charge Unit | F125: Rate | G125: Volume | H125: Charge | J125: Rate | K125: Volume | L125: Charge | N125: $ Change | O125: % Change
F126: ($) | H126: ($) | J126: ($) | L126: ($)
B127: =B21 -> Monthly Service Charge | D127: =D21 -> Monthly | F127: =F74 -> 25.71 | G127: 1 | H127: =G127*F127 -> 25.71 | J127: =J74 -> 25.76 | K127: 1 | L127: =K127*J127 -> 25.76 | N127: =L127-H127 -> 0.05 | O127: =IF((H127)=0,"",(N127/H127)) -> 0.001944768573
B128: Smart Meter Disposition Rate Rider | D128: Monthly | F128: 8.42 | G128: 1 | H128: =G128*F128 -> 8.42 | J128: 0 | K128: 1 | L128: =K128*J128 -> 0 | N128: =L128-H128 -> -8.42 | O128: =IF((H128)=0,"",(N128/H128)) -> -1
B129: Smart Meter Incremental Revenue Rate Rider | D129: Monthly | F129: 5.55 | G129: 1 | H129: 5.55 | J129: 0 | K129: 1 | L129: =K129*J129 -> 0 | N129: =L129-H129 -> -5.55 | O129: =IF((H129)=0,"",(N129/H129)) -> -1
B130: Stranded Meter Rate Rider | C130: =C24 -> 0 | D130: Monthly | F130: 0 | G130: 1 | H130: 0 | J130: 12.63 | K130: 1 | L130: 12.63 | N130: 12.63
B131: Foregone Revenue Rate Rider | C131: =C25 -> 0 | D131: Monthly | F131: 0 | G131: 1 | H131: =G131*F131 -> 0 | J131: -2.75 | K131: 1 | L131: =K131*J131 -> -2.75 | N131: =L131-H131 -> -2.75 | O131: =IF((H131)=0,"",(N131/H131)) -> 
B132: Distribution Volumetric Rate | D132: per kWh | F132: 0.0124 | G132: =$F122 -> 5000 | H132: =G132*F132 -> 62 | J132: 0.0124 | K132: =$F122 -> 5000 | L132: =K132*J132 -> 62 | N132: =L132-H132 -> 0 | O132: =IF((H132)=0,"",(N132/H132)) -> 0
B133: LRAM & SSM Rate Rider | D133: per kWh | F133: 0.0001 | G133: =$F122 -> 5000 | H133: 0.5 | J133: 0 | K133: =$F122 -> 5000 | L133: 0 | N133: -0.5 | O133: -1
B134: Tax Change Rate Rider | D134: per kWh | F134: -0.0003 | G134: =$F122 -> 5000 | H134: -1.5 | J134: 0 | K134: =$F122 -> 5000 | L134: 0 | N134: 1.5 | O134: -1
B135: Lost CWIP | C135: =C29 -> 0 | D135: per kWh | F135: 0 | G135: =$F122 -> 5000 | H135: =G135*F135 -> 0 | J135: 0.0006 | K135: =$F122 -> 5000 | L135: =K135*J135 -> 3 | N135: =L135-H135 -> 3 | O135: =IF((H135)=0,"",(N135/H135)) -> 
B136: 1576 Rate Rider | D136: per kWh | F136: 0 | G136: =$F122 -> 5000 | H136: 0 | J136: -0.0043 | K136: =$F122 -> 5000 | L136: -21.5 | N136: -21.5
B137: Sub-Total A | H137: =SUM(H127:H136) -> 100.68 | L137: =SUM(L127:L136) -> 79.14 | N137: -21.54 | O137: -0.2139451728
B138: =B32 -> Deferral/Variance Account Disposition Rate Rider | C138: 0 | D138: per kWh | F138: =F85 -> 0 | G138: =$F122 -> 5000 | H138: =G138*F138 -> 0 | J138: =J85 -> 0.0001 | K138: =$F122 -> 5000 | L138: =K138*J138 -> 0.5 | N138: =L138-H138 -> 0.5 | O138: =IF((H138)=0,"",(N138/H138)) -> 
B139: Global Adjustment Rate Rider | C139: 0 | D139: per kWh | F139: =F86 -> 0 | G139: =$F122 -> 5000 | H139: =G139*F139 -> 0 | J139: =J86 -> 0.0008 | K139: =$F122 -> 5000 | L139: =K139*J139 -> 4 | N139: =L139-H139 -> 4 | O139: =IF((H139)=0,"",(N139/H139)) -> 
B140: =B34 -> Low Voltage Service Charge | F140: =F87 -> 0 | G140: =$F122 -> 5000 | H140: =G140*F140 -> 0 | J140: =J87 -> 0 | K140: =$F122 -> 5000 | L140: =K140*J140 -> 0 | N140: =L140-H140 -> 0 | O140: =IF((H140)=0,"",(N140/H140)) -> 
B141: =B35 -> Smart Meter Entity Charge | D141: Monthly | F141: =F88 -> 0.79 | G141: 1 | H141: =G141*F141 -> 0.79 | J141: =J88 -> 0.79 | K141: 1 | L141: =K141*J141 -> 0.79 | N141: =L141-H141 -> 0
B142: Sub-Total B - Distribution (includes Sub-Total A) | H142: =SUM(H138:H140)+H137 -> 100.68 | L142: =SUM(L138:L140)+L137 -> 83.64 | N142: =L142-H142 -> -17.04 | O142: =IF((H142)=0,"",(N142/H142)) -> -0.1692491061
B143: RTSR - Network | D143: per kWh | F143: =F90 -> 0.0058 | G143: =F122*(1+F169) -> 5160 | H143: =G143*F143 -> 29.928 | J143: =J90 -> 0.0062 | K143: =F122*(1+J169) -> 5175.5 | L143: =K143*J143 -> 32.0881 | N143: 2.1601 | O143: 0.07217655707
B144: RTSR - Line and Transformation Connection | D144: per kWh | F144: =F91 -> 0.0013 | G144: =G143 -> 5160 | H144: =G144*F144 -> 6.708 | J144: =J91 -> 0.0013 | K144: =K143 -> 5175.5 | L144: =K144*J144 -> 6.72815 | N144: 0.02015 | O144: 0.003003875969
B145: Sub-Total C - Delivery (including Sub-Total B) | H145: =SUM(H142:H144) -> 137.316 | L145: =SUM(L142:L144) -> 122.45625 | N145: -14.85975 | O145: -0.1082157214
B146: Wholesale Market Service Charge (WMSC) | D146: per kWh | F146: =F93 -> 0.0044 | G146: =G144 -> 5160 | H146: =G146*F146 -> 22.704 | J146: =J93 -> 0.0044 | K146: =K144 -> 5175.5 | L146: =K146*J146 -> 22.7722 | N146: 0.0682 | O146: 0.003003875969
B147: Rural and Remote Rate Protection (RRRP) | D147: per kWh | F147: 0.0012 | G147: =G144 -> 5160 | H147: 6.192 | J147: 0.0013 | K147: =K144 -> 5175.5 | L147: 6.72815 | N147: 0.53615 | O147: 0.0865875323
B148: Standard Supply Service Charge | D148: Monthly | F148: 0.25 | G148: 1 | H148: 0.25 | J148: 0.25 | K148: 1 | L148: 0.25 | N148: 0 | O148: 0
B149: Debt Retirement Charge (DRC) | D149: per kWh | F149: 0.007 | G149: =+F122 -> 5000 | H149: 35 | J149: 0.007 | K149: =K147 -> 5175.5 | L149: 36.2285 | N149: 1.2285 | O149: 0.0351
B150: Energy - RPP - Tier 1 | D150: per kWh | F150: 0.078 | G150: =IF($T$1=1,IF($F122>=600,600,IF($F122<600,$F122*(1+$F169),$F122-600)),IF($T$1=2,IF($F122>=1000,1000,IF($F122<1000,$F122*(1+$F169),$F122-1000)))) -> 600 | H150: =G150*F150 -> 46.8 | J150: 0.086 | K150: =IF($T$1=1,IF($F122>=600,600,IF($F122<600,$F122*(1+$J169),$F122-600)),IF($T$1=2,IF($F122>=1000,1000,IF($F122<1000,$F122*(1+$J169),$F122-1000)))) -> 600 | L150: =K150*J150 -> 51.6 | N150: 4.8 | O150: 0.1025641026
B151: Energy - RPP - Tier 2 | D151: per kWh | F151: 0.091 | G151: =IF($T$1=1,IF($F122>=600,$F122*(1+$F169)-600,IF($F122<600,0,)), IF($T$1=2,IF($F122>=1000,$F122*(1+$F169)-1000,IF($F122<1000,0)))) -> 4560 | H151: =G151*F151 -> 414.96 | J151: 0.101 | K151: =IF($T$1=1,IF($F122>=600,$F122*(1+$J169)-600,IF($F122<600,0,)), IF($T$1=2,IF($F122>=1000,$F122*(1+$J169)-1000,IF($F122<1000,0)))) -> 4575.5 | L151: =K151*J151 -> 462.1255 | N151: 47.1655 | O151: 0.1136627627
B152: TOU - Off Peak | D152: per kWh | F152: 0.067 | G152: =0.64*$F122*(1+$F169) -> 3302.4 | H152: =G152*F152 -> 221.2608 | J152: 0.075 | K152: =0.64*$F122*(1+$J169) -> 3312.32 | L152: =K152*J152 -> 248.424 | N152: 27.1632 | O152: 0.1227655328
B153: TOU - Mid Peak | D153: per kWh | F153: 0.104 | G153: =0.18*$F122*(1+$F169) -> 928.8 | H153: 96.5952 | J153: 0.112 | K153: =0.18*$F122*(1+$J169) -> 931.59 | L153: 104.33808 | N153: 7.74288 | O153: 0.08015802027
B154: TOU - On Peak | D154: per kWh | F154: 0.124 | G154: =0.18*$F122*(1+$F169) -> 928.8 | H154: 115.1712 | J154: 0.135 | K154: =0.18*$F122*(1+$J169) -> 931.59 | L154: 125.76465 | N154: 10.59345 | O154: 0.09198002626
B156: Total Bill on RPP (before Taxes) | H156: =SUM(H145:H151) -> 663.222 | L156: =SUM(L145:L151) -> 702.1606 | N156: =L156-H156 -> 38.9386 | O156: =IF((H156)=0,"",(N156/H156)) -> 0.05871126109
B157: HST | F157: 0.13 | H157: =H156*F157 -> 86.21886 | J157: 0.13 | L157: =L156*J157 -> 91.280878 | N157: 5.062018 | O157: 0.05871126109
B158: Total Bill (including HST) | H158: =H156+H157 -> 749.44086 | L158: =L156+L157 -> 793.441478 | N158: 44.000618 | O158: 0.05871126109
B159: Ontario Clean Energy Benefit 1 | H159: 0 | L159: 0 | N159: 0
B160: Total Bill on RPP (including OCEB) | H160: =SUM(H158:H159) -> 749.44086 | L160: =SUM(L158:L159) -> 793.441478 | N160: 44.000618 | O160: 0.05871126109
B162: Total Bill on TOU (before Taxes) | H162: =SUM(H145:H149,H152:H154) -> 634.4892 | L162: =SUM(L145:L149,L152:L154) -> 666.96183 | N162: =L162-H162 -> 32.47263 | O162: =IF((H162)=0,"",(N162/H162)) -> 0.05117916901
B163: HST | F163: 0.13 | H163: =H162*F163 -> 82.483596 | J163: 0.13 | L163: =L162*J163 -> 86.7050379 | N163: 4.2214419 | O163: 0.05117916901
B164: Total Bill (including HST) | H164: =H162+H163 -> 716.972796 | L164: =L162+L163 -> 753.6668679 | N164: 36.6940719 | O164: 0.05117916901
B165: Ontario Clean Energy Benefit 1 | H165: 0 | L165: 0 | N165: 0
B166: Total Bill on TOU (including OCEB) | H166: =H164+H165 -> 716.972796 | L166: =L164+L165 -> 753.6668679 | N166: 36.6940719 | O166: 0.05117916901
B169: Loss Factor (%) | F169: =+F116 -> 0.032 | J169: =+J116 -> 0.0351
A171: 1 Applicable to eligible customers only. Refer to the Ontario Clean Energy Benefit Act, 2010.
B173: Customer Class: | D173: GS<50kW
D175: Consumption | F175: 10000 | G175: kWh
F177: Current Board-Approved | J177: Proposed | N177: Impact
D178: Charge Unit | F178: Rate | G178: Volume | H178: Charge | J178: Rate | K178: Volume | L178: Charge | N178: $ Change | O178: % Change
F179: ($) | H179: ($) | J179: ($) | L179: ($)
B180: =B21 -> Monthly Service Charge | D180: =D21 -> Monthly | F180: =F127 -> 25.71 | G180: 1 | H180: =G180*F180 -> 25.71 | J180: =J127 -> 25.76 | K180: 1 | L180: =K180*J180 -> 25.76 | N180: =L180-H180 -> 0.05 | O180: =IF((H180)=0,"",(N180/H180)) -> 0.001944768573
B181: Smart Meter Disposition Rate Rider | D181: Monthly | F181: 8.42 | G181: 1 | H181: =G181*F181 -> 8.42 | J181: 0 | K181: 1 | L181: =K181*J181 -> 0 | N181: =L181-H181 -> -8.42 | O181: =IF((H181)=0,"",(N181/H181)) -> -1
B182: Smart Meter Incremental Revenue Rate Rider | D182: Monthly | F182: 5.55 | G182: 1 | H182: 5.55 | J182: 0 | K182: 1 | L182: =K182*J182 -> 0 | N182: =L182-H182 -> -5.55 | O182: =IF((H182)=0,"",(N182/H182)) -> -1
B183: Stranded Meter Rate Rider | C183: =C24 -> 0 | D183: Monthly | F183: 0 | G183: 1 | H183: 0 | J183: 12.63 | K183: 1 | L183: 12.63 | N183: 12.63
B184: Foregone Revenue Rate Rider | C184: =C25 -> 0 | D184: Monthly | F184: 0 | G184: 1 | H184: =G184*F184 -> 0 | J184: -2.75 | K184: 1 | L184: =K184*J184 -> -2.75 | N184: =L184-H184 -> -2.75 | O184: =IF((H184)=0,"",(N184/H184)) -> 
B185: Distribution Volumetric Rate | D185: per kWh | F185: 0.0124 | G185: =$F175 -> 10000 | H185: =G185*F185 -> 124 | J185: 0.0124 | K185: =$F175 -> 10000 | L185: =K185*J185 -> 124 | N185: =L185-H185 -> 0 | O185: =IF((H185)=0,"",(N185/H185)) -> 0
B186: LRAM & SSM Rate Rider | D186: per kWh | F186: 0.0001 | G186: =$F175 -> 10000 | H186: 1 | J186: 0 | K186: =$F175 -> 10000 | L186: 0 | N186: -1 | O186: -1
B187: Tax Change Rate Rider | D187: per kWh | F187: -0.0003 | G187: =$F175 -> 10000 | H187: -3 | J187: 0 | K187: =$F175 -> 10000 | L187: 0 | N187: 3 | O187: -1
B188: Lost CWIP | C188: =C29 -> 0 | D188: per kWh | F188: 0 | G188: =$F175 -> 10000 | H188: =G188*F188 -> 0 | J188: 0.0006 | K188: =$F175 -> 10000 | L188: =K188*J188 -> 6 | N188: =L188-H188 -> 6 | O188: =IF((H188)=0,"",(N188/H188)) -> 
B189: 1576 Rate Rider | D189: per kWh | F189: 0 | G189: =$F175 -> 10000 | H189: 0 | J189: -0.0043 | K189: =$F175 -> 10000 | L189: -43 | N189: -43
B190: Sub-Total A | H190: =SUM(H180:H189) -> 161.68 | L190: =SUM(L180:L189) -> 122.64 | N190: -39.04 | O190: -0.2414646215
B191: =B32 -> Deferral/Variance Account Disposition Rate Rider | C191: 0 | D191: per kWh | F191: =F138 -> 0 | G191: =$F175 -> 10000 | H191: =G191*F191 -> 0 | J191: =J138 -> 0.0001 | K191: =$F175 -> 10000 | L191: =K191*J191 -> 1 | N191: =L191-H191 -> 1 | O191: =IF((H191)=0,"",(N191/H191)) -> 
B192: Global Adjustment Rate Rider | C192: 0 | D192: per kWh | F192: =F139 -> 0 | G192: =$F175 -> 10000 | H192: =G192*F192 -> 0 | J192: =J139 -> 0.0008 | K192: =$F175 -> 10000 | L192: =K192*J192 -> 8 | N192: =L192-H192 -> 8 | O192: =IF((H192)=0,"",(N192/H192)) -> 
B193: =B34 -> Low Voltage Service Charge | F193: =F140 -> 0 | G193: =$F175 -> 10000 | H193: =G193*F193 -> 0 | J193: =J140 -> 0 | K193: =$F175 -> 10000 | L193: =K193*J193 -> 0 | N193: =L193-H193 -> 0 | O193: =IF((H193)=0,"",(N193/H193)) -> 
B194: =B35 -> Smart Meter Entity Charge | D194: Monthly | F194: =F141 -> 0.79 | G194: 1 | H194: =G194*F194 -> 0.79 | J194: =J141 -> 0.79 | K194: 1 | L194: =K194*J194 -> 0.79 | N194: =L194-H194 -> 0
B195: Sub-Total B - Distribution (includes Sub-Total A) | H195: =SUM(H191:H193)+H190 -> 161.68 | L195: =SUM(L191:L193)+L190 -> 131.64 | N195: =L195-H195 -> -30.04 | O195: =IF((H195)=0,"",(N195/H195)) -> -0.1857991094
B196: RTSR - Network | D196: per kWh | F196: =F143 -> 0.0058 | G196: =F175*(1+F222) -> 10320 | H196: =G196*F196 -> 59.856 | J196: =J143 -> 0.0062 | K196: =F175*(1+J222) -> 10351 | L196: =K196*J196 -> 64.1762 | N196: 4.3202 | O196: 0.07217655707
B197: RTSR - Line and Transformation Connection | D197: per kWh | F197: =F144 -> 0.0013 | G197: =G196 -> 10320 | H197: =G197*F197 -> 13.416 | J197: =J144 -> 0.0013 | K197: =K196 -> 10351 | L197: =K197*J197 -> 13.4563 | N197: 0.0403 | O197: 0.003003875969
B198: Sub-Total C - Delivery (including Sub-Total B) | H198: =SUM(H195:H197) -> 234.952 | L198: =SUM(L195:L197) -> 209.2725 | N198: -25.6795 | O198: -0.1092967925
B199: Wholesale Market Service Charge (WMSC) | D199: per kWh | F199: =F146 -> 0.0044 | G199: =G197 -> 10320 | H199: =G199*F199 -> 45.408 | J199: =J146 -> 0.0044 | K199: =K197 -> 10351 | L199: =K199*J199 -> 45.5444 | N199: 0.1364 | O199: 0.003003875969
B200: Rural and Remote Rate Protection (RRRP) | D200: per kWh | F200: 0.0012 | G200: =G197 -> 10320 | H200: 12.384 | J200: 0.0013 | K200: =K197 -> 10351 | L200: 13.4563 | N200: 1.0723 | O200: 0.0865875323
B201: Standard Supply Service Charge | D201: Monthly | F201: 0.25 | G201: 1 | H201: 0.25 | J201: 0.25 | K201: 1 | L201: 0.25 | N201: 0 | O201: 0
B202: Debt Retirement Charge (DRC) | D202: per kWh | F202: 0.007 | G202: =+F175 -> 10000 | H202: 70 | J202: 0.007 | K202: =K200 -> 10351 | L202: 72.457 | N202: 2.457 | O202: 0.0351
B203: Energy - RPP - Tier 1 | D203: per kWh | F203: 0.078 | G203: =IF($T$1=1,IF($F175>=600,600,IF($F175<600,$F175*(1+$F222),$F175-600)),IF($T$1=2,IF($F175>=1000,1000,IF($F175<1000,$F175*(1+$F222),$F175-1000)))) -> 600 | H203: =G203*F203 -> 46.8 | J203: 0.086 | K203: =IF($T$1=1,IF($F175>=600,600,IF($F175<600,$F175*(1+$J222),$F175-600)),IF($T$1=2,IF($F175>=1000,1000,IF($F175<1000,$F175*(1+$J222),$F175-1000)))) -> 600 | L203: =K203*J203 -> 51.6 | N203: 4.8 | O203: 0.1025641026
B204: Energy - RPP - Tier 2 | D204: per kWh | F204: 0.091 | G204: =IF($T$1=1,IF($F175>=600,$F175*(1+$F222)-600,IF($F175<600,0,)), IF($T$1=2,IF($F175>=1000,$F175*(1+$F222)-1000,IF($F175<1000,0)))) -> 9720 | H204: =G204*F204 -> 884.52 | J204: 0.101 | K204: =IF($T$1=1,IF($F175>=600,$F175*(1+$J222)-600,IF($F175<600,0,)), IF($T$1=2,IF($F175>=1000,$F175*(1+$J222)-1000,IF($F175<1000,0)))) -> 9751 | L204: =K204*J204 -> 984.851 | N204: 100.331 | O204: 0.1134298829
B205: TOU - Off Peak | D205: per kWh | F205: 0.067 | G205: =0.64*$F175*(1+$F222) -> 6604.8 | H205: =G205*F205 -> 442.5216 | J205: 0.075 | K205: =0.64*$F175*(1+$J222) -> 6624.64 | L205: =K205*J205 -> 496.848 | N205: 54.3264 | O205: 0.1227655328
B206: TOU - Mid Peak | D206: per kWh | F206: 0.104 | G206: =0.18*$F175*(1+$F222) -> 1857.6 | H206: 193.1904 | J206: 0.112 | K206: =0.18*$F175*(1+$J222) -> 1863.18 | L206: 208.67616 | N206: 15.48576 | O206: 0.08015802027
B207: TOU - On Peak | D207: per kWh | F207: 0.124 | G207: =0.18*$F175*(1+$F222) -> 1857.6 | H207: 230.3424 | J207: 0.135 | K207: =0.18*$F175*(1+$J222) -> 1863.18 | L207: 251.5293 | N207: 21.1869 | O207: 0.09198002626
B209: Total Bill on RPP (before Taxes) | H209: =SUM(H198:H204) -> 1294.314 | L209: =SUM(L198:L204) -> 1377.4312 | N209: =L209-H209 -> 83.1172 | O209: =IF((H209)=0,"",(N209/H209)) -> 0.06421718377
B210: HST | F210: 0.13 | H210: =H209*F210 -> 168.26082 | J210: 0.13 | L210: =L209*J210 -> 179.066056 | N210: 10.805236 | O210: 0.06421718377
B211: Total Bill (including HST) | H211: =H209+H210 -> 1462.57482 | L211: =L209+L210 -> 1556.497256 | N211: 93.922436 | O211: 0.06421718377
B212: Ontario Clean Energy Benefit 1 | H212: 0 | L212: 0 | N212: 0
B213: Total Bill on RPP (including OCEB) | H213: =SUM(H211:H212) -> 1462.57482 | L213: =SUM(L211:L212) -> 1556.497256 | N213: 93.922436 | O213: 0.06421718377
B215: Total Bill on TOU (before Taxes) | H215: =SUM(H198:H202,H205:H207) -> 1229.0484 | L215: =SUM(L198:L202,L205:L207) -> 1298.03366 | N215: =L215-H215 -> 68.98526 | O215: =IF((H215)=0,"",(N215/H215)) -> 0.05612900192
B216: HST | F216: 0.13 | H216: =H215*F216 -> 159.776292 | J216: 0.13 | L216: =L215*J216 -> 168.7443758 | N216: 8.9680838 | O216: 0.05612900192
B217: Total Bill (including HST) | H217: =H215+H216 -> 1388.824692 | L217: =L215+L216 -> 1466.778036 | N217: 77.9533438 | O217: 0.05612900192
B218: Ontario Clean Energy Benefit 1 | H218: 0 | L218: 0 | N218: 0
B219: Total Bill on TOU (including OCEB) | H219: =H217+H218 -> 1388.824692 | L219: =L217+L218 -> 1466.778036 | N219: 77.9533438 | O219: 0.05612900192
B222: Loss Factor (%) | F222: =+F169 -> 0.032 | J222: =+J169 -> 0.0351
A224: 1 Applicable to eligible customers only. Refer to the Ontario Clean Energy Benefit Act, 2010.
B226: Customer Class: | D226: GS<50kW
D228: Consumption | F228: 15000 | G228: kWh
F230: Current Board-Approved | J230: Proposed | N230: Impact
D231: Charge Unit | F231: Rate | G231: Volume | H231: Charge | J231: Rate | K231: Volume | L231: Charge | N231: $ Change | O231: % Change
F232: ($) | H232: ($) | J232: ($) | L232: ($)
B233: =B21 -> Monthly Service Charge | D233: =D21 -> Monthly | F233: =F180 -> 25.71 | G233: 1 | H233: =G233*F233 -> 25.71 | J233: =J180 -> 25.76 | K233: 1 | L233: =K233*J233 -> 25.76 | N233: =L233-H233 -> 0.05 | O233: =IF((H233)=0,"",(N233/H233)) -> 0.001944768573
B234: Smart Meter Disposition Rate Rider | D234: Monthly | F234: 8.42 | G234: 1 | H234: =G234*F234 -> 8.42 | J234: 0 | K234: 1 | L234: =K234*J234 -> 0 | N234: =L234-H234 -> -8.42 | O234: =IF((H234)=0,"",(N234/H234)) -> -1
B235: Smart Meter Incremental Revenue Rate Rider | D235: Monthly | F235: 5.55 | G235: 1 | H235: 5.55 | J235: 0 | K235: 1 | L235: =K235*J235 -> 0 | N235: =L235-H235 -> -5.55 | O235: =IF((H235)=0,"",(N235/H235)) -> -1
B236: Stranded Meter Rate Rider | C236: =C24 -> 0 | D236: Monthly | F236: 0 | G236: 1 | H236: 0 | J236: 12.63 | K236: 1 | L236: 12.63 | N236: 12.63
B237: Foregone Revenue Rate Rider | C237: =C25 -> 0 | D237: Monthly | F237: 0 | G237: 1 | H237: =G237*F237 -> 0 | J237: -2.75 | K237: 1 | L237: =K237*J237 -> -2.75 | N237: =L237-H237 -> -2.75 | O237: =IF((H237)=0,"",(N237/H237)) -> 
B238: Distribution Volumetric Rate | D238: per kWh | F238: 0.0124 | G238: =$F228 -> 15000 | H238: =G238*F238 -> 186 | J238: 0.0124 | K238: =$F228 -> 15000 | L238: =K238*J238 -> 186 | N238: =L238-H238 -> 0 | O238: =IF((H238)=0,"",(N238/H238)) -> 0
B239: LRAM & SSM Rate Rider | D239: per kWh | F239: 0.0001 | G239: =$F228 -> 15000 | H239: 1.5 | J239: 0 | K239: =$F228 -> 15000 | L239: 0 | N239: -1.5 | O239: -1
... 42 more rows

Sheet App.2-W_Impacts-GS Great
N1: File Number: | O1: ='LDC Info'!$E$18 -> EB-2013-0147 | T1: 1
N2: Exhibit: | O2: 8
N3: Tab:
N4: Schedule:
N5: Page:
N7: Date:
B10: Appendix 2-W
B11: Bill Impacts
B14: Customer Class: | D14: GS>50kW
D16: Consumption | F16: 60 | G16: kW
F17: 20000 | G17: kWh
F19: Current Board-Approved | J19: Proposed | N19: Impact
D20: Charge Unit | F20: Rate | G20: Volume | H20: Charge | J20: Rate | K20: Volume | L20: Charge | N20: $ Change | O20: % Change
F21: ($) | H21: ($) | J21: ($) | L21: ($)
B22: Monthly Service Charge | D22: Monthly | F22: 237.72 | G22: 1 | H22: =G22*F22 -> 237.72 | J22: =+'App.2-V_Rev_Reconciliation'!H18 -> 170 | K22: 1 | L22: =K22*J22 -> 170 | N22: =L22-H22 -> -67.72 | O22: =IF((H22)=0,"",(N22/H22)) -> -0.2848729598
B23: Forgone Revenue Rate Rider | D23: Monthly | F23: 0 | G23: 1 | H23: =G23*F23 -> 0 | J23: 1.6 | K23: 1 | L23: =K23*J23 -> 1.6 | N23: =L23-H23 -> 1.6 | O23: =IF((H23)=0,"",(N23/H23)) -> 
F24: 0 | G24: 1 | H24: 0 | J24: 0 | K24: 1 | L24: =K24*J24 -> 0 | N24: =L24-H24 -> 0 | O24: =IF((H24)=0,"",(N24/H24)) -> 
F25: 0 | G25: 1 | H25: 0 | J25: 0 | K25: 1 | L25: 0 | N25: 0
F26: 0 | G26: 1 | H26: =G26*F26 -> 0 | J26: 0 | K26: 1 | L26: =K26*J26 -> 0 | N26: =L26-H26 -> 0 | O26: =IF((H26)=0,"",(N26/H26)) -> 
B27: Distribution Volumetric Rate | D27: per kW | F27: 4.0593 | G27: =$F16 -> 60 | H27: =G27*F27 -> 243.558 | J27: =+'App.2-V_Rev_Reconciliation'!J18 -> 4.42 | K27: =$F16 -> 60 | L27: =K27*J27 -> 265.2 | N27: =L27-H27 -> 21.642 | O27: =IF((H27)=0,"",(N27/H27)) -> 0.08885768482
B28: LRAM & SSM Rate Rider | D28: per kW | F28: 0.0172 | G28: =$F16 -> 60 | H28: 1.032 | J28: 0 | K28: =$F16 -> 60 | L28: 0 | N28: -1.032 | O28: -1
B29: Tax Change Rate Rider | D29: per kW | F29: -0.0676 | G29: =$F16 -> 60 | H29: -4.056 | J29: 0 | K29: =$F16 -> 60 | L29: 0 | N29: 4.056 | O29: -1
B30: Lost CWIP | D30: per kW | F30: 0 | G30: =$F16 -> 60 | H30: =G30*F30 -> 0 | J30: 0.1509 | K30: =$F16 -> 60 | L30: =K30*J30 -> 9.054 | N30: =L30-H30 -> 9.054 | O30: =IF((H30)=0,"",(N30/H30)) -> 
B31: 1576 Rate Rider | D31: per kW | F31: 0 | G31: =$F16 -> 60 | H31: 0 | J31: -1.0188 | K31: =$F16 -> 60 | L31: -61.128 | N31: -61.128
B32: Sub-Total A | H32: =SUM(H22:H31) -> 478.254 | L32: =SUM(L22:L31) -> 384.726 | N32: -93.528 | O32: -0.1955613544
B33: Deferral/Variance Account Disposition Rate Rider | D33: per kW | F33: 0 | G33: =$F16 -> 60 | H33: =G33*F33 -> 0 | J33: -0.1226 | K33: =$F16 -> 60 | L33: =K33*J33 -> -7.356 | N33: =L33-H33 -> -7.356 | O33: =IF((H33)=0,"",(N33/H33)) -> 
B34: Global Adjustment Rate Rider | D34: per kW | F34: 0 | G34: =$F16 -> 60 | H34: =G34*F34 -> 0 | J34: =-0.5734+2.7399 -> 2.1665 | K34: =$F16 -> 60 | L34: =K34*J34 -> 129.99 | N34: =L34-H34 -> 129.99 | O34: =IF((H34)=0,"",(N34/H34)) -> 
B35: Global Adjustment Rate Rider | D35: per kW | F35: 0 | G35: =$F16 -> 60 | H35: =G35*F35 -> 0 | J35: -0.3645 | K35: =$F16 -> 60 | L35: =K35*J35 -> -21.87 | N35: =L35-H35 -> -21.87 | O35: =IF((H35)=0,"",(N35/H35)) -> 
B36: Low Voltage Service Charge | G36: =$F16 -> 60 | H36: =G36*F36 -> 0 | K36: =$F16 -> 60 | L36: =K36*J36 -> 0 | N36: =L36-H36 -> 0 | O36: =IF((H36)=0,"",(N36/H36)) -> 
F37: 0 | G37: 1 | H37: =G37*F37 -> 0 | J37: 0 | K37: 1 | L37: =K37*J37 -> 0 | N37: =L37-H37 -> 0
B38: Sub-Total B - Distribution (includes Sub-Total A) | H38: =SUM(H33:H36)+H32 -> 478.254 | L38: =SUM(L33:L36)+L32 -> 485.49 | N38: =L38-H38 -> 7.236 | O38: =IF((H38)=0,"",(N38/H38)) -> 0.0151300355
B39: RTSR - Network | D39: per kW | F39: 3.0721 | G39: =F16*(1+F55) -> 61.92 | H39: =G39*F39 -> 190.224432 | J39: 3.2836 | K39: =F16*(1+J55) -> 62.106 | L39: =K39*J39 -> 203.9312616 | N39: 13.7068296 | O39: 0.07205609425
B40: RTSR - Line and Transformation Connection | D40: per kW | F40: 0.674 | G40: =G39 -> 61.92 | H40: =G40*F40 -> 41.73408 | J40: 0.6851 | K40: =K39 -> 62.106 | L40: =K40*J40 -> 42.5488206 | N40: 0.8147406 | O40: 0.01952218906
B41: Sub-Total C - Delivery (including Sub-Total B) | H41: =SUM(H38:H40) -> 710.212512 | L41: =SUM(L38:L40) -> 731.9700822 | N41: 21.7575702 | O41: 0.03063529554
B42: Wholesale Market Service Charge (WMSC) | D42: per kWh | F42: 0.0044 | G42: =F17*(1+F55) -> 20640 | H42: =G42*F42 -> 90.816 | J42: 0.0044 | K42: =F17*(1+J55) -> 20702 | L42: =K42*J42 -> 91.0888 | N42: 0.2728 | O42: 0.003003875969
B43: Rural and Remote Rate Protection (RRRP) | D43: per kWh | F43: 0.0012 | G43: =+G42 -> 20640 | H43: 24.768 | J43: 0.0013 | K43: =+K42 -> 20702 | L43: 26.9126 | N43: 2.1446 | O43: 0.0865875323
B44: Standard Supply Service Charge | D44: Monthly | F44: 0.25 | G44: 1 | H44: 0.25 | J44: 0.25 | K44: 1 | L44: 0.25 | N44: 0 | O44: 0
B45: Debt Retirement Charge (DRC) | D45: per kWh | F45: 0.007 | G45: =+F17 -> 20000 | H45: 140 | J45: 0.007 | K45: =+F17 -> 20000 | L45: 140 | N45: 0 | O45: 0
B46: Energy - Non RPP - Spot Price | D46: per kWh | F46: 0.08717 | G46: =+G42 -> 20640 | H46: =G46*F46 -> 1799.1888 | J46: =+F46 -> 0.08717 | K46: =+K42 -> 20702 | L46: =K46*J46 -> 1804.59334 | N46: 5.40454 | O46: 0.003003875969
B48: Total Bill on RPP (before Taxes) | H48: =SUM(H41:H46) -> 2765.235312 | L48: =SUM(L41:L46) -> 2794.814822 | N48: =L48-H48 -> 29.5795102 | O48: =IF((H48)=0,"",(N48/H48)) -> 0.01069692336
B49: HST | F49: 0.13 | H49: =H48*F49 -> 359.4805906 | J49: 0.13 | L49: =L48*J49 -> 363.3259269 | N49: 3.845336326 | O49: 0.01069692336
B50: Total Bill (including HST) | H50: =H48+H49 -> 3124.715903 | L50: =L48+L49 -> 3158.140749 | N50: 33.42484653 | O50: 0.01069692336
B51: Ontario Clean Energy Benefit 1 | H51: 0 | L51: 0 | N51: 0
B52: Total Bill on RPP (including OCEB) | H52: =SUM(H50:H51) -> 3124.715903 | L52: =SUM(L50:L51) -> 3158.140749 | N52: 33.42484653 | O52: 0.01069692336
B55: Loss Factor (%) | F55: ='App.2-W_Impacts-Res'!$F$63 -> 0.032 | J55: ='App.2-W_Impacts-Res'!$J$63 -> 0.0351
A57: 1 Applicable to eligible customers only. Refer to the Ontario Clean Energy Benefit Act, 2010.
B59: Customer Class: | D59: =$D$14 -> GS>50kW
D61: Consumption | F61: 100 | G61: kW
F62: 40000 | G62: kWh
F64: Current Board-Approved | J64: Proposed | N64: Impact
D65: Charge Unit | F65: Rate | G65: Volume | H65: Charge | J65: Rate | K65: Volume | L65: Charge | N65: $ Change | O65: % Change
F66: ($) | H66: ($) | J66: ($) | L66: ($)
B67: =B22 -> Monthly Service Charge | D67: =D22 -> Monthly | F67: =F22 -> 237.72 | G67: 1 | H67: =G67*F67 -> 237.72 | J67: =J22 -> 170 | K67: 1 | L67: =K67*J67 -> 170 | N67: =L67-H67 -> -67.72 | O67: =IF((H67)=0,"",(N67/H67)) -> -0.2848729598
B68: Forgone Revenue Rate Rider | D68: Monthly | F68: 0 | G68: 1 | H68: =G68*F68 -> 0 | J68: 1.6 | K68: 1 | L68: =K68*J68 -> 1.6 | N68: =L68-H68 -> 1.6 | O68: =IF((H68)=0,"",(N68/H68)) -> 
B69: 0 | D69: 0 | F69: 0 | G69: 1 | H69: 0 | J69: 0 | K69: 1 | L69: =K69*J69 -> 0 | N69: =L69-H69 -> 0 | O69: =IF((H69)=0,"",(N69/H69)) -> 
B70: 0 | C70: =C25 -> 0 | D70: 0 | F70: 0 | G70: 1 | H70: 0 | J70: 0 | K70: 1 | L70: 0 | N70: 0
B71: 0 | C71: =C26 -> 0 | D71: 0 | F71: 0 | G71: 1 | H71: =G71*F71 -> 0 | J71: 0 | K71: 1 | L71: =K71*J71 -> 0 | N71: =L71-H71 -> 0 | O71: =IF((H71)=0,"",(N71/H71)) -> 
B72: Distribution Volumetric Rate | D72: per kW | F72: 4.0593 | G72: =$F61 -> 100 | H72: =G72*F72 -> 405.93 | J72: 4.42 | K72: =$F61 -> 100 | L72: =K72*J72 -> 442 | N72: =L72-H72 -> 36.07 | O72: =IF((H72)=0,"",(N72/H72)) -> 0.08885768482
B73: LRAM & SSM Rate Rider | D73: per kW | F73: 0.0172 | G73: =$F61 -> 100 | H73: 1.72 | J73: 0 | K73: =$F61 -> 100 | L73: 0 | N73: -1.72 | O73: -1
B74: Tax Change Rate Rider | D74: per kW | F74: -0.0676 | G74: =$F61 -> 100 | H74: -6.76 | J74: 0 | K74: =$F61 -> 100 | L74: 0 | N74: 6.76 | O74: -1
B75: Lost CWIP | C75: =C30 -> 0 | D75: per kW | F75: 0 | G75: =$F61 -> 100 | H75: =G75*F75 -> 0 | J75: 0.1509 | K75: =$F61 -> 100 | L75: =K75*J75 -> 15.09 | N75: =L75-H75 -> 15.09 | O75: =IF((H75)=0,"",(N75/H75)) -> 
B76: =B31 -> 1576 Rate Rider | D76: =D31 -> per kW | F76: =F31 -> 0 | G76: =$F61 -> 100 | H76: 0 | J76: =J31 -> -1.0188 | K76: =$F61 -> 100 | L76: -101.88 | N76: -101.88
B77: Sub-Total A | H77: =SUM(H67:H76) -> 638.61 | L77: =SUM(L67:L76) -> 526.81 | N77: -111.8 | O77: -0.1750677252
B78: =B33 -> Deferral/Variance Account Disposition Rate Rider | C78: 0 | D78: per kW | F78: =F33 -> 0 | G78: =$F61 -> 100 | H78: =G78*F78 -> 0 | J78: =J33 -> -0.1226 | K78: =$F61 -> 100 | L78: =K78*J78 -> -12.26 | N78: =L78-H78 -> -12.26 | O78: =IF((H78)=0,"",(N78/H78)) -> 
B79: Global Adjustment Rate Rider | C79: 0 | D79: per kW | F79: =F34 -> 0 | G79: =$F61 -> 100 | H79: =G79*F79 -> 0 | J79: =J34 -> 2.1665 | K79: =$F61 -> 100 | L79: =K79*J79 -> 216.65 | N79: =L79-H79 -> 216.65 | O79: =IF((H79)=0,"",(N79/H79)) -> 
B80: =B36 -> Low Voltage Service Charge | D80: =D36 -> 0 | F80: =F36 -> 0 | G80: =$F61 -> 100 | H80: =G80*F80 -> 0 | J80: =J36 -> 0 | K80: =$F61 -> 100 | L80: =K80*J80 -> 0 | N80: =L80-H80 -> 0 | O80: =IF((H80)=0,"",(N80/H80)) -> 
B81: =B37 -> 0 | D81: =D37 -> 0 | F81: =F37 -> 0 | G81: 1 | H81: =G81*F81 -> 0 | J81: =J37 -> 0 | K81: 1 | L81: =K81*J81 -> 0 | N81: =L81-H81 -> 0
B82: Sub-Total B - Distribution (includes Sub-Total A) | H82: =SUM(H78:H80)+H77 -> 638.61 | L82: =SUM(L78:L80)+L77 -> 731.2 | N82: =L82-H82 -> 92.59 | O82: =IF((H82)=0,"",(N82/H82)) -> 0.1449867681
B83: RTSR - Network | D83: per kW | F83: =F39 -> 3.0721 | G83: =F61*(1+F99) -> 103.2 | H83: =G83*F83 -> 317.04072 | J83: =J39 -> 3.2836 | K83: =F61*(1+J99) -> 103.51 | L83: =K83*J83 -> 339.885436 | N83: 22.844716 | O83: 0.07205609425
B84: RTSR - Line and Transformation Connection | D84: per kW | F84: =F40 -> 0.674 | G84: =G83 -> 103.2 | H84: =G84*F84 -> 69.5568 | J84: =J40 -> 0.6851 | K84: =K83 -> 103.51 | L84: =K84*J84 -> 70.914701 | N84: 1.357901 | O84: 0.01952218906
B85: Sub-Total C - Delivery (including Sub-Total B) | H85: =SUM(H82:H84) -> 1025.20752 | L85: =SUM(L82:L84) -> 1142.000137 | N85: 116.792617 | O85: 0.1139209523
B86: Wholesale Market Service Charge (WMSC) | D86: =D42 -> per kWh | F86: =F42 -> 0.0044 | G86: =F62*(1+F99) -> 41280 | H86: =G86*F86 -> 181.632 | J86: =J42 -> 0.0044 | K86: =F62*(1+J99) -> 41404 | L86: =K86*J86 -> 182.1776 | N86: 0.5456 | O86: 0.003003875969
B87: Rural and Remote Rate Protection (RRRP) | D87: =D43 -> per kWh | F87: =F43 -> 0.0012 | G87: =+G86 -> 41280 | H87: 49.536 | J87: =J43 -> 0.0013 | K87: =+K86 -> 41404 | L87: 53.8252 | N87: 4.2892 | O87: 0.0865875323
B88: Standard Supply Service Charge | D88: =D44 -> Monthly | F88: =F44 -> 0.25 | G88: 1 | H88: 0.25 | J88: =J44 -> 0.25 | K88: 1 | L88: 0.25 | N88: 0 | O88: 0
B89: Debt Retirement Charge (DRC) | D89: =D45 -> per kWh | F89: =F45 -> 0.007 | G89: =+F62 -> 40000 | H89: 280 | J89: =J45 -> 0.007 | K89: =+F62 -> 40000 | L89: 280 | N89: 0 | O89: 0
B90: Energy - Non RPP - Spot Price | D90: =D46 -> per kWh | F90: =F46 -> 0.08717 | G90: =+G86 -> 41280 | H90: =G90*F90 -> 3598.3776 | J90: =J46 -> 0.08717 | K90: =+K86 -> 41404 | L90: =K90*J90 -> 3609.18668 | N90: 10.80908 | O90: 0.003003875969
B92: Total Bill on RPP (before Taxes) | H92: =SUM(H85:H90) -> 5135.00312 | L92: =SUM(L85:L90) -> 5267.439617 | N92: =L92-H92 -> 132.436497 | O92: =IF((H92)=0,"",(N92/H92)) -> 0.02579092824
B93: HST | F93: 0.13 | H93: =H92*F93 -> 667.5504056 | J93: 0.13 | L93: =L92*J93 -> 684.7671502 | N93: 17.21674461 | O93: 0.02579092824
B94: Total Bill (including HST) | H94: =H92+H93 -> 5802.553526 | L94: =L92+L93 -> 5952.206767 | N94: 149.6532416 | O94: 0.02579092824
B95: Ontario Clean Energy Benefit 1 | H95: 0 | L95: 0 | N95: 0
B96: Total Bill on RPP (including OCEB) | H96: =SUM(H94:H95) -> 5802.553526 | L96: =SUM(L94:L95) -> 5952.206767 | N96: 149.6532416 | O96: 0.02579092824
B99: Loss Factor (%) | F99: =+F55 -> 0.032 | J99: =+J55 -> 0.0351
A101: 1 Applicable to eligible customers only. Refer to the Ontario Clean Energy Benefit Act, 2010.
B103: Customer Class: | D103: =$D$14 -> GS>50kW
D105: Consumption | F105: 500 | G105: kW
F106: 250000 | G106: kWh
F108: Current Board-Approved | J108: Proposed | N108: Impact
D109: Charge Unit | F109: Rate | G109: Volume | H109: Charge | J109: Rate | K109: Volume | L109: Charge | N109: $ Change | O109: % Change
F110: ($) | H110: ($) | J110: ($) | L110: ($)
B111: =B22 -> Monthly Service Charge | D111: =D22 -> Monthly | F111: =F22 -> 237.72 | G111: 1 | H111: =G111*F111 -> 237.72 | J111: =J22 -> 170 | K111: 1 | L111: =K111*J111 -> 170 | N111: =L111-H111 -> -67.72 | O111: =IF((H111)=0,"",(N111/H111)) -> -0.2848729598
B112: Forgone Revenue Rate Rider | D112: Monthly | F112: 0 | G112: 1 | H112: =G112*F112 -> 0 | J112: 1.6 | K112: 1 | L112: =K112*J112 -> 1.6 | N112: =L112-H112 -> 1.6 | O112: =IF((H112)=0,"",(N112/H112)) -> 
B113: 0 | D113: 0 | F113: 0 | G113: 1 | H113: 0 | J113: 0 | K113: 1 | L113: =K113*J113 -> 0 | N113: =L113-H113 -> 0 | O113: =IF((H113)=0,"",(N113/H113)) -> 
B114: 0 | C114: =C70 -> 0 | D114: 0 | F114: 0 | G114: 1 | H114: 0 | J114: 0 | K114: 1 | L114: 0 | N114: 0
B115: 0 | C115: =C71 -> 0 | D115: 0 | F115: 0 | G115: 1 | H115: =G115*F115 -> 0 | J115: 0 | K115: 1 | L115: =K115*J115 -> 0 | N115: =L115-H115 -> 0 | O115: =IF((H115)=0,"",(N115/H115)) -> 
B116: Distribution Volumetric Rate | D116: per kW | F116: 4.0593 | G116: =$F105 -> 500 | H116: =G116*F116 -> 2029.65 | J116: 4.42 | K116: =$F105 -> 500 | L116: =K116*J116 -> 2210 | N116: =L116-H116 -> 180.35 | O116: =IF((H116)=0,"",(N116/H116)) -> 0.08885768482
B117: LRAM & SSM Rate Rider | D117: per kW | F117: 0.0172 | G117: =$F105 -> 500 | H117: 8.6 | J117: 0 | K117: =$F105 -> 500 | L117: 0 | N117: -8.6 | O117: -1
B118: Tax Change Rate Rider | D118: per kW | F118: -0.0676 | G118: =$F105 -> 500 | H118: -33.8 | J118: 0 | K118: =$F105 -> 500 | L118: 0 | N118: 33.8 | O118: -1
B119: Lost CWIP | C119: =C75 -> 0 | D119: per kW | F119: 0 | G119: =$F105 -> 500 | H119: =G119*F119 -> 0 | J119: 0.1509 | K119: =$F105 -> 500 | L119: =K119*J119 -> 75.45 | N119: =L119-H119 -> 75.45 | O119: =IF((H119)=0,"",(N119/H119)) -> 
B120: =B31 -> 1576 Rate Rider | D120: =D31 -> per kW | F120: =F31 -> 0 | G120: =$F105 -> 500 | H120: 0 | J120: =J31 -> -1.0188 | K120: =$F105 -> 500 | L120: -509.4 | N120: -509.4
B121: Sub-Total A | H121: =SUM(H111:H120) -> 2242.17 | L121: =SUM(L111:L120) -> 1947.65 | N121: -294.52 | O121: -0.1313548928
B122: =B33 -> Deferral/Variance Account Disposition Rate Rider | C122: =C78 -> 0 | D122: =D33 -> per kW | F122: =F33 -> 0 | G122: =$F105 -> 500 | H122: =G122*F122 -> 0 | J122: =J33 -> -0.1226 | K122: =$F105 -> 500 | L122: =K122*J122 -> -61.3 | N122: =L122-H122 -> -61.3 | O122: =IF((H122)=0,"",(N122/H122)) -> 
B123: =B34 -> Global Adjustment Rate Rider | C123: =C79 -> 0 | D123: =D34 -> per kW | F123: =F34 -> 0 | G123: =$F105 -> 500 | H123: =G123*F123 -> 0 | J123: =J34 -> 2.1665 | K123: =$F105 -> 500 | L123: =K123*J123 -> 1083.25 | N123: =L123-H123 -> 1083.25 | O123: =IF((H123)=0,"",(N123/H123)) -> 
B124: =B36 -> Low Voltage Service Charge | D124: =D36 -> 0 | F124: =F36 -> 0 | G124: =$F105 -> 500 | H124: =G124*F124 -> 0 | J124: =J36 -> 0 | K124: =$F105 -> 500 | L124: =K124*J124 -> 0 | N124: =L124-H124 -> 0 | O124: =IF((H124)=0,"",(N124/H124)) -> 
B125: =B37 -> 0 | D125: =D37 -> 0 | F125: =F37 -> 0 | G125: 1 | H125: =G125*F125 -> 0 | J125: =J37 -> 0 | K125: 1 | L125: =K125*J125 -> 0 | N125: =L125-H125 -> 0
B126: Sub-Total B - Distribution (includes Sub-Total A) | H126: =SUM(H122:H124)+H121 -> 2242.17 | L126: =SUM(L122:L124)+L121 -> 2969.6 | N126: =L126-H126 -> 727.43 | O126: =IF((H126)=0,"",(N126/H126)) -> 0.3244312429
B127: RTSR - Network | D127: =D83 -> per kW | F127: =F39 -> 3.0721 | G127: =F105*(1+F143) -> 516 | H127: =G127*F127 -> 1585.2036 | J127: =J39 -> 3.2836 | K127: =F105*(1+J143) -> 517.55 | L127: =K127*J127 -> 1699.42718 | N127: 114.22358 | O127: 0.07205609425
B128: RTSR - Line and Transformation Connection | D128: =D84 -> per kW | F128: =F40 -> 0.674 | G128: =G127 -> 516 | H128: =G128*F128 -> 347.784 | J128: =J40 -> 0.6851 | K128: =K127 -> 517.55 | L128: =K128*J128 -> 354.573505 | N128: 6.789505 | O128: 0.01952218906
B129: Sub-Total C - Delivery (including Sub-Total B) | H129: =SUM(H126:H128) -> 4175.1576 | L129: =SUM(L126:L128) -> 5023.600685 | N129: 848.443085 | O129: 0.2032122296
B130: Wholesale Market Service Charge (WMSC) | D130: =D42 -> per kWh | F130: =F42 -> 0.0044 | G130: =F106*(1+F143) -> 258000 | H130: =G130*F130 -> 1135.2 | J130: =J42 -> 0.0044 | K130: =F106*(1+J143) -> 258775 | L130: =K130*J130 -> 1138.61 | N130: 3.41 | O130: 0.003003875969
B131: Rural and Remote Rate Protection (RRRP) | D131: =D43 -> per kWh | F131: =F43 -> 0.0012 | G131: =+G130 -> 258000 | H131: 309.6 | J131: =J43 -> 0.0013 | K131: =+K130 -> 258775 | L131: 336.4075 | N131: 26.8075 | O131: 0.0865875323
B132: Standard Supply Service Charge | D132: =D44 -> Monthly | F132: =F44 -> 0.25 | G132: 1 | H132: 0.25 | J132: =J44 -> 0.25 | K132: 1 | L132: 0.25 | N132: 0 | O132: 0
B133: Debt Retirement Charge (DRC) | D133: =D45 -> per kWh | F133: =F45 -> 0.007 | G133: =+F106 -> 250000 | H133: 1750 | J133: =J45 -> 0.007 | K133: =+F106 -> 250000 | L133: 1750 | N133: 0 | O133: 0
B134: Energy - Non RPP - Spot Price | D134: =D46 -> per kWh | F134: =F46 -> 0.08717 | G134: =+G130 -> 258000 | H134: =G134*F134 -> 22489.86 | J134: =J46 -> 0.08717 | K134: =+K130 -> 258775 | L134: =K134*J134 -> 22557.41675 | N134: 67.55675 | O134: 0.003003875969
B136: Total Bill on RPP (before Taxes) | H136: =SUM(H129:H134) -> 29860.0676 | L136: =SUM(L129:L134) -> 30806.28493 | N136: =L136-H136 -> 946.217335 | O136: =IF((H136)=0,"",(N136/H136)) -> 0.03168838556
B137: HST | F137: 0.13 | H137: =H136*F137 -> 3881.808788 | J137: 0.13 | L137: =L136*J137 -> 4004.817042 | N137: 123.0082535 | O137: 0.03168838556
B138: Total Bill (including HST) | H138: =H136+H137 -> 33741.87639 | L138: =L136+L137 -> 34811.10198 | N138: 1069.225589 | O138: 0.03168838556
B139: Ontario Clean Energy Benefit 1 | H139: 0 | L139: 0 | N139: 0
B140: Total Bill on RPP (including OCEB) | H140: =SUM(H138:H139) -> 33741.87639 | L140: =SUM(L138:L139) -> 34811.10198 | N140: 1069.225589 | O140: 0.03168838556
B143: Loss Factor (%) | F143: =+F99 -> 0.032 | J143: =+J99 -> 0.0351
A145: 1 Applicable to eligible customers only. Refer to the Ontario Clean Energy Benefit Act, 2010.
B147: Customer Class: | D147: =$D$14 -> GS>50kW
D149: Consumption | F149: 1000 | G149: kW
F150: 400000 | G150: kWh
F152: Current Board-Approved | J152: Proposed | N152: Impact
D153: Charge Unit | F153: Rate | G153: Volume | H153: Charge | J153: Rate | K153: Volume | L153: Charge | N153: $ Change | O153: % Change
F154: ($) | H154: ($) | J154: ($) | L154: ($)
B155: =B22 -> Monthly Service Charge | D155: =D22 -> Monthly | F155: =F22 -> 237.72 | G155: 1 | H155: =G155*F155 -> 237.72 | J155: =J22 -> 170 | K155: 1 | L155: =K155*J155 -> 170 | N155: =L155-H155 -> -67.72 | O155: =IF((H155)=0,"",(N155/H155)) -> -0.2848729598
B156: Forgone Revenue Rate Rider | D156: Monthly | F156: 0 | G156: 1 | H156: =G156*F156 -> 0 | J156: 1.6 | K156: 1 | L156: =K156*J156 -> 1.6 | N156: =L156-H156 -> 1.6 | O156: =IF((H156)=0,"",(N156/H156)) -> 
B157: 0 | D157: 0 | F157: 0 | G157: 1 | H157: 0 | J157: 0 | K157: 1 | L157: =K157*J157 -> 0 | N157: =L157-H157 -> 0 | O157: =IF((H157)=0,"",(N157/H157)) -> 
B158: 0 | C158: =C114 -> 0 | D158: 0 | F158: 0 | G158: 1 | H158: 0 | J158: 0 | K158: 1 | L158: 0 | N158: 0
B159: 0 | C159: =C115 -> 0 | D159: 0 | F159: 0 | G159: 1 | H159: =G159*F159 -> 0 | J159: 0 | K159: 1 | L159: =K159*J159 -> 0 | N159: =L159-H159 -> 0 | O159: =IF((H159)=0,"",(N159/H159)) -> 
B160: Distribution Volumetric Rate | D160: per kW | F160: 4.0593 | G160: =$F149 -> 1000 | H160: =G160*F160 -> 4059.3 | J160: 4.42 | K160: =$F149 -> 1000 | L160: =K160*J160 -> 4420 | N160: =L160-H160 -> 360.7 | O160: =IF((H160)=0,"",(N160/H160)) -> 0.08885768482
B161: LRAM & SSM Rate Rider | D161: per kW | F161: 0.0172 | G161: =$F149 -> 1000 | H161: 17.2 | J161: 0 | K161: =$F149 -> 1000 | L161: 0 | N161: -17.2 | O161: -1
B162: Tax Change Rate Rider | D162: per kW | F162: -0.0676 | G162: =$F149 -> 1000 | H162: -67.6 | J162: 0 | K162: =$F149 -> 1000 | L162: 0 | N162: 67.6 | O162: -1
B163: Lost CWIP | C163: =C119 -> 0 | D163: per kW | F163: 0 | G163: =$F149 -> 1000 | H163: =G163*F163 -> 0 | J163: 0.1509 | K163: =$F149 -> 1000 | L163: =K163*J163 -> 150.9 | N163: =L163-H163 -> 150.9 | O163: =IF((H163)=0,"",(N163/H163)) -> 
B164: =B31 -> 1576 Rate Rider | D164: =D31 -> per kW | F164: =F31 -> 0 | G164: =$F149 -> 1000 | H164: 0 | J164: =J31 -> -1.0188 | K164: =$F149 -> 1000 | L164: -1018.8 | N164: -1018.8
B165: Sub-Total A | H165: =SUM(H155:H164) -> 4246.62 | L165: =SUM(L155:L164) -> 3723.7 | N165: -522.92 | O165: -0.1231379309
B166: =B33 -> Deferral/Variance Account Disposition Rate Rider | C166: =C122 -> 0 | D166: =D33 -> per kW | F166: =F33 -> 0 | G166: =$F149 -> 1000 | H166: =G166*F166 -> 0 | J166: =J33 -> -0.1226 | K166: =$F149 -> 1000 | L166: =K166*J166 -> -122.6 | N166: =L166-H166 -> -122.6 | O166: =IF((H166)=0,"",(N166/H166)) -> 
B167: =B34 -> Global Adjustment Rate Rider | C167: =C123 -> 0 | D167: =D34 -> per kW | F167: =F34 -> 0 | G167: =$F149 -> 1000 | H167: =G167*F167 -> 0 | J167: =J34 -> 2.1665 | K167: =$F149 -> 1000 | L167: =K167*J167 -> 2166.5 | N167: =L167-H167 -> 2166.5 | O167: =IF((H167)=0,"",(N167/H167)) -> 
B168: =B36 -> Low Voltage Service Charge | D168: =D36 -> 0 | F168: =F36 -> 0 | G168: =$F149 -> 1000 | H168: =G168*F168 -> 0 | J168: =J36 -> 0 | K168: =$F149 -> 1000 | L168: =K168*J168 -> 0 | N168: =L168-H168 -> 0 | O168: =IF((H168)=0,"",(N168/H168)) -> 
B169: =B37 -> 0 | D169: =D37 -> 0 | F169: =F37 -> 0 | G169: 1 | H169: =G169*F169 -> 0 | J169: =J37 -> 0 | K169: 1 | L169: =K169*J169 -> 0 | N169: =L169-H169 -> 0
B170: Sub-Total B - Distribution (includes Sub-Total A) | H170: =SUM(H166:H168)+H165 -> 4246.62 | L170: =SUM(L166:L168)+L165 -> 5767.6 | N170: =L170-H170 -> 1520.98 | O170: =IF((H170)=0,"",(N170/H170)) -> 0.3581624916
B171: RTSR - Network | D171: =D83 -> per kW | F171: =F39 -> 3.0721 | G171: =F149*(1+F187) -> 1032 | H171: =G171*F171 -> 3170.4072 | J171: =J39 -> 3.2836 | K171: =F149*(1+J187) -> 1035.1 | L171: =K171*J171 -> 3398.85436 | N171: 228.44716 | O171: 0.07205609425
B172: RTSR - Line and Transformation Connection | D172: =D84 -> per kW | F172: =F40 -> 0.674 | G172: =G171 -> 1032 | H172: =G172*F172 -> 695.568 | J172: =J40 -> 0.6851 | K172: =K171 -> 1035.1 | L172: =K172*J172 -> 709.14701 | N172: 13.57901 | O172: 0.01952218906
B173: Sub-Total C - Delivery (including Sub-Total B) | H173: =SUM(H170:H172) -> 8112.5952 | L173: =SUM(L170:L172) -> 9875.60137 | N173: 1763.00617 | O173: 0.2173171626
B174: Wholesale Market Service Charge (WMSC) | D174: =D42 -> per kWh | F174: =F42 -> 0.0044 | G174: =F150*(1+F187) -> 412800 | H174: =G174*F174 -> 1816.32 | J174: =J42 -> 0.0044 | K174: =F150*(1+J187) -> 414040 | L174: =K174*J174 -> 1821.776 | N174: 5.456 | O174: 0.003003875969
B175: Rural and Remote Rate Protection (RRRP) | D175: =D43 -> per kWh | F175: =F43 -> 0.0012 | G175: =+G174 -> 412800 | H175: 495.36 | J175: =J43 -> 0.0013 | K175: =+K174 -> 414040 | L175: 538.252 | N175: 42.892 | O175: 0.0865875323
B176: Standard Supply Service Charge | D176: =D44 -> Monthly | F176: =F44 -> 0.25 | G176: 1 | H176: 0.25 | J176: =J44 -> 0.25 | K176: 1 | L176: 0.25 | N176: 0 | O176: 0
B177: Debt Retirement Charge (DRC) | D177: =D45 -> per kWh | F177: =F45 -> 0.007 | G177: =+F150 -> 400000 | H177: 2800 | J177: =J45 -> 0.007 | K177: =+F150 -> 400000 | L177: 2800 | N177: 0 | O177: 0
B178: Energy - Non RPP - Spot Price | D178: =D46 -> per kWh | F178: =F46 -> 0.08717 | G178: =+G174 -> 412800 | H178: =G178*F178 -> 35983.776 | J178: =J46 -> 0.08717 | K178: =+K174 -> 414040 | L178: =K178*J178 -> 36091.8668 | N178: 108.0908 | O178: 0.003003875969
B180: Total Bill on RPP (before Taxes) | H180: =SUM(H173:H178) -> 49208.3012 | L180: =SUM(L173:L178) -> 51127.74617 | N180: =L180-H180 -> 1919.44497 | O180: =IF((H180)=0,"",(N180/H180)) -> 0.03900652783
B181: HST | F181: 0.13 | H181: =H180*F181 -> 6397.079156 | J181: 0.13 | L181: =L180*J181 -> 6646.607002 | N181: 249.5278461 | O181: 0.03900652783
B182: Total Bill (including HST) | H182: =H180+H181 -> 55605.38036 | L182: =L180+L181 -> 57774.35317 | N182: 2168.972816 | O182: 0.03900652783
B183: Ontario Clean Energy Benefit 1 | H183: 0 | L183: 0 | N183: 0
B184: Total Bill on RPP (including OCEB) | H184: =SUM(H182:H183) -> 55605.38036 | L184: =SUM(L182:L183) -> 57774.35317 | N184: 2168.972816 | O184: 0.03900652783
B187: Loss Factor (%) | F187: =+F143 -> 0.032 | J187: =+J143 -> 0.0351
A189: 1 Applicable to eligible customers only. Refer to the Ontario Clean Energy Benefit Act, 2010.
A191: Note that the "Charge $" columns provide breakdowns of the amounts that each bill component contributes to the total monthly bill at the referenced
A192: consumption level at existing and proposed rates.
A194: Applicants must provide bill impacts for residential at 800 kWh and GS<50kW at 2000 kWh. In addition, their filing should cover the range that is relevant
A195: to their service territory, class by class. A general guideline of consumption levels follows:
A197: Residential (kWh) - 100, 250, 500, 800, 1000, 1500, 2000
A198: GS<50kW (kWh) - 1000, 2000, 5000, 10000, 15000
A199: GS>50kW (kW) - 60, 100, 500, 1000
A200: Large User - range appropriate for utility
A201: Lighting Classes and USL - 150 kWh and 1 kW, range appropriate for utility.

Sheet App.2-W_Impacts-LU
N1: File Number: | O1: ='LDC Info'!$E$18 -> EB-2013-0147 | T1: 1
N2: Exhibit: | O2: 8
N3: Tab:
N4: Schedule:
N5: Page:
N7: Date:
B10: Appendix 2-W
B11: Bill Impacts
B14: Customer Class: | D14: Large User
C16: Consumption | F16: 5250 | G16: kW
F17: 2650000 | G17: kWh
F19: Current Board-Approved | J19: Proposed | N19: Impact
D20: Charge Unit | F20: Rate | G20: Volume | H20: Charge | J20: Rate | K20: Volume | L20: Charge | N20: $ Change | O20: % Change
F21: ($) | H21: ($) | J21: ($) | L21: ($)
B22: Monthly Service Charge | D22: Monthly | F22: 14501.61 | G22: 1 | H22: =G22*F22 -> 14501.61 | J22: =+'App.2-V_Rev_Reconciliation'!H19 -> 15948.21 | K22: 1 | L22: =K22*J22 -> 15948.21 | N22: =L22-H22 -> 1446.6 | O22: =IF((H22)=0,"",(N22/H22)) -> 0.09975444106
B23: Foregone Revenue Rate Rider | D23: Monthly | F23: 0 | G23: 1 | H23: =G23*F23 -> 0 | J23: 928.03 | K23: 1 | L23: =K23*J23 -> 928.03 | N23: =L23-H23 -> 928.03 | O23: =IF((H23)=0,"",(N23/H23)) -> 
F24: 0 | G24: 1 | H24: 0 | J24: 0 | K24: 1 | L24: =K24*J24 -> 0 | N24: =L24-H24 -> 0 | O24: =IF((H24)=0,"",(N24/H24)) -> 
F25: 0 | G25: 1 | H25: 0 | J25: 0 | K25: 1 | L25: 0 | N25: 0
F26: 0 | G26: 1 | H26: =G26*F26 -> 0 | J26: 0 | K26: 1 | L26: =K26*J26 -> 0 | N26: =L26-H26 -> 0 | O26: =IF((H26)=0,"",(N26/H26)) -> 
B27: Distribution Volumetric Rate | D27: per kW | F27: 1.382 | G27: =$F16 -> 5250 | H27: =G27*F27 -> 7255.5 | J27: =+'App.2-V_Rev_Reconciliation'!J19 -> 1.46 | K27: =$F16 -> 5250 | L27: =K27*J27 -> 7665 | N27: =L27-H27 -> 409.5 | O27: =IF((H27)=0,"",(N27/H27)) -> 0.05643994211
B28: LRAM & SSM Rate Rider | D28: per kW | F28: 0 | G28: =$F16 -> 5250 | H28: 0 | J28: 0 | K28: =$F16 -> 5250 | L28: 0 | N28: 0
B29: Tax Change Rate Rider | D29: per kW | F29: -0.0488 | G29: =$F16 -> 5250 | H29: -256.2 | J29: 0 | K29: =$F16 -> 5250 | L29: 0 | N29: 256.2 | O29: -1
B30: Lost CWIP | D30: per kW | F30: 0 | G30: =$F16 -> 5250 | H30: =G30*F30 -> 0 | J30: 0.1418 | K30: =$F16 -> 5250 | L30: =K30*J30 -> 744.45 | N30: =L30-H30 -> 744.45 | O30: =IF((H30)=0,"",(N30/H30)) -> 
B31: 1576 Rate Rider | D31: per kW | F31: 0 | G31: =$F16 -> 5250 | H31: 0 | J31: -0.957 | K31: =$F16 -> 5250 | L31: -5024.25 | N31: -5024.25
B32: Sub-Total A | H32: =SUM(H22:H31) -> 21500.91 | L32: =SUM(L22:L31) -> 20261.44 | N32: -1239.47 | O32: -0.05764732749
B33: Deferral/Variance Account Disposition Rate Rider | D33: per kW | F33: 0 | G33: =$F16 -> 5250 | H33: =G33*F33 -> 0 | J33: -0.3635 | K33: =$F16 -> 5250 | L33: =K33*J33 -> -1908.375 | N33: =L33-H33 -> -1908.375 | O33: =IF((H33)=0,"",(N33/H33)) -> 
B34: Global Adjustment Rate Rider | D34: per kW | F34: 0 | G34: =$F16 -> 5250 | H34: =G34*F34 -> 0 | J34: -1.88 | K34: =$F16 -> 5250 | L34: =K34*J34 -> -9870 | N34: =L34-H34 -> -9870 | O34: =IF((H34)=0,"",(N34/H34)) -> 
B35: Low Voltage Service Charge | F35: 0 | G35: =$F16 -> 5250 | H35: =G35*F35 -> 0 | J35: 0 | K35: =$F16 -> 5250 | L35: =K35*J35 -> 0 | N35: =L35-H35 -> 0 | O35: =IF((H35)=0,"",(N35/H35)) -> 
F36: 0 | G36: 1 | H36: =G36*F36 -> 0 | J36: 0 | K36: 1 | L36: =K36*J36 -> 0 | N36: =L36-H36 -> 0
B37: Sub-Total B - Distribution (includes Sub-Total A) | H37: =SUM(H33:H35)+H32 -> 21500.91 | L37: =SUM(L33:L35)+L32 -> 8483.065 | N37: =L37-H37 -> -13017.845 | O37: =IF((H37)=0,"",(N37/H37)) -> -0.6054555365
B38: RTSR - Network | D38: per kW | F38: 2.8874 | G38: =F16*(1+F54) -> 5277.825 | H38: =G38*F38 -> 15239.19191 | J38: 3.0862 | K38: =F16*(1+J54) -> 5277.825 | L38: =K38*J38 -> 16288.42352 | N38: 1049.23161 | O38: 0.06885086929
B39: RTSR - Line and Transformation Connection | D39: per kW | F39: 0.6335 | G39: =G38 -> 5277.825 | H39: =G39*F39 -> 3343.502138 | J39: 0.6441 | K39: =K38 -> 5277.825 | L39: =K39*J39 -> 3399.447083 | N39: 55.944945 | O39: 0.01673243883
B40: Sub-Total C - Delivery (including Sub-Total B) | H40: =SUM(H37:H39) -> 40083.60404 | L40: =SUM(L37:L39) -> 28170.9356 | N40: -11912.66845 | O40: -0.2971955424
B41: Wholesale Market Service Charge (WMSC) | D41: per kWh | F41: 0.0044 | G41: =F17*(1+F54) -> 2664045 | H41: =G41*F41 -> 11721.798 | J41: 0.0044 | K41: =F17*(1+J54) -> 2664045 | L41: =K41*J41 -> 11721.798 | N41: 0 | O41: 0
B42: Rural and Remote Rate Protection (RRRP) | D42: per kWh | F42: 0.0012 | G42: =+G41 -> 2664045 | H42: 3196.854 | J42: 0.0013 | K42: =+K41 -> 2664045 | L42: 3463.2585 | N42: 266.4045 | O42: 0.08333333333
B43: Standard Supply Service Charge | D43: Monthly | F43: 0.25 | G43: 1 | H43: 0.25 | J43: 0.25 | K43: 1 | L43: 0.25 | N43: 0 | O43: 0
B44: Debt Retirement Charge (DRC) | D44: per kWh | F44: 0.007 | G44: =+F17 -> 2650000 | H44: 18550 | J44: 0.007 | K44: =+F17 -> 2650000 | L44: 18550 | N44: 0 | O44: 0
B45: Energy - Non RPP - Spot Price | D45: per kWh | F45: 0.08717 | G45: =+G41 -> 2664045 | H45: =G45*F45 -> 232224.8026 | J45: =+F45 -> 0.08717 | K45: =+K41 -> 2664045 | L45: =K45*J45 -> 232224.8026 | N45: 0 | O45: 0
B47: Total Bill on RPP (before Taxes) | H47: =SUM(H40:H45) -> 305777.3087 | L47: =SUM(L40:L45) -> 294131.0447 | N47: =L47-H47 -> -11646.26395 | O47: =IF((H47)=0,"",(N47/H47)) -> -0.03808740418
B48: HST | F48: 0.13 | H48: =H47*F48 -> 39751.05013 | J48: 0.13 | L48: =L47*J48 -> 38237.03582 | N48: -1514.014313 | O48: -0.03808740418
B49: Total Bill (including HST) | H49: =H47+H48 -> 345528.3588 | L49: =L47+L48 -> 332368.0806 | N49: -13160.27826 | O49: -0.03808740418
B50: Ontario Clean Energy Benefit 1 | H50: 0 | L50: 0 | N50: 0
B51: Total Bill on RPP (including OCEB) | H51: =SUM(H49:H50) -> 345528.3588 | L51: =SUM(L49:L50) -> 332368.0806 | N51: -13160.27826 | O51: -0.03808740418
B54: Loss Factor (%) | F54: 0.0053 | J54: 0.0053
A56: 1 Applicable to eligible customers only. Refer to the Ontario Clean Energy Benefit Act, 2010.
A58: Note that the "Charge $" columns provide breakdowns of the amounts that each bill component contributes to the total monthly bill at the referenced
A59: consumption level at existing and proposed rates.
A61: Applicants must provide bill impacts for residential at 800 kWh and GS<50kW at 2000 kWh. In addition, their filing should cover the range that is relevant
A62: to their service territory, class by class. A general guideline of consumption levels follows:
A64: Residential (kWh) - 100, 250, 500, 800, 1000, 1500, 2000
A65: GS<50kW (kWh) - 1000, 2000, 5000, 10000, 15000
A66: GS>50kW (kW) - 60, 100, 500, 1000
A67: Large User - range appropriate for utility
A68: Lighting Classes and USL - 150 kWh and 1 kW, range appropriate for utility.

Sheet App.2-W_Impacts-USL
N1: File Number: | O1: ='LDC Info'!$E$18 -> EB-2013-0147 | T1: 1
N2: Exhibit: | O2: 8
N3: Tab:
N4: Schedule:
N5: Page:
N7: Date:
B10: Appendix 2-W
B11: Bill Impacts
B14: Customer Class: | D14: Unmetered Scattered Load
D16: Consumption | F16: 2000 | G16: kWh
F18: Current Board-Approved | J18: Proposed | N18: Impact
D19: Charge Unit | F19: Rate | G19: Volume | H19: Charge | J19: Rate | K19: Volume | L19: Charge | N19: $ Change | O19: % Change
F20: ($) | H20: ($) | J20: ($) | L20: ($)
B21: Monthly Service Charge | D21: Monthly | F21: 8.52 | G21: 1 | H21: =G21*F21 -> 8.52 | J21: =+'App.2-V_Rev_Reconciliation'!H21 -> 6.89 | K21: 1 | L21: =K21*J21 -> 6.89 | N21: =L21-H21 -> -1.63 | O21: =IF((H21)=0,"",(N21/H21)) -> -0.191314554
B22: Foregone Revenue Rate Rider | D22: Monthly | F22: 0 | G22: 1 | H22: =G22*F22 -> 0 | J22: -1.33 | K22: 1 | L22: =K22*J22 -> -1.33 | N22: =L22-H22 -> -1.33 | O22: =IF((H22)=0,"",(N22/H22)) -> 
F23: 0 | G23: 1 | H23: 0 | J23: 0 | K23: 1 | L23: =K23*J23 -> 0 | N23: =L23-H23 -> 0 | O23: =IF((H23)=0,"",(N23/H23)) -> 
F24: 0 | G24: 1 | H24: 0 | J24: 0 | K24: 1 | L24: 0 | N24: 0
F25: 0 | G25: 1 | H25: =G25*F25 -> 0 | J25: 0 | K25: 1 | L25: =K25*J25 -> 0 | N25: =L25-H25 -> 0 | O25: =IF((H25)=0,"",(N25/H25)) -> 
B26: Distribution Volumetric Rate | D26: per kWh | F26: 0.0166 | G26: =$F16 -> 2000 | H26: =G26*F26 -> 33.2 | J26: =+'App.2-V_Rev_Reconciliation'!I21 -> 0.0134 | K26: =$F16 -> 2000 | L26: =K26*J26 -> 26.8 | N26: =L26-H26 -> -6.4 | O26: =IF((H26)=0,"",(N26/H26)) -> -0.1927710843
B27: LRAM & SSM Rate Rider | D27: per kWh | F27: 0.0045 | G27: =$F16 -> 2000 | H27: 9 | J27: 0 | K27: =$F16 -> 2000 | L27: 0 | N27: -9 | O27: -1
B28: Tax Change Rate Rider | D28: per kWh | F28: -0.0005 | G28: =$F16 -> 2000 | H28: -1 | J28: 0 | K28: =$F16 -> 2000 | L28: 0 | N28: 1 | O28: -1
B29: Lost CWIP | D29: per kWh | F29: 0 | G29: =$F16 -> 2000 | H29: =G29*F29 -> 0 | J29: 0.0034 | K29: =$F16 -> 2000 | L29: =K29*J29 -> 6.8 | N29: =L29-H29 -> 6.8 | O29: =IF((H29)=0,"",(N29/H29)) -> 
B30: 1576 Rate Rider | D30: per kWh | F30: 0 | G30: =$F16 -> 2000 | H30: 0 | J30: -0.0229 | K30: =$F16 -> 2000 | L30: -45.8 | N30: -45.8
B31: Sub-Total A | H31: =SUM(H21:H30) -> 49.72 | L31: =SUM(L21:L30) -> -6.64 | N31: -56.36 | O31: -1.133547868
B32: Deferral/Variance Account Disposition Rate Rider | D32: per kWh | F32: 0 | G32: =$F16 -> 2000 | H32: =G32*F32 -> 0 | J32: -0.0013 | K32: =$F16 -> 2000 | L32: =K32*J32 -> -2.6 | N32: =L32-H32 -> -2.6 | O32: =IF((H32)=0,"",(N32/H32)) -> 
F33: 0 | G33: =$F16 -> 2000 | H33: =G33*F33 -> 0 | J33: 0 | K33: =$F16 -> 2000 | L33: =K33*J33 -> 0 | N33: =L33-H33 -> 0 | O33: =IF((H33)=0,"",(N33/H33)) -> 
B34: Low Voltage Service Charge | F34: 0 | G34: =$F16 -> 2000 | H34: =G34*F34 -> 0 | J34: 0 | K34: =$F16 -> 2000 | L34: =K34*J34 -> 0 | N34: =L34-H34 -> 0 | O34: =IF((H34)=0,"",(N34/H34)) -> 
F35: 0 | H35: =G35*F35 -> 0 | J35: 0 | L35: =K35*J35 -> 0 | N35: =L35-H35 -> 0
B36: Sub-Total B - Distribution (includes Sub-Total A) | H36: =SUM(H32:H34)+H31 -> 49.72 | L36: =SUM(L32:L34)+L31 -> -9.24 | N36: =L36-H36 -> -58.96 | O36: =IF((H36)=0,"",(N36/H36)) -> -1.185840708
B37: RTSR - Network | D37: per kWh | F37: 0.0058 | G37: =F16*(1+F63) -> 2064 | H37: =G37*F37 -> 11.9712 | J37: 0.0062 | K37: =F16*(1+J63) -> 2070.2 | L37: =K37*J37 -> 12.83524 | N37: 0.86404 | O37: 0.07217655707
B38: RTSR - Line and Transformation Connection | D38: per kWh | F38: 0.0013 | G38: =G37 -> 2064 | H38: =G38*F38 -> 2.6832 | J38: 0.0013 | K38: =K37 -> 2070.2 | L38: =K38*J38 -> 2.69126 | N38: 0.00806 | O38: 0.003003875969
B39: Sub-Total C - Delivery (including Sub-Total B) | H39: =SUM(H36:H38) -> 64.3744 | L39: =SUM(L36:L38) -> 6.2865 | N39: -58.0879 | O39: -0.9023447209
B40: Wholesale Market Service Charge (WMSC) | D40: per kWh | F40: 0.0044 | G40: =G38 -> 2064 | H40: =G40*F40 -> 9.0816 | J40: 0.0044 | K40: =K38 -> 2070.2 | L40: =K40*J40 -> 9.10888 | N40: 0.02728 | O40: 0.003003875969
B41: Rural and Remote Rate Protection (RRRP) | D41: per kWh | F41: 0.0012 | G41: =G38 -> 2064 | H41: 2.4768 | J41: 0.0013 | K41: =K38 -> 2070.2 | L41: 2.69126 | N41: 0.21446 | O41: 0.0865875323
B42: Standard Supply Service Charge | D42: Monthly | F42: 0.25 | G42: 1 | H42: 0.25 | J42: 0.25 | K42: 1 | L42: 0.25 | N42: 0 | O42: 0
B43: Debt Retirement Charge (DRC) | D43: per kWh | F43: 0.007 | G43: =+F16 -> 2000 | H43: 14 | J43: 0.007 | K43: =K41 -> 2070.2 | L43: 14.4914 | N43: 0.4914 | O43: 0.0351
B44: Energy - RPP - Tier 1 | D44: per kWh | F44: ='App.2-W_Impacts-Res'!F44 -> 0.078 | G44: =IF($T$1=1,IF($F16>=600,600,IF($F16<600,$F16*(1+$F63),$F16-600)),IF($T$1=2,IF($F16>=1000,1000,IF($F16<1000,$F16*(1+$F63),$F16-1000)))) -> 600 | H44: =G44*F44 -> 46.8 | J44: ='App.2-W_Impacts-Res'!J44 -> 0.086 | K44: =IF($T$1=1,IF($F16>=600,600,IF($F16<600,$F16*(1+$J63),$F16-600)),IF($T$1=2,IF($F16>=1000,1000,IF($F16<1000,$F16*(1+$J63),$F16-1000)))) -> 600 | L44: =K44*J44 -> 51.6 | N44: 4.8 | O44: 0.1025641026
B45: Energy - RPP - Tier 2 | D45: per kWh | F45: ='App.2-W_Impacts-Res'!F45 -> 0.091 | G45: =IF($T$1=1,IF($F16>=600,$F16*(1+$F63)-600,IF($F16<600,0,)), IF($T$1=2,IF($F16>=1000,$F16*(1+$F63)-1000,IF($F16<1000,0)))) -> 1464 | H45: =G45*F45 -> 133.224 | J45: ='App.2-W_Impacts-Res'!J45 -> 0.101 | K45: =IF($T$1=1,IF($F16>=600,$F16*(1+$J63)-600,IF($F16<600,0,)), IF($T$1=2,IF($F16>=1000,$F16*(1+$J63)-1000,IF($F16<1000,0)))) -> 1470.2 | L45: =K45*J45 -> 148.4902 | N45: 15.2662 | O45: 0.1145904642
B46: TOU - Off Peak | D46: per kWh | F46: ='App.2-W_Impacts-Res'!F46 -> 0.067 | G46: =0.64*$F16*(1+$F63) -> 1320.96 | H46: =G46*F46 -> 88.50432 | J46: ='App.2-W_Impacts-Res'!J46 -> 0.075 | K46: =0.64*$F16*(1+$J63) -> 1324.928 | L46: =K46*J46 -> 99.3696 | N46: 10.86528 | O46: 0.1227655328
B47: TOU - Mid Peak | D47: per kWh | F47: ='App.2-W_Impacts-Res'!F47 -> 0.104 | G47: =0.18*$F16*(1+$F63) -> 371.52 | H47: 38.63808 | J47: ='App.2-W_Impacts-Res'!J47 -> 0.112 | K47: =0.18*$F16*(1+$J63) -> 372.636 | L47: 41.735232 | N47: 3.097152 | O47: 0.08015802027
B48: TOU - On Peak | D48: per kWh | F48: ='App.2-W_Impacts-Res'!F48 -> 0.124 | G48: =0.18*$F16*(1+$F63) -> 371.52 | H48: 46.06848 | J48: ='App.2-W_Impacts-Res'!J48 -> 0.135 | K48: =0.18*$F16*(1+$J63) -> 372.636 | L48: 50.30586 | N48: 4.23738 | O48: 0.09198002626
B50: Total Bill on RPP (before Taxes) | H50: =SUM(H39:H45) -> 270.2068 | L50: =SUM(L39:L45) -> 232.91824 | N50: =L50-H50 -> -37.28856 | O50: =IF((H50)=0,"",(N50/H50)) -> -0.1380000799
B51: HST | F51: 0.13 | H51: =H50*F51 -> 35.126884 | J51: 0.13 | L51: =L50*J51 -> 30.2793712 | N51: -4.8475128 | O51: -0.1380000799
B52: Total Bill (including HST) | H52: =H50+H51 -> 305.333684 | L52: =L50+L51 -> 263.1976112 | N52: -42.1360728 | O52: -0.1380000799
B53: Ontario Clean Energy Benefit 1 | H53: 0 | L53: 0 | N53: 0
B54: Total Bill on RPP (including OCEB) | H54: =SUM(H52:H53) -> 305.333684 | L54: =SUM(L52:L53) -> 263.1976112 | N54: -42.1360728 | O54: -0.1380000799
B56: Total Bill on TOU (before Taxes) | H56: =SUM(H39:H43,H46:H48) -> 263.39368 | L56: =SUM(L39:L43,L46:L48) -> 224.238732 | N56: =L56-H56 -> -39.154948 | O56: =IF((H56)=0,"",(N56/H56)) -> -0.1486556094
B57: HST | F57: 0.13 | H57: =H56*F57 -> 34.2411784 | J57: 0.13 | L57: =L56*J57 -> 29.15103516 | N57: -5.09014324 | O57: -0.1486556094
B58: Total Bill (including HST) | H58: =H56+H57 -> 297.6348584 | L58: =L56+L57 -> 253.3897672 | N58: -44.24509124 | O58: -0.1486556094
B59: Ontario Clean Energy Benefit 1 | H59: 0 | L59: 0 | N59: 0
B60: Total Bill on TOU (including OCEB) | H60: =H58+H59 -> 297.6348584 | L60: =L58+L59 -> 253.3897672 | N60: -44.24509124 | O60: -0.1486556094
B63: Loss Factor (%) | F63: ='App.2-W_Impacts-Res'!$F$63 -> 0.032 | J63: ='App.2-W_Impacts-Res'!$J$63 -> 0.0351
A65: 1 Applicable to eligible customers only. Refer to the Ontario Clean Energy Benefit Act, 2010.
A67: Note that the "Charge $" columns provide breakdowns of the amounts that each bill component contributes to the total monthly bill at the referenced
A68: consumption level at existing and proposed rates.
A70: Applicants must provide bill impacts for residential at 800 kWh and GS<50kW at 2000 kWh. In addition, their filing should cover the range that is relevant
A71: to their service territory, class by class. A general guideline of consumption levels follows:
A73: Residential (kWh) - 100, 250, 500, 800, 1000, 1500, 2000
A74: GS<50kW (kWh) - 1000, 2000, 5000, 10000, 15000
A75: GS>50kW (kW) - 60, 100, 500, 1000
A76: Large User - range appropriate for utility
A77: Lighting Classes and USL - 150 kWh and 1 kW, range appropriate for utility.

Sheet App.2-W_Impacts-SL
N1: File Number: | O1: ='LDC Info'!$E$18 -> EB-2013-0147 | T1: 1
N2: Exhibit: | O2: 8
N3: Tab:
N4: Schedule:
N5: Page:
N7: Date:
B10: Appendix 2-W
B11: Bill Impacts
B14: Customer Class: | D14: Street Lighting
C16: Consumption | F16: 37 | G16: kW
F17: 750 | G17: kWh
F19: Current Board-Approved | J19: Proposed | N19: Impact
D20: Charge Unit | F20: Rate | G20: Volume | H20: Charge | J20: Rate | K20: Volume | L20: Charge | N20: $ Change | O20: % Change
F21: ($) | H21: ($) | J21: ($) | L21: ($)
B22: Monthly Service Charge | D22: Monthly | F22: 0.8 | G22: 1 | H22: =G22*F22 -> 0.8 | J22: =+'App.2-V_Rev_Reconciliation'!H20 -> 0.7 | K22: 1 | L22: =K22*J22 -> 0.7 | N22: =L22-H22 -> -0.1 | O22: =IF((H22)=0,"",(N22/H22)) -> -0.125
B23: Foregone Revenue Rate Rider | D23: Monthly | F23: 0 | G23: 1 | H23: =G23*F23 -> 0 | J23: -0.1 | K23: 1 | L23: =K23*J23 -> -0.1 | N23: =L23-H23 -> -0.1 | O23: =IF((H23)=0,"",(N23/H23)) -> 
F24: 0 | G24: 1 | H24: 0 | J24: 0 | K24: 1 | L24: =K24*J24 -> 0 | N24: =L24-H24 -> 0 | O24: =IF((H24)=0,"",(N24/H24)) -> 
F25: 0 | G25: 1 | H25: 0 | J25: 0 | K25: 1 | L25: 0 | N25: 0
F26: 0 | G26: 1 | H26: =G26*F26 -> 0 | J26: 0 | K26: 1 | L26: =K26*J26 -> 0 | N26: =L26-H26 -> 0
B27: Distribution Volumetric Rate | D27: per kW | F27: 5.3386 | G27: =$F16 -> 37 | H27: =G27*F27 -> 197.5282 | J27: =+'App.2-V_Rev_Reconciliation'!J20 -> 4.6513 | K27: =$F16 -> 37 | L27: =K27*J27 -> 172.0981 | N27: =L27-H27 -> -25.4301 | O27: =IF((H27)=0,"",(N27/H27)) -> -0.1287416177
B28: LRAM & SSM Rate Rider | D28: per kW | F28: 0 | G28: =$F16 -> 37 | H28: 0 | J28: 0 | K28: =$F16 -> 37 | L28: 0 | N28: 0
B29: Tax Change Rate Rider | D29: per kW | F29: -0.1278 | G29: =$F16 -> 37 | H29: -4.7286 | J29: 0 | K29: =$F16 -> 37 | L29: 0 | N29: 4.7286 | O29: -1
B30: Lost CWIP | D30: per kW | F30: 0 | G30: =$F16 -> 37 | H30: =G30*F30 -> 0 | J30: 0.0729 | K30: =$F16 -> 37 | L30: =K30*J30 -> 2.6973 | N30: =L30-H30 -> 2.6973 | O30: =IF((H30)=0,"",(N30/H30)) -> 
B31: 1576 Rate Rider | D31: per kW | F31: 0 | G31: =$F16 -> 37 | H31: 0 | J31: -0.4922 | K31: =$F16 -> 37 | L31: -18.2114 | N31: -18.2114
B32: Sub-Total A | H32: =SUM(H22:H31) -> 193.5996 | L32: =SUM(L22:L31) -> 157.184 | N32: -36.4156 | O32: -0.1880974961
B33: Deferral/Variance Account Disposition Rate Rider | D33: per kW | F33: 0 | G33: =$F16 -> 37 | H33: =G33*F33 -> 0 | J33: -0.2461 | K33: =$F16 -> 37 | L33: =K33*J33 -> -9.1057 | N33: =L33-H33 -> -9.1057 | O33: =IF((H33)=0,"",(N33/H33)) -> 
B34: Global Adjustment Rate Rider | D34: per kW | F34: 0 | G34: =$F16 -> 37 | H34: =G34*F34 -> 0 | J34: 1.9339 | K34: =$F16 -> 37 | L34: =K34*J34 -> 71.5543 | N34: =L34-H34 -> 71.5543 | O34: =IF((H34)=0,"",(N34/H34)) -> 
B35: Low Voltage Service Charge | F35: 0 | G35: =$F16 -> 37 | H35: =G35*F35 -> 0 | J35: 0 | K35: =$F16 -> 37 | L35: =K35*J35 -> 0 | N35: =L35-H35 -> 0 | O35: =IF((H35)=0,"",(N35/H35)) -> 
F36: 0 | G36: 1 | H36: =G36*F36 -> 0 | J36: 0 | K36: 1 | L36: =K36*J36 -> 0 | N36: =L36-H36 -> 0
B37: Sub-Total B - Distribution (includes Sub-Total A) | H37: =SUM(H33:H35)+H32 -> 193.5996 | L37: =SUM(L33:L35)+L32 -> 219.6326 | N37: =L37-H37 -> 26.033 | O37: =IF((H37)=0,"",(N37/H37)) -> 0.134468253
B38: RTSR - Network | D38: per kW | F38: 1.8681 | G38: =F16*(1+F54) -> 38.184 | H38: =G38*F38 -> 71.3315304 | J38: 1.9967 | K38: =F16*(1+J54) -> 38.2987 | L38: =K38*J38 -> 76.47101429 | N38: 5.13948389 | O38: 0.07205066064
B39: RTSR - Line and Transformation Connection | D39: per kW | F39: 0.4101 | G39: =G38 -> 38.184 | H39: =G39*F39 -> 15.6592584 | J39: 0.4169 | K39: =K38 -> 38.2987 | L39: =K39*J39 -> 15.96672803 | N39: 0.30746963 | O39: 0.01963500583
B40: Sub-Total C - Delivery (including Sub-Total B) | H40: =SUM(H37:H39) -> 280.5903888 | L40: =SUM(L37:L39) -> 312.0703423 | N40: 31.47995352 | O40: 0.1121918454
B41: Wholesale Market Service Charge (WMSC) | D41: per kWh | F41: 0.0044 | G41: =F17*(1+F54) -> 774 | H41: =G41*F41 -> 3.4056 | J41: 0.0044 | K41: =F17*(1+J54) -> 776.325 | L41: =K41*J41 -> 3.41583 | N41: 0.01023 | O41: 0.003003875969
B42: Rural and Remote Rate Protection (RRRP) | D42: per kWh | F42: 0.0012 | G42: =+G41 -> 774 | H42: 0.9288 | J42: 0.0013 | K42: =+K41 -> 776.325 | L42: 1.0092225 | N42: 0.0804225 | O42: 0.0865875323
B43: Standard Supply Service Charge | D43: Monthly | F43: 0.25 | G43: 1 | H43: 0.25 | J43: 0.25 | K43: 1 | L43: 0.25 | N43: 0 | O43: 0
B44: Debt Retirement Charge (DRC) | D44: per kWh | F44: 0.007 | G44: =+F17 -> 750 | H44: 5.25 | J44: 0.007 | K44: =+F17 -> 750 | L44: 5.25 | N44: 0 | O44: 0
B45: Energy - Non RPP - Spot Price | D45: per kWh | F45: 0.08717 | G45: =+G41 -> 774 | H45: =G45*F45 -> 67.46958 | J45: =+F45 -> 0.08717 | K45: =+K41 -> 776.325 | L45: =K45*J45 -> 67.67225025 | N45: 0.20267025 | O45: 0.003003875969
B47: Total Bill on RPP (before Taxes) | H47: =SUM(H40:H45) -> 357.8943688 | L47: =SUM(L40:L45) -> 389.6676451 | N47: =L47-H47 -> 31.77327627 | O47: =IF((H47)=0,"",(N47/H47)) -> 0.08877836323
B48: HST | F48: 0.13 | H48: =H47*F48 -> 46.52626794 | J48: 0.13 | L48: =L47*J48 -> 50.65679386 | N48: 4.130525915 | O48: 0.08877836323
B49: Total Bill (including HST) | H49: =H47+H48 -> 404.4206367 | L49: =L47+L48 -> 440.3244389 | N49: 35.90380219 | O49: 0.08877836323
B50: Ontario Clean Energy Benefit 1 | H50: 0 | L50: 0 | N50: 0
B51: Total Bill on RPP (including OCEB) | H51: =SUM(H49:H50) -> 404.4206367 | L51: =SUM(L49:L50) -> 440.3244389 | N51: 35.90380219 | O51: 0.08877836323
B54: Loss Factor (%) | F54: ='App.2-W_Impacts-Res'!$F$63 -> 0.032 | J54: ='App.2-W_Impacts-Res'!$J$63 -> 0.0351
A56: 1 Applicable to eligible customers only. Refer to the Ontario Clean Energy Benefit Act, 2010.
A58: Note that the "Charge $" columns provide breakdowns of the amounts that each bill component contributes to the total monthly bill at the referenced
A59: consumption level at existing and proposed rates.
A61: Applicants must provide bill impacts for residential at 800 kWh and GS<50kW at 2000 kWh. In addition, their filing should cover the range that is relevant
A62: to their service territory, class by class. A general guideline of consumption levels follows:
A64: Residential (kWh) - 100, 250, 500, 800, 1000, 1500, 2000
A65: GS<50kW (kWh) - 1000, 2000, 5000, 10000, 15000
A66: GS>50kW (kW) - 60, 100, 500, 1000
A67: Large User - range appropriate for utility
A68: Lighting Classes and USL - 150 kWh and 1 kW, range appropriate for utility.

Sheet App.2-Z_Tariff
B1: File Number: | C1: =EBNUMBER -> EB-2013-0147
B2: Exhibit:
B3: Tab:
B4: Schedule:
B5: Page:
B7: Date:
A8: Appendix 2-Z Proposed Tariff of Rates and Charges
A10: For each class, Applicants are required to copy and paste the class descriptions (located directly under the class name) and the description of the applicability of those rates (description is found under the class name and directly under the word "APPLICATION"). By using the drop-down lists located under the column labeled "Rate Description", please select the descriptions of the rates and charges that BEST MATCHES the descriptions on your most recent Board-Approved Tariff of Rates and Charges. If the description is not found in the drop-down list, please enter the description in the green shaded cells under the correct class exactly as it appears on the tariff. Please do not enter more than one "Service Charge" for each class for which a base monthly fixed charge applies. All rate rider descriptions should begin with "Rate Rider for...".
A11: Select the appropriate rate classes as they appear on your most recent Board-Approved Tariff of Rates and Charges, including the MicroFit Class.
A13: How many classes are listed on your most recent Board-Approved Tariff of Rates and Charges? | C13: 9
A15: Select Your Rate Classes from the Blue Cells below. Please ensure that a rate class is assigned to each shaded cell.
A18: Rate Class Classification
A19: RESIDENTIAL
A20: GENERAL SERVICE LESS THAN 50 KW
A21: GENERAL SERVICE 50 TO 4,999 KW
A22: LARGE USE
A23: UNMETERED SCATTERED LOAD
A24: STREET LIGHTING
A25: EMBEDDED DISTRIBUTOR
A26: microFIT
A27: STANDBY POWER - APPROVED ON AN INTERIM BASIS
A35: Once all blue shaded cells above are filled out, press the following button to create your tariff template
A36: Kitchener-Wilmot Hydro Inc.
A37: TARIFF OF RATES AND CHARGES
A38: ="Effective and Implementation Date May 1, 2014" -> Effective and Implementation Date May 1, 2014
A40: This schedule supersedes and replaces all previously
A41: approved schedules of Rates, Charges and Loss Factors
A42: =EBNUMBER -> EB-2013-0147
A44: RESIDENTIAL SERVICE CLASSIFICATION
A46: This classification applies to an account taking electricity at 750 volts or less where the electricity is used exclusively in a separate metered living accommodation. Customers shall be residing in single-dwelling units that consist of a detached house or one unit of a semi-detached, duplex, triplex or quadruplex house, with a residential zoning. Separately metered dwellings within a town house complex or apartment building also qualify as residential customers. All customers are single-phase. Further servicing details are available in the distributor’s Conditions of Service.
A47: APPLICATION
A49: The application of these rates and charges shall be in accordance with the Licence of the Distributor and any Code or Order of the Board, and amendments thereto as approved by the Board, which may be applicable to the administration of this schedule.
A50: No rates and charges for the distribution of electricity and charges to meet the costs of any work or service done or furnished for the purpose of the distribution of electricity shall be made except as permitted by this schedule, unless required by the Distributor’s Licence or a Code or Order of the Board, and amendments thereto as approved by the Board, or as specified herein.
A51: Unless specifically noted, this schedule does not contain any charges for the electricity commodity, be it under the Regulated Price Plan, a contract with a retailer or the wholesale market price, as applicable.
A52: It should be noted that this schedule does not list any charges or assessments that are required by law to be charged by a distributor and that are not subject to Board approval, such as the Debt Retirement Charge, charges for Ministry of Energy Conservation and Renewable Energy Program, the Provincial Benefit and any applicable taxes.
A54: MONTHLY RATES AND CHARGES - Delivery Component
D55: Current | E55: Applied | F55: Change
A56: Service Charge | C56: $ | D56: 9.76 | E56: =+'App.2-W_Impacts-Res'!J21 -> 10.5 | F56: =+E56-D56 -> 0.74
A57: Rate Rider for Disposition of Residual Historical Smart Meter Costs - effective until April 30, 2014 | C57: $ | D57: 0.13 | E57: =+'App.2-W_Impacts-Res'!J22 -> 0 | F57: -0.13
A58: Rate Rider for Recovery of Smart Meter Incremental Revenue Requirement - in effect until the effective date of the next cost of service-based rate order | C58: $ | D58: 1.62 | E58: =+'App.2-W_Impacts-Res'!J23 -> 0 | F58: -1.62
A59: Rate Rider for Smart Metering Entity Charge - effective until October 31, 2018 | C59: $ | D59: 0.79 | E59: =+'App.2-W_Impacts-Res'!J35 -> 0.79 | F59: 0
A60: Distribution Volumetric Rate | C60: $/kWh | D60: 0.0173 | E60: =+'App.2-W_Impacts-Res'!J26 -> 0.0162 | F60: -0.0011
A61: Rate Rider for Recovery of Lost Revenue Adjustment Mechanism (LRAM)/Shared Savings Mechanism (SSM) Recovery (2010) - effective until April 30, 2014 | C61: $/kWh | D61: 0.0003 | E61: =+'App.2-W_Impacts-Res'!J27 -> 0 | F61: -0.0003
A62: Rate Rider for Application of Tax Change - effective until April 30, 2014 | C62: $/kWh | D62: -0.0004 | E62: =+'App.2-W_Impacts-Res'!J28 -> 0 | F62: 0.0004
A63: Retail Transmission Rate - Network Service Rate | C63: $/kWh | D63: 0.0067 | E63: =+'App.2-W_Impacts-Res'!J37 -> 0.0072 | F63: 0.0005
A64: Retail Transmission Rate - Line and Transformation Connection Service Rate | C64: $/kWh | D64: 0.0014 | E64: =+'App.2-W_Impacts-Res'!J38 -> 0.0014 | F64: 0
A66: Rate Rider for Recovery of Stranded Meter Assets - effective from May 1, 2014 until December 31, 2014 | C66: $ | E66: =+'App.2-W_Impacts-Res'!J24 -> 3.09 | F66: =+E66-D66 -> 3.09
A67: Rate Rider for Recovery of Foregone Revenues (Juanuary 1 to April, 2014) - effective from May 1, 2014 until December 31, 2014 | C67: $ | E67: =+'App.2-W_Impacts-Res'!J25 -> -0.81 | F67: -0.81
A68: Rate Rider for Disposition of Deferal/Variance Accounts (2014) Recovery - effective from May 1, 2014 until December 31, 2014 | C68: $/kWh | E68: =+'App.2-W_Impacts-Res'!J32 -> -0.0005 | F68: -0.0005
A69: Rate Rider for Disposition of Global Adjustment Sub-account (2014) - applicable to non-RPP customers only - effective from May 1, 2014 until December 31, 2014 | C69: $/kWh | E69: =+'App.2-W_Impacts-Res'!J33 -> 0.0003 | F69: 0.0003
A70: Rate Rider for Disposition of Account 1576 - effective from May 1, 2014 until December 31, 2014 | C70: $/kWh | E70: =+'App.2-W_Impacts-Res'!J30 -> -0.0065 | F70: -0.0065
A71: Rate Rider for Disposition of Lost CWIP- effective from May 1, 2014 until December 31, 2014 | C71: $/kWh | E71: =+'App.2-W_Impacts-Res'!J29 -> 0.001 | F71: 0.001
A73: MONTHLY RATES AND CHARGES - Regulatory Component
A75: Wholesale Market Service Rate | C75: $/kWh | D75: 0.0044 | E75: =+'App.2-W_Impacts-Res'!J40 -> 0.0044 | F75: =+E75-D75 -> 0
A76: Rural Rate Protection Charge | C76: $/kWh | D76: 0.0012 | E76: =+'App.2-W_Impacts-Res'!J41 -> 0.0013 | F76: =+E76-D76 -> 0.0001
A77: Standard Supply Service - Administrative Charge (if applicable) | C77: $ | D77: 0.25 | E77: =+'App.2-W_Impacts-Res'!J42 -> 0.25 | F77: =+E77-D77 -> 0
A78: GENERAL SERVICE LESS THAN 50 KW SERVICE CLASSIFICATION
A80: This classification applies to a non residential account taking electricity at 750 volts or less whose average monthly maximum demand is less than, or is forecast to be less than, 50 kW. Further servicing details are available in the distributor’s Conditions of Service.
A81: APPLICATION
A83: The application of these rates and charges shall be in accordance with the Licence of the Distributor and any Code or Order of the Board, and amendments thereto as approved by the Board, which may be applicable to the administration of this schedule.
A84: No rates and charges for the distribution of electricity and charges to meet the costs of any work or service done or furnished for the purpose of the distribution of electricity shall be made except as permitted by this schedule, unless required by the Distributor’s Licence or a Code or Order of the Board, and amendments thereto as approved by the Board, or as specified herein.
A85: Unless specifically noted, this schedule does not contain any charges for the electricity commodity, be it under the Regulated Price Plan, a contract with a retailer or the wholesale market price, as applicable.
A86: It should be noted that this schedule does not list any charges or assessments that are required by law to be charged by a distributor and that are not subject to Board approval, such as the Debt Retirement Charge, charges for Ministry of Energy Conservation and Renewable Energy Program, the Provincial Benefit and any applicable taxes.
A88: MONTHLY RATES AND CHARGES - Delivery Component
D89: Current | E89: Applied | F89: Change
A90: Service Charge | C90: $ | D90: 25.71 | E90: =+'App.2-W_Impacts-GS Less'!J21 -> 25.76 | F90: =+E90-D90 -> 0.05
A91: Rate Rider for Disposition of Residual Historical Smart Meter Costs - effective until April 30, 2014 | C91: $ | D91: 8.42 | E91: =+'App.2-W_Impacts-GS Less'!J22 -> 0 | F91: -8.42
A92: Rate Rider for Recovery of Smart Meter Incremental Revenue Requirement - in effect until the effective date of the next cost of service-based rate order | C92: $ | D92: 5.55 | E92: =+'App.2-W_Impacts-GS Less'!J23 -> 0 | F92: -5.55
A93: Rate Rider for Smart Metering Entity Charge - effective until October 31, 2018 | C93: $ | D93: 0.79 | E93: =+'App.2-W_Impacts-GS Less'!J35 -> 0.79 | F93: 0
A94: Distribution Volumetric Rate | C94: $/kWh | D94: 0.0124 | E94: =+'App.2-W_Impacts-GS Less'!J26 -> 0.0124 | F94: 0
A95: Rate Rider for Recovery of Lost Revenue Adjustment Mechanism (LRAM)/Shared Savings Mechanism (SSM) Recovery (2010) - effective until April 30, 2014 | C95: $/kWh | D95: 0.0001 | E95: =+'App.2-W_Impacts-GS Less'!J27 -> 0 | F95: -0.0001
A96: Rate Rider for Application of Tax Change - effective until April 30, 2014 | C96: $/kWh | D96: -0.0003 | E96: =+'App.2-W_Impacts-GS Less'!J28 -> 0 | F96: 0.0003
A97: Retail Transmission Rate - Network Service Rate | C97: $/kWh | D97: 0.0058 | E97: =+'App.2-W_Impacts-GS Less'!J37 -> 0.0062 | F97: 0.0004
A98: Retail Transmission Rate - Line and Transformation Connection Service Rate | C98: $/kWh | D98: 0.0013 | E98: =+'App.2-W_Impacts-GS Less'!J38 -> 0.0013 | F98: 0
A100: Rate Rider for Recovery of Stranded Meter Assets - effective from May 1, 2014 until December 31, 2014 | C100: $ | E100: =+'App.2-W_Impacts-GS Less'!J24 -> 12.63 | F100: =+E100-D100 -> 12.63
A101: Rate Rider for Recovery of Foregone Revenues (Juanuary 1 to April, 2014) - effective from May 1, 2014 until December 31, 2014 | C101: $ | E101: =+'App.2-W_Impacts-GS Less'!J25 -> -2.75 | F101: -2.75
A102: Rate Rider for Disposition of Deferal/Variance Accounts (2014) Recovery - effective from May 1, 2014 until December 31, 2014 | C102: $/kWh | E102: =+'App.2-W_Impacts-GS Less'!J32 -> 0.0001 | F102: 0.0001
A103: Rate Rider for Disposition of Global Adjustment Sub-account (2014) - applicable to non-RPP customers only - effective from May 1, 2014 until December 31, 2014 | C103: $/kWh | E103: =+'App.2-W_Impacts-GS Less'!J33 -> 0.0008 | F103: 0.0008
A104: Rate Rider for Disposition of Account 1576 - effective from May 1, 2014 until December 31, 2014 | C104: $/kWh | E104: =+'App.2-W_Impacts-GS Less'!J30 -> -0.0043 | F104: -0.0043
A105: Rate Rider for Disposition of Lost CWIP - effective from May 1, 2014 until December 31, 2014 | C105: $/kWh | E105: =+'App.2-W_Impacts-GS Less'!J29 -> 0.0006 | F105: 0.0006
A107: MONTHLY RATES AND CHARGES - Regulatory Component
A109: Wholesale Market Service Rate | C109: $/kWh | D109: 0.0044 | E109: =+'App.2-W_Impacts-GS Less'!J40 -> 0.0044 | F109: =+E109-D109 -> 0
A110: Rural Rate Protection Charge | C110: $/kWh | D110: 0.0012 | E110: =+'App.2-W_Impacts-GS Less'!J41 -> 0.0013 | F110: =+E110-D110 -> 0.0001
A111: Standard Supply Service - Administrative Charge (if applicable) | C111: $ | D111: 0.25 | E111: =+'App.2-W_Impacts-GS Less'!J42 -> 0.25 | F111: =+E111-D111 -> 0
A112: GENERAL SERVICE 50 TO 4,999 KW SERVICE CLASSIFICATION
A114: This classification applies to a non residential account whose average monthly maximum demand used for billing purposes is equal to or greater than, or is forecast to be equal to or greater than, 50 kW but less than 5,000 kW. Note that for the application of the Retail Transmission Rate – Network Service Rate and the Retail Transmission Rate – Line and Transformation Connection Service Rate the following sub-classifications apply: General Service 50 to 999 kW non-interval metered, General Service 50 to 999 kW interval metered and General Service 1,000 to 4,999 interval metered. Further servicing details are available in the distributor's Conditions of Service.
A115: APPLICATION
A117: The application of these rates and charges shall be in accordance with the Licence of the Distributor and any Code or Order of the Board, and amendments thereto as approved by the Board, which may be applicable to the administration of this schedule.
A118: No rates and charges for the distribution of electricity and charges to meet the costs of any work or service done or furnished for the purpose of the distribution of electricity shall be made except as permitted by this schedule, unless required by the Distributor’s Licence or a Code or Order of the Board, and amendments thereto as approved by the Board, or as specified herein.
A119: Unless specifically noted, this schedule does not contain any charges for the electricity commodity, be it under the Regulated Price Plan, a contract with a retailer or the wholesale market price, as applicable.
A120: It should be noted that this schedule does not list any charges or assessments that are required by law to be charged by a distributor and that are not subject to Board approval, such as the Debt Retirement Charge, charges for Ministry of Energy Conservation and Renewable Energy Program, the Provincial Benefit and any applicable taxes.
A122: MONTHLY RATES AND CHARGES - Delivery Component
D123: Current | E123: Applied | F123: Change
A124: Service Charge | C124: $ | D124: 237.72 | E124: =+'App.2-W_Impacts-GS Great'!J22 -> 170 | F124: =+E124-D124 -> -67.72
A125: Distribution Volumetric Rate | C125: $/kW | D125: 4.0593 | E125: =+'App.2-W_Impacts-GS Great'!J27 -> 4.42 | F125: 0.3607
A126: Rate Rider for Recovery of Lost Revenue Adjustment Mechanism (LRAM)/Shared Savings Mechanism (SSM) Recovery (2010) - effective until April 30, 2014 | C126: $/kW | D126: 0.0172 | E126: =+'App.2-W_Impacts-GS Great'!J28 -> 0 | F126: -0.0172
A127: Rate Rider for Application of Tax Change - effective until April 30, 2014 | C127: $/kW | D127: -0.0676 | E127: =+'App.2-W_Impacts-GS Great'!J29 -> 0 | F127: 0.0676
A128: Retail Transmission Rate - Network Service Rate | C128: $/kW | D128: 3.0721 | E128: =+'App.2-W_Impacts-GS Great'!J39 -> 3.2836 | F128: 0.2115
A129: Retail Transmission Rate - Line and Transformation Connection Service Rate | C129: $/kW | D129: 0.674 | E129: =+'App.2-W_Impacts-GS Great'!J40 -> 0.6851 | F129: 0.0111
A134: Rate Rider for Recovery of Foregone Revenues (Juanuary 1 to April, 2014) - effective from May 1, 2014 until December 31, 2014 | C134: $ | E134: =+'App.2-W_Impacts-GS Great'!J23 -> 1.6 | F134: =+E134-D134 -> 1.6
A135: Rate Rider for Disposition of Deferal/Variance Accounts (2014) Recovery - effective from May 1, 2014 until December 31, 2014 | C135: $/kW | E135: =+'App.2-W_Impacts-GS Great'!J33 -> -0.1226 | F135: -0.1226
A136: Rate Rider for Disposition of Global Adjustment Sub-account (2014) - applicable to non-RPP customers only - effective from May 1, 2014 until December 31, 2014 | C136: $/kW | E136: =+'App.2-W_Impacts-GS Great'!J34 -> 2.1665 | F136: 2.1665
A137: Rate Rider for Disposition of Global Adjustment Sub-account (2014) - applicable to non-RPP customers only and excluding Class A Consumers - effective from May 1, 2014 until December 31, 2014 | C137: $/kW | E137: =+'App.2-W_Impacts-GS Great'!J35 -> -0.3645 | F137: -0.3645
A138: Rate Rider for Disposition of Account 1576 - effective from May 1, 2014 until December 31, 2014 | C138: $/kW | E138: =+'App.2-W_Impacts-GS Great'!J31 -> -1.0188 | F138: -1.0188
A139: =$A$71 -> Rate Rider for Disposition of Lost CWIP- effective from May 1, 2014 until December 31, 2014 | C139: $/kW | E139: =+'App.2-W_Impacts-GS Great'!J30 -> 0.1509 | F139: 0.1509
A141: MONTHLY RATES AND CHARGES - Regulatory Component
A143: Wholesale Market Service Rate | C143: $/kWh | D143: 0.0044 | E143: =+'App.2-W_Impacts-GS Great'!J42 -> 0.0044 | F143: =+E143-D143 -> 0
A144: Rural Rate Protection Charge | C144: $/kWh | D144: 0.0012 | E144: =+'App.2-W_Impacts-GS Great'!J43 -> 0.0013 | F144: =+E144-D144 -> 0.0001
A145: Standard Supply Service - Administrative Charge (if applicable) | C145: $ | D145: 0.25 | E145: =+'App.2-W_Impacts-GS Great'!J44 -> 0.25 | F145: =+E145-D145 -> 0
A146: LARGE USE SERVICE CLASSIFICATION
A148: This classification applies to an account whose average monthly maximum demand used for billing purposes is equal to or greater than, or is forecast to be equal to or greater than, 5,000 kW. Further servicing details are available in the distributor’s Conditions of Service.
A149: APPLICATION
A151: The application of these rates and charges shall be in accordance with the Licence of the Distributor and any Code or Order of the Board, and amendments thereto as approved by the Board, which may be applicable to the administration of this schedule.
A152: No rates and charges for the distribution of electricity and charges to meet the costs of any work or service done or furnished for the purpose of the distribution of electricity shall be made except as permitted by this schedule, unless required by the Distributor’s Licence or a Code or Order of the Board, and amendments thereto as approved by the Board, or as specified herein.
A153: Unless specifically noted, this schedule does not contain any charges for the electricity commodity, be it under the Regulated Price Plan, a contract with a retailer or the wholesale market price, as applicable.
A154: It should be noted that this schedule does not list any charges or assessments that are required by law to be charged by a distributor and that are not subject to Board approval, such as the Debt Retirement Charge, charges for Ministry of Energy Conservation and Renewable Energy Program, the Provincial Benefit and any applicable taxes.
A156: MONTHLY RATES AND CHARGES - Delivery Component
D157: Current | E157: Applied | F157: Change
A158: Service Charge | C158: $ | D158: 14501.61 | E158: =+'App.2-W_Impacts-LU'!J22 -> 15948.21 | F158: =+E158-D158 -> 1446.6
A159: Distribution Volumetric Rate | C159: $/kW | D159: 1.382 | E159: =+'App.2-W_Impacts-LU'!J27 -> 1.46 | F159: =+E159-D159 -> 0.078
A160: Rate Rider for Application of Tax Change - effective until April 30, 2014 | C160: $/kW | D160: -0.0488 | E160: =+'App.2-W_Impacts-LU'!J29 -> 0 | F160: =+E160-D160 -> 0.0488
A161: Retail Transmission Rate - Network Service Rate - Interval Metered | C161: $/kW | D161: 2.8874 | E161: =+'App.2-W_Impacts-LU'!J38 -> 3.0862 | F161: =+E161-D161 -> 0.1988
A162: Retail Transmission Rate - Line and Transformation Connection Service Rate - Interval Metered | C162: $/kW | D162: 0.6335 | E162: =+'App.2-W_Impacts-LU'!J39 -> 0.6441 | F162: =+E162-D162 -> 0.0106
A168: Rate Rider for Recovery of Foregone Revenues (January 1 to April, 2014) - effective from May 1, 2014 until December 31, 2014 | C168: $ | E168: =+'App.2-W_Impacts-LU'!J23 -> 928.03 | F168: =+E168-D168 -> 928.03
A169: Rate Rider for Disposition of Deferal/Variance Accounts (2014) Recovery - effective from May 1, 2014 until December 31, 2014 | C169: $/kW | E169: =+'App.2-W_Impacts-LU'!J33 -> -0.3635 | F169: -0.3635
A170: Rate Rider for Disposition of Global Adjustment Sub-account (2014) - applicable to non-RPP customers only - effective from May 1, 2014 until December 31, 2014 | C170: $/kW | E170: =+'App.2-W_Impacts-LU'!J34 -> -1.88 | F170: -1.88
A171: Rate Rider for Disposition of Account 1576 - effective from May 1, 2014 until December 31, 2014 | C171: $/kW | E171: =+'App.2-W_Impacts-LU'!J31 -> -0.957 | F171: -0.957
A172: =$A$71 -> Rate Rider for Disposition of Lost CWIP- effective from May 1, 2014 until December 31, 2014 | C172: $/kW | E172: =+'App.2-W_Impacts-LU'!J30 -> 0.1418 | F172: 0.1418
A174: MONTHLY RATES AND CHARGES - Regulatory Component
A176: Wholesale Market Service Rate | C176: $/kWh | D176: 0.0044 | E176: =+'App.2-W_Impacts-LU'!J41 -> 0.0044 | F176: =+E176-D176 -> 0
A177: Rural Rate Protection Charge | C177: $/kWh | D177: 0.0012 | E177: =+'App.2-W_Impacts-LU'!J42 -> 0.0013 | F177: =+E177-D177 -> 0.0001
A178: Standard Supply Service - Administrative Charge (if applicable) | C178: $ | D178: 0.25 | E178: =+'App.2-W_Impacts-LU'!J43 -> 0.25 | F178: =+E178-D178 -> 0
A179: UNMETERED SCATTERED LOAD SERVICE CLASSIFICATION
A181: This classification applies to an account taking electricity at 750 volts or less whose average monthly maximum demand is less than, or is forecast to be less than, 50 kW and the consumption is unmetered. Such connections include cable TV power packs, bus shelters, telephone booths, traffic lights, railway crossings, etc. The level of the consumption will be agreed to by the distributor and the customer, based on detailed manufacturer information/ documentation with regard to electrical consumption of the unmetered load or periodic monitoring of actual consumption. Further servicing details are available in the distributor’s Conditions of Service.
A182: APPLICATION
A184: The application of these rates and charges shall be in accordance with the Licence of the Distributor and any Code or Order of the Board, and amendments thereto as approved by the Board, which may be applicable to the administration of this schedule.
A185: No rates and charges for the distribution of electricity and charges to meet the costs of any work or service done or furnished for the purpose of the distribution of electricity shall be made except as permitted by this schedule, unless required by the Distributor’s Licence or a Code or Order of the Board, and amendments thereto as approved by the Board, or as specified herein.
A186: Unless specifically noted, this schedule does not contain any charges for the electricity commodity, be it under the Regulated Price Plan, a contract with a retailer or the wholesale market price, as applicable.
A187: It should be noted that this schedule does not list any charges or assessments that are required by law to be charged by a distributor and that are not subject to Board approval, such as the Debt Retirement Charge, charges for Ministry of Energy Conservation and Renewable Energy Program, the Provincial Benefit and any applicable taxes.
A189: MONTHLY RATES AND CHARGES - Delivery Component
D190: Current | E190: Applied | F190: Change
A191: Service Charge (per connection) | C191: $ | D191: 8.52 | E191: =+'App.2-W_Impacts-USL'!J21 -> 6.89 | F191: =+E191-D191 -> -1.63
A192: Distribution Volumetric Rate | C192: $/kWh | D192: 0.0166 | E192: =+'App.2-W_Impacts-USL'!J26 -> 0.0134 | F192: -0.0032
A193: Rate Rider for Recovery of Lost Revenue Adjustment Mechanism (LRAM)/Shared Savings Mechanism (SSM) Recovery (2010) - effective until April 30, 2014 | C193: $/kWh | D193: 0.0045 | E193: =+'App.2-W_Impacts-USL'!J27 -> 0 | F193: -0.0045
A194: Rate Rider for Application of Tax Change - effective until April 30, 2014 | C194: $/kWh | D194: -0.0005 | E194: =+'App.2-W_Impacts-USL'!J28 -> 0 | F194: 0.0005
A195: Retail Transmission Rate - Network Service Rate | C195: $/kWh | D195: 0.0058 | E195: =+'App.2-W_Impacts-USL'!J37 -> 0.0062 | F195: 0.0004
A196: Retail Transmission Rate - Line and Transformation Connection Service Rate | C196: $/kWh | D196: 0.0013 | E196: =+'App.2-W_Impacts-USL'!J38 -> 0.0013 | F196: 0
A201: Rate Rider for Recovery of Foregone Revenues (Juanuary 1 to April, 2014) - effective from May 1, 2014 until December 31, 2014 | C201: $ | E201: =+'App.2-W_Impacts-USL'!J22 -> -1.33 | F201: =+E201-D201 -> -1.33
A202: Rate Rider for Disposition of Deferal/Variance Accounts (2014) Recovery - effective from May 1, 2014 until December 31, 2014 | C202: $/kWh | E202: =+'App.2-W_Impacts-USL'!J32 -> -0.0013 | F202: -0.0013
A203: Rate Rider for Disposition of Account 1576 - effective from May 1, 2014 until December 31, 2014 | C203: $/kWh | E203: =+'App.2-W_Impacts-USL'!J30 -> -0.0229 | F203: -0.0229
A204: =$A$71 -> Rate Rider for Disposition of Lost CWIP- effective from May 1, 2014 until December 31, 2014 | C204: $/kWh | E204: =+'App.2-W_Impacts-USL'!J29 -> 0.0034 | F204: 0.0034
A206: MONTHLY RATES AND CHARGES - Regulatory Component
A208: Wholesale Market Service Rate | C208: $/kWh | D208: 0.0044 | E208: =+'App.2-W_Impacts-USL'!J40 -> 0.0044 | F208: =+E208-D208 -> 0
A209: Rural Rate Protection Charge | C209: $/kWh | D209: 0.0012 | E209: =+'App.2-W_Impacts-USL'!J41 -> 0.0013 | F209: =+E209-D209 -> 0.0001
A210: Standard Supply Service - Administrative Charge (if applicable) | C210: $ | D210: 0.25 | E210: =+'App.2-W_Impacts-USL'!J42 -> 0.25 | F210: =+E210-D210 -> 0
A211: STREET LIGHTING SERVICE CLASSIFICATION
A213: This classification applies to an account for roadway lighting with a Municipality, Regional Municipality, Ministry of Transportation and private roadway lighting, controlled by photo cells. The consumption for these customers will be based on the calculated connected load times the required lighting times established in the approved OEB street lighting load shape template. Further servicing details are available in the distributor’s Conditions of Service.
A214: APPLICATION
A216: The application of these rates and charges shall be in accordance with the Licence of the Distributor and any Code or Order of the Board, and amendments thereto as approved by the Board, which may be applicable to the administration of this schedule.
A217: No rates and charges for the distribution of electricity and charges to meet the costs of any work or service done or furnished for the purpose of the distribution of electricity shall be made except as permitted by this schedule, unless required by the Distributor’s Licence or a Code or Order of the Board, and amendments thereto as approved by the Board, or as specified herein.
A218: Unless specifically noted, this schedule does not contain any charges for the electricity commodity, be it under the Regulated Price Plan, a contract with a retailer or the wholesale market price, as applicable.
A219: It should be noted that this schedule does not list any charges or assessments that are required by law to be charged by a distributor and that are not subject to Board approval, such as the Debt Retirement Charge, charges for Ministry of Energy Conservation and Renewable Energy Program, the Provincial Benefit and any applicable taxes.
A221: MONTHLY RATES AND CHARGES - Delivery Component
D222: Current | E222: Applied | F222: Change
A223: Service Charge (per connection) | C223: $ | D223: 0.8 | E223: =+'App.2-W_Impacts-SL'!J22 -> 0.7 | F223: =+E223-D223 -> -0.1
A224: Distribution Volumetric Rate | C224: $/kW | D224: 5.3386 | E224: =+'App.2-W_Impacts-SL'!J27 -> 4.6513 | F224: =+E224-D224 -> -0.6873
A225: Rate Rider for Application of Tax Change - effective until April 30, 2014 | C225: $/kW | D225: -0.1278 | E225: =+'App.2-W_Impacts-SL'!J29 -> 0 | F225: =+E225-D225 -> 0.1278
A226: Retail Transmission Rate - Network Service Rate | C226: $/kW | D226: 1.8681 | E226: =+'App.2-W_Impacts-SL'!J38 -> 1.9967 | F226: =+E226-D226 -> 0.1286
A227: Retail Transmission Rate - Line and Transformation Connection Service Rate | C227: $/kW | D227: 0.4101 | E227: =+'App.2-W_Impacts-SL'!J39 -> 0.4169 | F227: =+E227-D227 -> 0.0068
A233: Rate Rider for Recovery of Foregone Revenues (Juanuary 1 to April, 2014) - effective from May 1, 2014 until December 31, 2014 | C233: $ | E233: =+'App.2-W_Impacts-SL'!J23 -> -0.1 | F233: =+E233-D233 -> -0.1
A234: Rate Rider for Disposition of Deferal/Variance Accounts (2014) Recovery - effective from May 1, 2014 until December 31, 2014 | C234: $/kW | E234: =+'App.2-W_Impacts-SL'!J33 -> -0.2461 | F234: -0.2461
A235: Rate Rider for Disposition of Global Adjustment Sub-account (2014) - applicable to non-RPP customers only - effective from May 1, 2014 until December 31, 2014 | C235: $/kW | E235: =+'App.2-W_Impacts-SL'!J34 -> 1.9339 | F235: 1.9339
A236: Rate Rider for Disposition of Account 1576 - effective from May 1, 2014 until December 31, 2014 | C236: $/kW | E236: =+'App.2-W_Impacts-SL'!J31 -> -0.4922 | F236: -0.4922
A237: =$A$71 -> Rate Rider for Disposition of Lost CWIP- effective from May 1, 2014 until December 31, 2014 | C237: $/kW | E237: =+'App.2-W_Impacts-SL'!J30 -> 0.0729 | F237: 0.0729
A239: MONTHLY RATES AND CHARGES - Regulatory Component
A241: Wholesale Market Service Rate | C241: $/kWh | D241: 0.0044 | E241: =+'App.2-W_Impacts-SL'!J41 -> 0.0044 | F241: =+E241-D241 -> 0
A242: Rural Rate Protection Charge | C242: $/kWh | D242: 0.0012 | E242: =+'App.2-W_Impacts-SL'!J42 -> 0.0013 | F242: =+E242-D242 -> 0.0001
A243: Standard Supply Service - Administrative Charge (if applicable) | C243: $ | D243: 0.25 | E243: =+'App.2-W_Impacts-SL'!J43 -> 0.25 | F243: =+E243-D243 -> 0
A244: EMBEDDED DISTRIBUTOR SERVICE CLASSIFICATION
A246: This classification applies to an electricity distributor licensed by the Board that is provided electricity by means of this distributor’s facilities. Further servicing details are available in the distributor’s Conditions of Service.
A247: APPLICATION
A249: The application of these rates and charges shall be in accordance with the Licence of the Distributor and any Code or Order of the Board, and amendments thereto as approved by the Board, which may be applicable to the administration of this schedule.
A250: No rates and charges for the distribution of electricity and charges to meet the costs of any work or service done or furnished for the purpose of the distribution of electricity shall be made except as permitted by this schedule, unless required by the Distributor’s Licence or a Code or Order of the Board, and amendments thereto as approved by the Board, or as specified herein.
A251: Unless specifically noted, this schedule does not contain any charges for the electricity commodity, be it under the Regulated Price Plan, a contract with a retailer or the wholesale market price, as applicable.
A252: It should be noted that this schedule does not list any charges or assessments that are required by law to be charged by a distributor and that are not subject to Board approval, such as the Debt Retirement Charge, charges for Ministry of Energy Conservation and Renewable Energy Program, the Provincial Benefit and any applicable taxes.
A254: MONTHLY RATES AND CHARGES - Delivery Component
D255: Current | E255: Applied | F255: Change
A256: Monthly Distribution Wheeling Service Rate - Dedicated LV Line | C256: $/kW | D256: 1.466 | E256: 2.1976 | F256: =+E256-D256 -> 0.7316
A257: Distribution Volumetric Rate | C257: $/kW | F257: 0
A258: Rate Rider for Application of Tax Change Dedicated LV Line - effective until April 30, 2014 | C258: $/kW | D258: -0.0187 | E258: -0.0187 | F258: 0
A259: Monthly Distribution Wheeling Service Rate - Shared LV Line | C259: $/kW | D259: 0.142 | F259: -0.142
A260: Rate Rider for Application of Tax Change Shared LV Line - effective until April 30, 2014 | C260: $/kW | D260: -0.0018 | E260: -0.0018 | F260: 0
A261: Retail Transmission Rate - Network Service Rate | C261: $/kW | D261: 2.8965 | E261: 3.096 | F261: 0.1995
A262: Retail Transmission Rate - Line and Transformation Connection Service Rate | C262: $/kW | D262: 0.6356 | E262: 0.6461 | F262: 0.0105
A266: Rate Rider for Disposition of Deferal/Variance Accounts (2014) Recovery - effective from May 1, 2014 until December 31, 2014 | C266: $/kW | E266: 1.6688 | F266: =+E266-D266 -> 1.6688
A267: Rate Rider for Disposition of Account 1576 - effective from May 1, 2014 until December 31, 2014 | C267: $/kW | E267: -0.5086 | F267: =+E267-D267 -> -0.5086
A268: =$A$71 -> Rate Rider for Disposition of Lost CWIP- effective from May 1, 2014 until December 31, 2014 | C268: $/kW | E268: 0.0753 | F268: =+E268-D268 -> 0.0753
A269: Rate Rider for Recovery of Foregone Revenues (January 1 to April, 2014) - effective from May 1, 2014 until December 31, 2014 | C269: $ | E269: 1097.49 | F269: =+E269-D269 -> 1097.49
A271: MONTHLY RATES AND CHARGES - Regulatory Component
A273: Wholesale Market Service Rate | C273: $/kWh
... 83 more rows

Sheet Tariff
A1: Appendix A
A2: Kitchener-Wilmot Hydro Inc.
A3: TARIFF OF RATES AND CHARGES
A4: Effective Date January 1, 2014
A5: Implementation Date May 1, 2014
A7: This schedule supersedes and replaces all previously approved schedules of Rates, Charges and Loss Factors
C9: EB-2013-0147
A10: RESIDENTIAL SERVICE CLASSIFICATION
A12: This classification applies to an account taking electricity at 750 volts or less where the electricity is used exclusively in a separate metered living accommodation. Customers shall be residing in single-dwelling units that consist of a detached house or one unit of a semi-detached, duplex, triplex or quadruplex house, with a residential zoning. Separately metered dwellings within a town house complex or apartment building also qualify as residential customers. All customers are single-phase. Further servicing details are available in the distributor’s Conditions of Service.
A18: APPLICATION
A20: The application of these rates and charges shall be in accordance with the Licence of the Distributor and any Code or Order of the Board, and amendments thereto as approved by the Board, which may be applicable to the administration of this schedule.
A23: No rates and charges for the distribution of electricity and charges to meet the costs of any work or service done or furnished for the purpose of the distribution of electricity shall be made except as permitted by this schedule, unless required by the Distributor’s Licence or a Code or Order of the Board, and amendments thereto as approved by the Board, or as specified herein.
A27: Unless specifically noted, this schedule does not contain any charges for the electricity commodity, be it under the Regulated Price Plan, a contract with a retailer or the wholesale market price, as applicable. In addition, the charges in the MONTHLY RATES AND CHARGES - Regulatory Component of this schedule do not apply to a customer that is an embedded wholesale market participant
A31: It should be noted that this schedule does not list any charges or assessments that are required by law to be charged by a distributor and that are not subject to Board approval, such as the Debt Retirement Charge, charges for Ministry of Energy Conservation and Renewable Energy Program, the Provincial Benefit and any applicable taxes.
A35: MONTHLY RATES AND CHARGES - Delivery Component
A37: Service Charge | B37: $ | C37: =+'App.2-Z_Tariff'!E56 -> 10.5
A38: Rate Rider for Disposition of Residual Historical Smart Meter Costs - effective until April 30, 2014 | B38: $ | C38: =+'App.2-Z_Tariff'!D57 -> 0.13
A39: Rate Rider for Recovery of Stranded Meter Assets - effective from May 1, 2014 until December 31, 2014 | B39: $ | C39: =+'App.2-Z_Tariff'!E66 -> 3.09
A40: Rate Rider for Recovery of Foregone Revenues (January 1 to April 30, 2014) - effective May 1, 2014 until December 31, 2014 | B40: $ | C40: =+'App.2-Z_Tariff'!E67 -> -0.81
A41: Rate Rider for Smart Metering Entity Charge - effective until October 31, 2018 | B41: $ | C41: =+'App.2-Z_Tariff'!E59 -> 0.79
A42: Distribution Volumetric Rate | B42: $/kWh | C42: =+'App.2-Z_Tariff'!E60 -> 0.0162
A43: Rate Rider for Recovery of Lost Revenue Adjustment Mechanism (LRAM)/Shared Savings Mechanism (SSM) Recovery (2010) - effective until April 30, 2014 | B43: $/kWh | C43: =+'App.2-Z_Tariff'!D61 -> 0.0003
A44: Rate Rider for Application of Tax Change - effective until April 30, 2014 | B44: $/kWh | C44: =+'App.2-Z_Tariff'!D62 -> -0.0004
A45: Rate Rider for Disposition of Deferral/Variance Accounts (2014) Recovery - effective from May 1, 2014 until December 31, 2014 | B45: $/kWh | C45: =+'App.2-Z_Tariff'!E68 -> -0.0005
A46: Rate Rider for Disposition of Global Adjustment Sub-account (2014) - applicable to non-RPP customers only - effective from May 1, 2014 until December 31, 2014 | B46: $/kWh | C46: =+'App.2-Z_Tariff'!E69 -> 0.0003
A47: =+'App.2-Z_Tariff'!A70:B70 -> Rate Rider for Disposition of Account 1576 - effective from May 1, 2014 until December 31, 2014 | B47: $/kWh | C47: =+'App.2-Z_Tariff'!E70 -> -0.0065
A48: Rate Rider for Disposition of Lost CWIP - effective from May 1, 2014 until December 31, 2014 | B48: $/kWh | C48: =+'App.2-Z_Tariff'!E71 -> 0.001
A49: Retail Transmission Rate – Network Service Rate | B49: $/kWh | C49: =+'App.2-Z_Tariff'!E63 -> 0.0072
A50: Retail Transmission Rate – Line and Transformation Connection Service Rate | B50: $/kWh | C50: =+'App.2-Z_Tariff'!E64 -> 0.0014
A52: MONTHLY RATES AND CHARGES – Regulatory Component
A54: Wholesale Market Service Rate | B54: $/kWh | C54: =+'App.2-Z_Tariff'!E75 -> 0.0044
A55: Rural Rate Protection Charge - effective until April 30, 2014 | B55: $/kWh | C55: 0.0012
A56: Rural Rate Protection Charge - effective May 1, 2014 | B56: $/kWh | C56: =+'App.2-Z_Tariff'!E76 -> 0.0013
A57: Standard Supply Service – Administrative Charge (if applicable) | B57: $ | C57: =+'App.2-Z_Tariff'!E77 -> 0.25
A58: =A2 -> Kitchener-Wilmot Hydro Inc.
A59: TARIFF OF RATES AND CHARGES
A60: Effective Date January 1, 2014
A61: Implementation Date May 1, 2014
A63: This schedule supersedes and replaces all previously approved schedules of Rates, Charges and Loss Factors
C65: =$C$9 -> EB-2013-0147
A66: GENERAL SERVICE LESS THAN 50 KW SERVICE CLASSIFICATION
A68: This classification applies to a non residential account taking electricity at 750 volts or less whose average monthly maximum demand is less than, or is forecast to be less than, 50 kW. Further servicing details are available in the distributor’s Conditions of Service.
A74: APPLICATION
A76: The application of these rates and charges shall be in accordance with the Licence of the Distributor and any Code or Order of the Board, and amendments thereto as approved by the Board, which may be applicable to the administration of this schedule.
A79: No rates and charges for the distribution of electricity and charges to meet the costs of any work or service done or furnished for the purpose of the distribution of electricity shall be made except as permitted by this schedule, unless required by the Distributor’s Licence or a Code or Order of the Board, and amendments thereto as approved by the Board, or as specified herein.
A83: =$A$27 -> Unless specifically noted, this schedule does not contain any charges for the electricity commodity, be it under the Regulated Price Plan, a contract with a retailer or the wholesale market price, as applicable. In addition, the charges in the MONTHLY RATES AND CHARGES - Regulatory Component of this schedule do not apply to a customer that is an embedded wholesale market participant
A87: It should be noted that this schedule does not list any charges or assessments that are required by law to be charged by a distributor and that are not subject to Board approval, such as the Debt Retirement Charge, charges for Ministry of Energy Conservation and Renewable Energy Program, the Provincial Benefit and any applicable taxes.
A91: MONTHLY RATES AND CHARGES - Delivery Component
A93: Service Charge | B93: $ | C93: =+'App.2-Z_Tariff'!E90 -> 25.76
A94: Rate Rider for Disposition of Residual Historical Smart Meter Costs - effective until April 30, 2014 | B94: $ | C94: =+'App.2-Z_Tariff'!D91 -> 8.42
A95: Rate Rider for Recovery of Stranded Meter Assets - effective from May 1, 2014 until December 31, 2014 | B95: $ | C95: =+'App.2-Z_Tariff'!E100 -> 12.63
A96: Rate Rider for Recovery of Foregone Revenues (January 1 to April 30, 2014) - effective May 1, 2014 until December 31, 2014 | B96: $ | C96: =+'App.2-Z_Tariff'!E101 -> -2.75
A97: Rate Rider for Smart Metering Entity Charge - effective until October 31, 2018 | B97: $ | C97: =+'App.2-Z_Tariff'!E93 -> 0.79
A98: Distribution Volumetric Rate | B98: $/kWh | C98: =+'App.2-Z_Tariff'!E94 -> 0.0124
A99: Rate Rider for Recovery of Lost Revenue Adjustment Mechanism (LRAM)/Shared Savings Mechanism (SSM) Recovery (2010) - effective until April 30, 2014 | B99: $/kWh | C99: =+'App.2-Z_Tariff'!D95 -> 0.0001
A100: Rate Rider for Application of Tax Change - effective until April 30, 2014 | B100: $/kWh | C100: =+'App.2-Z_Tariff'!D96 -> -0.0003
A101: Rate Rider for Disposition of Deferral/Variance Accounts (2014) Recovery - effective from May 1, 2014 until December 31, 2014 | B101: $/kWh | C101: =+'App.2-Z_Tariff'!E102 -> 0.0001
A102: =+A46 -> Rate Rider for Disposition of Global Adjustment Sub-account (2014) - applicable to non-RPP customers only - effective from May 1, 2014 until December 31, 2014 | B102: $/kWh | C102: =+'App.2-Z_Tariff'!E103 -> 0.0008
A103: =+A47 -> Rate Rider for Disposition of Account 1576 - effective from May 1, 2014 until December 31, 2014 | B103: $/kWh | C103: =+'App.2-Z_Tariff'!E104 -> -0.0043
A104: Rate Rider for Disposition of Lost CWIP - effective from May 1, 2014 until December 31, 2014 | B104: $/kWh | C104: =+'App.2-Z_Tariff'!E105 -> 0.0006
A105: Retail Transmission Rate – Network Service Rate | B105: $/kWh | C105: =+'App.2-Z_Tariff'!E97 -> 0.0062
A106: Retail Transmission Rate – Line and Transformation Connection Service Rate | B106: $/kWh | C106: =+'App.2-Z_Tariff'!E98 -> 0.0013
A108: MONTHLY RATES AND CHARGES – Regulatory Component
A110: Wholesale Market Service Rate | B110: $/kWh | C110: =+'App.2-Z_Tariff'!E109 -> 0.0044
A111: Rural Rate Protection Charge - effective until April 30, 2014 | B111: $/kWh | C111: =+C55 -> 0.0012
A112: Rural Rate Protection Charge - effective May 1, 2014 | B112: $/kWh | C112: =+C56 -> 0.0013
A113: Standard Supply Service – Administrative Charge (if applicable) | B113: $ | C113: =+'App.2-Z_Tariff'!E111 -> 0.25
A114: =A2 -> Kitchener-Wilmot Hydro Inc.
A115: TARIFF OF RATES AND CHARGES
A116: Effective Date January 1, 2014
A117: Implementation Date May 1, 2014
A119: This schedule supersedes and replaces all previously approved schedules of Rates, Charges and Loss Factors
C121: =$C$9 -> EB-2013-0147
A122: GENERAL SERVICE 50 TO 4,999 KW SERVICE CLASSIFICATION
A124: This classification applies to a non residential account whose average monthly maximum demand used for billing purposes is equal to or greater than, or is forecast to be equal to or greater than, 50 kW but less than 5,000 kW. Note that for the application of the Retail Transmission Rate – Network Service Rate and the Retail Transmission Rate – Line and Transformation Connection Service Rate the following sub-classifications apply: General Service 50 to 999 kW non-interval metered, General Service 50 to 999 kW interval metered and General Service 1,000 to 4,999 kW interval metered. Further servicing details are available in the distributor’s Conditions of Service.
A130: APPLICATION
A131: The application of these rates and charges shall be in accordance with the Licence of the Distributor and any Code or Order of the Board, and amendments thereto as approved by the Board, which may be applicable to the administration of this schedule.
A134: No rates and charges for the distribution of electricity and charges to meet the costs of any work or service done or furnished for the purpose of the distribution of electricity shall be made except as permitted by this schedule, unless required by the Distributor’s Licence or a Code or Order of the Board, and amendments thereto as approved by the Board, or as specified herein.
A138: Unless specifically noted, this schedule does not contain any charges for the electricity commodity, be it under the Regulated Price Plan, a contract with a retailer or the wholesale market price, as applicable. In addition, the charges in the MONTHLY RATES AND CHARGES - Regulatory Component of this schedule do not apply to a customer that is an embedded wholesale market participant
A142: It should be noted that this schedule does not list any charges or assessments that are required by law to be charged by a distributor and that are not subject to Board approval, such as the Debt Retirement Charge, charges for Ministry of Energy Conservation and Renewable Energy Program, the Provincial Benefit and any applicable taxes.
A146: MONTHLY RATES AND CHARGES - Delivery Component
A148: Service Charge | B148: $ | C148: =+'App.2-Z_Tariff'!E124 -> 170
A149: Rate Rider for Recovery of Foregone Revenues (January 1 to April 30, 2014) - effective May 1, 2014 until December 31, 2014 | B149: $ | C149: =+'App.2-Z_Tariff'!E134 -> 1.6
A150: Distribution Volumetric Rate | B150: $/kW | C150: =+'App.2-Z_Tariff'!E125 -> 4.42
A151: Rate Rider for Recovery of Lost Revenue Adjustment Mechanism (LRAM)/Shared Savings Mechanism (SSM) Recovery (2010) - effective until April 30, 2014 | B151: $/kW | C151: =+'App.2-Z_Tariff'!D126 -> 0.0172
A152: Rate Rider for Application of Tax Change - effective until April 30, 2014 | B152: $/kW | C152: =+'App.2-Z_Tariff'!D127 -> -0.0676
A153: Rate Rider for Disposition of Deferral/Variance Accounts (2014) Recovery - effective from May 1, 2014 until December 31, 2014 | B153: $/kW | C153: =+'App.2-Z_Tariff'!E135 -> -0.1226
A154: Rate Rider for Disposition of Global Adjustment Sub-account (2014) - applicable to non-RPP customers only - effective from May 1, 2014 until December 31, 2014 | B154: $/kW | C154: =+'App.2-Z_Tariff'!E136 -> 2.1665
A155: Rate Rider for Disposition of Global Adjustment Sub-account (2014) - applicable to non-RPP customers only and excluding Class A consumers - effective from May 1, 2014 until December 31, 2014 | B155: $/kW | C155: =+'App.2-Z_Tariff'!E137 -> -0.3645
A156: Rate Rider for Disposition of Account 1576 - effective from May 1, 2014 until December 31, 2014 | B156: $/kW | C156: =+'App.2-Z_Tariff'!E138 -> -1.0188
A157: Rate Rider for Disposition of Lost CWIP - effective from May 1, 2014 until December 31, 2014 | B157: $/kW | C157: =+'App.2-Z_Tariff'!E139 -> 0.1509
A158: Retail Transmission Rate – Network Service Rate | B158: $/kW | C158: =+'App.2-Z_Tariff'!E128 -> 3.2836
A159: Retail Transmission Rate – Line and Transformation Connection Service Rate | B159: $/kW | C159: =+'App.2-Z_Tariff'!E129 -> 0.6851
A161: MONTHLY RATES AND CHARGES – Regulatory Component
A163: Wholesale Market Service Rate | B163: $/kWh | C163: =+'App.2-Z_Tariff'!E143 -> 0.0044
A164: Rural Rate Protection Charge - effective until April 30, 2014 | B164: $/kWh | C164: 0.0012
A165: Rural Rate Protection Charge - effective May 1, 2014 | B165: $/kWh | C165: 0.0013
A166: Standard Supply Service – Administrative Charge (if applicable) | B166: $ | C166: =+'App.2-Z_Tariff'!E145 -> 0.25
A167: =A2 -> Kitchener-Wilmot Hydro Inc.
A168: TARIFF OF RATES AND CHARGES
A169: Effective Date January 1, 2014
A170: Implementation Date May 1, 2014
A172: This schedule supersedes and replaces all previously approved schedules of Rates, Charges and Loss Factors
C174: =$C$9 -> EB-2013-0147
A175: LARGE USE SERVICE CLASSIFICATION
A177: This classification applies to an account whose average monthly maximum demand used for billing purposes is equal to or greater than, or is forecast to be equal to or greater than, 5,000 kW. Further servicing details are available in the distributor’s Conditions of Service.
A183: APPLICATION
A185: The application of these rates and charges shall be in accordance with the Licence of the Distributor and any Code or Order of the Board, and amendments thereto as approved by the Board, which may be applicable to the administration of this schedule.
A188: No rates and charges for the distribution of electricity and charges to meet the costs of any work or service done or furnished for the purpose of the distribution of electricity shall be made except as permitted by this schedule, unless required by the Distributor’s Licence or a Code or Order of the Board, and amendments thereto as approved by the Board, or as specified herein.
A192: Unless specifically noted, this schedule does not contain any charges for the electricity commodity, be it under the Regulated Price Plan, a contract with a retailer or the wholesale market price, as applicable. In addition, the charges in the MONTHLY RATES AND CHARGES - Regulatory Component of this schedule do not apply to a customer that is an embedded wholesale market participant
A196: It should be noted that this schedule does not list any charges or assessments that are required by law to be charged by a distributor and that are not subject to Board approval, such as the Debt Retirement Charge, charges for Ministry of Energy Conservation and Renewable Energy Program, the Provincial Benefit and any applicable taxes.
A200: MONTHLY RATES AND CHARGES - Delivery Component
A202: Service Charge | B202: $ | C202: =+'App.2-Z_Tariff'!E158 -> 15948.21
A203: Rate Rider for Recovery of Foregone Revenues (January 1 to April 30, 2014) - effective May 1, 2014 until December 31, 2014 | B203: $ | C203: =+'App.2-Z_Tariff'!E168 -> 928.03
A204: Distribution Volumetric Rate | B204: $/kW | C204: =+'App.2-Z_Tariff'!E159 -> 1.46
A205: Rate Rider for Application of Tax Change - effective until April 30, 2014 | B205: $/kW | C205: =+'App.2-Z_Tariff'!D160 -> -0.0488
A206: Rate Rider for Disposition of Deferral/Variance Accounts (2014) Recovery - effective from May 1, 2014 until December 31, 2014 | B206: $/kW | C206: =+'App.2-Z_Tariff'!E169 -> -0.3635
A207: Rate Rider for Disposition of Global Adjustment Sub-account (2014) - applicable to non-RPP customers only - effective from May 1, 2014 until December 31, 2014 | B207: $/kW | C207: =+'App.2-Z_Tariff'!E170 -> -1.88
A208: Rate Rider for Disposition of Account 1576 - effective from May 1, 2014 until December 31, 2014 | B208: $/kW | C208: =+'App.2-Z_Tariff'!E171 -> -0.957
A209: Rate Rider for Disposition of Lost CWIP - effective from May 1, 2014 until December 31, 2014 | B209: $/kW | C209: =+'App.2-Z_Tariff'!E172 -> 0.1418
A211: Retail Transmission Rate – Network Service Rate – Interval Metered | B211: $/kW | C211: =+'App.2-Z_Tariff'!E161 -> 3.0862
A212: Retail Transmission Rate – Line and Transformation Connection Service Rate – Interval Metered | B212: $/kW | C212: =+'App.2-Z_Tariff'!E162 -> 0.6441
A214: MONTHLY RATES AND CHARGES – Regulatory Component
A216: Wholesale Market Service Rate | B216: $/kWh | C216: =+'App.2-Z_Tariff'!E176 -> 0.0044
A217: Rural Rate Protection Charge - effective until April 30, 2014 | B217: $/kWh | C217: 0.0012
A218: Rural Rate Protection Charge - effective May 1, 2014 | B218: $/kWh | C218: 0.0013
A219: Standard Supply Service – Administrative Charge (if applicable) | B219: $ | C219: =+'App.2-Z_Tariff'!E178 -> 0.25
A220: =A2 -> Kitchener-Wilmot Hydro Inc.
A221: TARIFF OF RATES AND CHARGES
A222: Effective Date January 1, 2014
A223: Implementation Date May 1, 2014
A225: This schedule supersedes and replaces all previously approved schedules of Rates, Charges and Loss Factors
C227: =$C$9 -> EB-2013-0147
A228: UNMETERED SCATTERED LOAD SERVICE CLASSIFICATION
A230: This classification applies to an account taking electricity at 750 volts or less whose average monthly maximum demand is less than, or is forecast to be less than, 50 kW and the consumption is unmetered. Such connections include cable TV power packs, bus shelters, telephone booths, traffic lights, railway crossings, etc. The level of the consumption will be agreed to by the distributor and the customer, based on detailed manufacturer information/ documentation with regard to electrical consumption of the unmetered load or periodic monitoring of actual consumption. Further servicing details are available in the distributor’s Conditions of Service.
A236: APPLICATION
A238: The application of these rates and charges shall be in accordance with the Licence of the Distributor and any Code or Order of the Board, and amendments thereto as approved by the Board, which may be applicable to the administration of this schedule.
A241: No rates and charges for the distribution of electricity and charges to meet the costs of any work or service done or furnished for the purpose of the distribution of electricity shall be made except as permitted by this schedule, unless required by the Distributor’s Licence or a Code or Order of the Board, and amendments thereto as approved by the Board, or as specified herein.
A245: Unless specifically noted, this schedule does not contain any charges for the electricity commodity, be it under the Regulated Price Plan, a contract with a retailer or the wholesale market price, as applicable. In addition, the charges in the MONTHLY RATES AND CHARGES - Regulatory Component of this schedule do not apply to a customer that is an embedded wholesale market participant
A249: It should be noted that this schedule does not list any charges or assessments that are required by law to be charged by a distributor and that are not subject to Board approval, such as the Debt Retirement Charge, charges for Ministry of Energy Conservation and Renewable Energy Program, the Provincial Benefit and any applicable taxes.
A253: MONTHLY RATES AND CHARGES - Delivery Component
A255: Service Charge (per connection) | B255: $ | C255: =+'App.2-Z_Tariff'!E191 -> 6.89
A256: Rate Rider for Recovery of Foregone Revenues (January 1 to April 30, 2014) - effective May 1, 2014 until December 31, 2014 | B256: $ | C256: =+'App.2-Z_Tariff'!E201 -> -1.33
A257: Distribution Volumetric Rate | B257: $/kWh | C257: =+'App.2-Z_Tariff'!E192 -> 0.0134
A258: Rate Rider for Recovery of Lost Revenue Adjustment Mechanism (LRAM)/Shared Savings Mechanism (SSM) Recovery (2010) - effective until April 30, 2014 | B258: $/kWh | C258: =+'App.2-Z_Tariff'!D193 -> 0.0045
A259: Rate Rider for Application of Tax Change - effective until April 30, 2014 | B259: $/kWh | C259: =+'App.2-Z_Tariff'!D194 -> -0.0005
A260: Rate Rider for Disposition of Deferral/Variance Accounts (2014) Recovery - effective from May 1, 2014 until December 31, 2014 | B260: $/kWh | C260: =+'App.2-Z_Tariff'!E202 -> -0.0013
A261: Rate Rider for Disposition of Account 1576 - effective from May 1, 2014 until December 31, 2014 | B261: $/kWh | C261: =+'App.2-Z_Tariff'!E203 -> -0.0229
A262: Rate Rider for Disposition of Lost CWIP - effective from May 1, 2014 until December 31, 2014 | B262: $/kWh | C262: =+'App.2-Z_Tariff'!E204 -> 0.0034
A263: Retail Transmission Rate – Network Service Rate | B263: $/kWh | C263: =+'App.2-Z_Tariff'!E195 -> 0.0062
A264: Retail Transmission Rate – Line and Transformation Connection Service Rate | B264: $/kWh | C264: =+'App.2-Z_Tariff'!E196 -> 0.0013
A266: MONTHLY RATES AND CHARGES – Regulatory Component
A268: Wholesale Market Service Rate | B268: $/kWh | C268: =+'App.2-Z_Tariff'!E208 -> 0.0044
A269: Rural Rate Protection Charge - effective until April 30, 2014 | B269: $/kWh | C269: 0.0012
A270: Rural Rate Protection Charge - effective May 1, 2014 | B270: $/kWh | C270: 0.0013
A271: Standard Supply Service – Administrative Charge (if applicable) | B271: $ | C271: =+'App.2-Z_Tariff'!E210 -> 0.25
A272: =A2 -> Kitchener-Wilmot Hydro Inc.
A273: TARIFF OF RATES AND CHARGES
A274: Effective Date January 1, 2014
A275: Implementation Date May 1, 2014
A277: This schedule supersedes and replaces all previously approved schedules of Rates, Charges and Loss Factors
C279: =$C$9 -> EB-2013-0147
A280: STREET LIGHTING SERVICE CLASSIFICATION
A282: This classification applies to an account for roadway lighting with a Municipality, Regional Municipality, Ministry of Transportation and private roadway lighting, controlled by photo cells. The consumption for these customers will be based on the calculated connected load times the required lighting times established in the approved OEB street lighting load shape template. Further servicing details are available in the distributor’s Conditions of Service.
A288: APPLICATION
A290: The application of these rates and charges shall be in accordance with the Licence of the Distributor and any Code or Order of the Board, and amendments thereto as approved by the Board, which may be applicable to the administration of this schedule.
A293: No rates and charges for the distribution of electricity and charges to meet the costs of any work or service done or furnished for the purpose of the distribution of electricity shall be made except as permitted by this schedule, unless required by the Distributor’s Licence or a Code or Order of the Board, and amendments thereto as approved by the Board, or as specified herein.
A297: Unless specifically noted, this schedule does not contain any charges for the electricity commodity, be it under the Regulated Price Plan, a contract with a retailer or the wholesale market price, as applicable. In addition, the charges in the MONTHLY RATES AND CHARGES - Regulatory Component of this schedule do not apply to a customer that is an embedded wholesale market participant
A301: It should be noted that this schedule does not list any charges or assessments that are required by law to be charged by a distributor and that are not subject to Board approval, such as the Debt Retirement Charge, charges for Ministry of Energy Conservation and Renewable Energy Program, the Provincial Benefit and any applicable taxes.
A305: MONTHLY RATES AND CHARGES - Delivery Component
A307: Service Charge (per connection) | B307: $ | C307: =+'App.2-Z_Tariff'!E223 -> 0.7
A308: Rate Rider for Recovery of Foregone Revenues (January 1 to April 30, 2014) - effective May 1, 2014 until December 31, 2014 | B308: $ | C308: =+'App.2-Z_Tariff'!E233 -> -0.1
A309: Distribution Volumetric Rate | B309: $/kW | C309: =+'App.2-Z_Tariff'!E224 -> 4.6513
A310: Rate Rider for Application of Tax Change - effective until April 30, 2014 | B310: $/kW | C310: =+'App.2-Z_Tariff'!D225 -> -0.1278
A311: Rate Rider for Disposition of Deferral/Variance Accounts (2014) Recovery - effective from May 1, 2014 until December 31, 2014 | B311: $/kW | C311: =+'App.2-Z_Tariff'!E234 -> -0.2461
A312: Rate Rider for Disposition of Global Adjustment Sub-account (2014) - applicable to non-RPP customers only - effective from May 1, 2014 until December 31, 2014 | B312: $/kW | C312: =+'App.2-Z_Tariff'!E235 -> 1.9339
A313: Rate Rider for Disposition of Account 1576 - effective from May 1, 2014 until December 31, 2014 | B313: $/kW | C313: =+'App.2-Z_Tariff'!E236 -> -0.4922
A314: Rate Rider for Disposition of Lost CWIP - effective from May 1, 2014 until December 31, 2014 | B314: $/kW | C314: =+'App.2-Z_Tariff'!E237 -> 0.0729
A315: Retail Transmission Rate – Network Service Rate | B315: $/kW | C315: =+'App.2-Z_Tariff'!E226 -> 1.9967
A316: Retail Transmission Rate – Line and Transformation Connection Service Rate | B316: $/kW | C316: =+'App.2-Z_Tariff'!E227 -> 0.4169
A318: MONTHLY RATES AND CHARGES – Regulatory Component
A320: Wholesale Market Service Rate | B320: $/kWh | C320: =+'App.2-Z_Tariff'!E241 -> 0.0044
A321: Rural Rate Protection Charge - effective until April 30, 2014 | B321: $/kWh | C321: 0.0012
A322: Rural Rate Protection Charge - effective May 1, 2014 | B322: $/kWh | C322: 0.0013
A323: Standard Supply Service – Administrative Charge (if applicable) | B323: $ | C323: =+'App.2-Z_Tariff'!E243 -> 0.25
A324: =A2 -> Kitchener-Wilmot Hydro Inc.
A325: TARIFF OF RATES AND CHARGES
A326: Effective Date January 1, 2014
A327: Implementation Date May 1, 2014
A329: This schedule supersedes and replaces all previously approved schedules of Rates, Charges and Loss Factors
C331: =$C$9 -> EB-2013-0147
A332: EMBEDDED DISTRIBUTOR SERVICE CLASSIFICATION
A334: This classification applies to an electricity distributor licensed by the Board that is provided electricity by means of this distributor’s facilities. Further servicing details are available in the distributor’s Conditions of Service.
A342: APPLICATION
A343: The application of these rates and charges shall be in accordance with the Licence of the Distributor and any Code or Order of the Board, and amendments thereto as approved by the Board, which may be applicable to the administration of this schedule.
A347: No rates and charges for the distribution of electricity and charges to meet the costs of any work or service done or furnished for the purpose of the distribution of electricity shall be made except as permitted by this schedule, unless required by the Distributor’s Licence or a Code or Order of the Board, and amendments thereto as approved by the Board, or as specified herein.
A352: Unless specifically noted, this schedule does not contain any charges for the electricity commodity, be it under the Regulated Price Plan, a contract with a retailer or the wholesale market price, as applicable. In addition, the charges in the MONTHLY RATES AND CHARGES - Regulatory Component of this schedule do not apply to a customer that is an embedded wholesale market participant
A356: It should be noted that this schedule does not list any charges or assessments that are required by law to be charged by a distributor and that are not subject to Board approval, such as the Debt Retirement Charge, charges for Ministry of Energy Conservation and Renewable Energy Program, the Provincial Benefit and any applicable taxes.
A360: MONTHLY RATES AND CHARGES - Delivery Component
A362: Monthly Distribution Wheeling Service Rate - Dedicated LV Line | B362: $/kW | C362: =+'App.2-Z_Tariff'!E256 -> 2.1976
... 100 more rows
